Body,Body Name,Date,Transaction Number,Invoice Number,Amount,Supplier Name,Supplier ID ,VAT Registration Number ,Expense Area,Expense Type,Expense Code,Purchase Order
http://statistics.data.gov.uk/id/local-authority/29UP,Tonbridge & Malling Borough Council,11/2/2022,0011045082/1,11045082, 24.80,ID Management Systems,01600100,,Purchases,Licences - Fee Paying,H27SH000040101,110069799
http://statistics.data.gov.uk/id/local-authority/29UP,Tonbridge & Malling Borough Council,11/2/2022,0011045083/1,11045083, 195.00,Southern Lightning Engineers Ltd,00094000,,BRREP Servicing-Lightning Prot,Leis Man Poult Wood Golf Centr,M15HEP20001942,110069118
http://statistics.data.gov.uk/id/local-authority/29UP,Tonbridge & Malling Borough Council,11/2/2022,0011045084/1,11045084, 807.67,Broadwater Technologies,01534500,,BRREP Plant renewals,Tonbridge Swimming Pool,M15HBP20001909,110069711
http://statistics.data.gov.uk/id/local-authority/29UP,Tonbridge & Malling Borough Council,11/2/2022,0011045085/1,11045085, 120.00,G C Industrial Heating Services,00578100,,BRREP Servicing - Sadia Tea,Gibson Building East,M15KGP20001932,110069839
http://statistics.data.gov.uk/id/local-authority/29UP,Tonbridge & Malling Borough Council,11/2/2022,0011045086/1,11045086, 840.00,System Hygienics Ltd,00600300,,BRREP Fire Damper Testing,Angel Centre,M15HAP30001970,110069785
http://statistics.data.gov.uk/id/local-authority/29UP,Tonbridge & Malling Borough Council,11/2/2022,0011045087/1,11045087, 1640.00,G C Industrial Heating Services,00578100,,BRREP Legionella Certification,Angel Centre,M15HAP30001995,110069760
http://statistics.data.gov.uk/id/local-authority/29UP,Tonbridge & Malling Borough Council,11/2/2022,0011045088/1,11045088, 377.70,Chillmech Limited,00978700,,BRREP Servicing-Air Condition,Leis Man Poult Wood Golf Centr,M15HEP20001935,110069848
http://statistics.data.gov.uk/id/local-authority/29UP,Tonbridge & Malling Borough Council,11/2/2022,0011045089/1,11045089, 658.88,Venn Group Ltd,00914300,,Temporary Staff,Legal Sals&Overheads,D01ARDR0011300,
http://statistics.data.gov.uk/id/local-authority/29UP,Tonbridge & Malling Borough Council,11/2/2022,0011045090/1,11045090, 400.50,Premier Paper Group,01421800,,Purchases - Paper,Printing,D22GA000040102,
http://statistics.data.gov.uk/id/local-authority/29UP,Tonbridge & Malling Borough Council,11/2/2022,0011045091/1,11045091, 1561.36,The Oyster Partnership,01196400,,Temporary Staff,Admin & Prop Sals&Overheads,D01AADA1111300,
http://statistics.data.gov.uk/id/local-authority/29UP,Tonbridge & Malling Borough Council,11/2/2022,0011045092/3,11045092, 38.84,Extinguisher Doctor Ltd,00059500,,BRREP Servicing-FireExtinguish,Tonbridge Castle / CAB,M15KFP20001938,
http://statistics.data.gov.uk/id/local-authority/29UP,Tonbridge & Malling Borough Council,11/2/2022,0011045093/3,11045093, 90.00,G C Industrial Heating Services,00578100,,BRREP Response - General,Tonbridge Swimming Pool,M15HBP50001997,
http://statistics.data.gov.uk/id/local-authority/29UP,Tonbridge & Malling Borough Council,11/2/2022,0011045094/3,11045094, 140.00,G C Industrial Heating Services,00578100,,BRREP Response - General,Tonbridge Swimming Pool,M15HBP50001997,
http://statistics.data.gov.uk/id/local-authority/29UP,Tonbridge & Malling Borough Council,11/2/2022,0011045096/3,11045096, 641.50,Brand Art,00568300,,Purchases,TIC Stock Account,K18AX000001002,
http://statistics.data.gov.uk/id/local-authority/29UP,Tonbridge & Malling Borough Council,11/2/2022,0011045097/3,11045097, 54401.30,SAS Energy,01856200,,Contract Payments,LLC Photovoltaic System,P05LR000009904,
http://statistics.data.gov.uk/id/local-authority/29UP,Tonbridge & Malling Borough Council,11/2/2022,0011045098/3,11045098, 1217.80,Sellick Partnership Group Limited,01336800,,Temporary Staff,Legal Sals&Overheads,D01ARDR0011300,
http://statistics.data.gov.uk/id/local-authority/29UP,Tonbridge & Malling Borough Council,11/2/2022,0011045100/3,11045100, 265.50,TMS Protection Ltd,01744300,,Office Security,Ton Castle Council Chamber,D21FC000044047,
http://statistics.data.gov.uk/id/local-authority/29UP,Tonbridge & Malling Borough Council,11/2/2022,0011045100/4,11045100, 719.06,TMS Protection Ltd,01744300,,Office Security,Tonbridge Gateway,D23TG000044047,
http://statistics.data.gov.uk/id/local-authority/29UP,Tonbridge & Malling Borough Council,11/2/2022,0011045100/5,11045100, 652.68,TMS Protection Ltd,01744300,,Other Expenses,Items Funded from Reserves,D51LYDY0648010,
http://statistics.data.gov.uk/id/local-authority/29UP,Tonbridge & Malling Borough Council,11/2/2022,0011045101/3,11045101, 265.50,TMS Protection Ltd,01744300,,Office Security,Ton Castle Council Chamber,D21FC000044047,
http://statistics.data.gov.uk/id/local-authority/29UP,Tonbridge & Malling Borough Council,11/2/2022,0011045101/4,11045101, 575.26,TMS Protection Ltd,01744300,,Office Security,Tonbridge Gateway,D23TG000044047,
http://statistics.data.gov.uk/id/local-authority/29UP,Tonbridge & Malling Borough Council,11/2/2022,0011045102/3,11045102, 486.40,TMS Protection Ltd,01744300,,Office Security,Ton Castle Council Chamber,D21FC000044047,
http://statistics.data.gov.uk/id/local-authority/29UP,Tonbridge & Malling Borough Council,11/2/2022,0011045102/4,11045102, 741.00,TMS Protection Ltd,01744300,,Office Security,Tonbridge Gateway,D23TG000044047,
http://statistics.data.gov.uk/id/local-authority/29UP,Tonbridge & Malling Borough Council,11/2/2022,0011045103/3,11045103, 273.60,TMS Protection Ltd,01744300,,Office Security,Ton Castle Council Chamber,D21FC000044047,
http://statistics.data.gov.uk/id/local-authority/29UP,Tonbridge & Malling Borough Council,11/2/2022,0011045103/4,11045103, 741.00,TMS Protection Ltd,01744300,,Office Security,Tonbridge Gateway,D23TG000044047,
http://statistics.data.gov.uk/id/local-authority/29UP,Tonbridge & Malling Borough Council,11/2/2022,0011045104/3,11045104, 273.60,TMS Protection Ltd,01744300,,Office Security,Ton Castle Council Chamber,D21FC000044047,
http://statistics.data.gov.uk/id/local-authority/29UP,Tonbridge & Malling Borough Council,11/2/2022,0011045104/4,11045104, 741.00,TMS Protection Ltd,01744300,,Office Security,Tonbridge Gateway,D23TG000044047,
http://statistics.data.gov.uk/id/local-authority/29UP,Tonbridge & Malling Borough Council,11/2/2022,0011045105/3,11045105, 805.60,TMS Protection Ltd,01744300,,Office Security,Ton Castle Council Chamber,D21FC000044047,
http://statistics.data.gov.uk/id/local-authority/29UP,Tonbridge & Malling Borough Council,11/2/2022,0011045105/4,11045105, 1622.60,TMS Protection Ltd,01744300,,Office Security,Tonbridge Gateway,D23TG000044047,
http://statistics.data.gov.uk/id/local-authority/29UP,Tonbridge & Malling Borough Council,11/2/2022,0011045106/3,11045106, 273.60,TMS Protection Ltd,01744300,,Office Security,Ton Castle Council Chamber,D21FC000044047,
http://statistics.data.gov.uk/id/local-authority/29UP,Tonbridge & Malling Borough Council,11/2/2022,0011045106/4,11045106, 741.00,TMS Protection Ltd,01744300,,Office Security,Tonbridge Gateway,D23TG000044047,
http://statistics.data.gov.uk/id/local-authority/29UP,Tonbridge & Malling Borough Council,11/2/2022,0011045107/3,11045107, 17.19,REDACTED PERSONAL DATA,01326700,,Hospitality,Chief Exec Sals&Overheads,D01AC000048003,
http://statistics.data.gov.uk/id/local-authority/29UP,Tonbridge & Malling Borough Council,11/2/2022,0011045107/4,11045107, 3.03,REDACTED PERSONAL DATA,01326700,,Hospitality,Chief Exec Sals&Overheads,D01AC000048003,
http://statistics.data.gov.uk/id/local-authority/29UP,Tonbridge & Malling Borough Council,11/2/2022,0011045108/1,11045108, 402.34,Castle Water,01696500,,Estate Management Charge,Land Review,D40PS000020400,
http://statistics.data.gov.uk/id/local-authority/29UP,Tonbridge & Malling Borough Council,11/2/2022,0011045109/1,11045109, 319.40,EDF Energy Customers plc,01035000,,Estate Management Charge,Land Review,D40PS000020400,
http://statistics.data.gov.uk/id/local-authority/29UP,Tonbridge & Malling Borough Council,11/2/2022,0011045110/1,11045110, 1500.00,Cornerstones Barristers,01359100,,Legal Fees,Legal Sals&Overheads,D01ARDR0044002,
http://statistics.data.gov.uk/id/local-authority/29UP,Tonbridge & Malling Borough Council,11/2/2022,0012008522/1,12008522, 99.04,Phoenix Software Ltd,00077400,755349015,Software Hire & Support,Information Technology,D27KD000044059,410032278
http://statistics.data.gov.uk/id/local-authority/29UP,Tonbridge & Malling Borough Council,11/2/2022,0021038217/1,21038217, 165.00,SWS Countryside & Landscape,01567200,,Maintenance of Grounds,Open Spaces & Amenity Areas,B22LE000020402,210056981
http://statistics.data.gov.uk/id/local-authority/29UP,Tonbridge & Malling Borough Council,11/2/2022,0021038230/1,21038230, 460.00,David Hodgkinson Photographer,01068900,,Marketing,Events Development,B41TJZ99944215,210056993
http://statistics.data.gov.uk/id/local-authority/29UP,Tonbridge & Malling Borough Council,11/2/2022,0021038231/1,21038231, 671.00,CTL Audiovisual Services Ltd,01652000,,Initial Furniture & Equipment,Capital Renewals Leisure,P05KGBC0209906,210056991
http://statistics.data.gov.uk/id/local-authority/29UP,Tonbridge & Malling Borough Council,11/2/2022,0021038232/10,21038232, 4577.19,Landscape Services Ltd,00057600,,Grounds Maintenance Contract,Cemetery,B26MP000050103,
http://statistics.data.gov.uk/id/local-authority/29UP,Tonbridge & Malling Borough Council,11/2/2022,0021038232/11,21038232, 216.11,Landscape Services Ltd,00057600,,Grounds Maintenance Contract,Churchyards St Peter & St Paul,B28MX000050103,
http://statistics.data.gov.uk/id/local-authority/29UP,Tonbridge & Malling Borough Council,11/2/2022,0021038232/12,21038232, 157.16,Landscape Services Ltd,00057600,,Grounds Maintenance Contract,Churchyards St Stephens,B28MY000050103,
http://statistics.data.gov.uk/id/local-authority/29UP,Tonbridge & Malling Borough Council,11/2/2022,0021038232/13,21038232, 173.71,Landscape Services Ltd,00057600,,Grounds Maintenance Contract,Grounds,D21FF000050103,
http://statistics.data.gov.uk/id/local-authority/29UP,Tonbridge & Malling Borough Council,11/2/2022,0021038232/14,21038232, 329.46,Landscape Services Ltd,00057600,,Maintenance of Grounds,Parking Off-Street,E10HA000020402,
http://statistics.data.gov.uk/id/local-authority/29UP,Tonbridge & Malling Borough Council,11/2/2022,0021038232/15,21038232, 1033.20,Landscape Services Ltd,00057600,,Maintenance of Grounds,Parking Off-Street,E10HAE00120402,
http://statistics.data.gov.uk/id/local-authority/29UP,Tonbridge & Malling Borough Council,11/2/2022,0021038232/16,21038232, 98.11,Landscape Services Ltd,00057600,,Maintenance of Grounds,Parking Off-Street,E10HAE00220402,
http://statistics.data.gov.uk/id/local-authority/29UP,Tonbridge & Malling Borough Council,11/2/2022,0021038232/17,21038232, 88.97,Landscape Services Ltd,00057600,,Maintenance of Grounds,Parking Off-Street,E10HAE00320402,
http://statistics.data.gov.uk/id/local-authority/29UP,Tonbridge & Malling Borough Council,11/2/2022,0021038232/18,21038232, 22.19,Landscape Services Ltd,00057600,,Maintenance of Grounds,Parking Off-Street,E10HAE00420402,
http://statistics.data.gov.uk/id/local-authority/29UP,Tonbridge & Malling Borough Council,11/2/2022,0021038232/19,21038232, 0.57,Landscape Services Ltd,00057600,,Maintenance of Grounds,Parking Off-Street,E10HAE00520402,
http://statistics.data.gov.uk/id/local-authority/29UP,Tonbridge & Malling Borough Council,11/2/2022,0021038232/20,21038232, 62.11,Landscape Services Ltd,00057600,,Maintenance of Grounds,Parking Off-Street,E10HAE00620402,
http://statistics.data.gov.uk/id/local-authority/29UP,Tonbridge & Malling Borough Council,11/2/2022,0021038232/21,21038232, 145.01,Landscape Services Ltd,00057600,,Maintenance of Grounds,Parking Off-Street,E10HAE01020402,
http://statistics.data.gov.uk/id/local-authority/29UP,Tonbridge & Malling Borough Council,11/2/2022,0021038232/22,21038232, 3.21,Landscape Services Ltd,00057600,,Maintenance of Grounds,Parking Off-Street,E10HAE01220402,
http://statistics.data.gov.uk/id/local-authority/29UP,Tonbridge & Malling Borough Council,11/2/2022,0021038232/23,21038232, 7.09,Landscape Services Ltd,00057600,,Maintenance of Grounds,Parking Off-Street,E10HAE01320402,
http://statistics.data.gov.uk/id/local-authority/29UP,Tonbridge & Malling Borough Council,11/2/2022,0021038232/24,21038232, 29.50,Landscape Services Ltd,00057600,,Maintenance of Grounds,Parking Off-Street,E10HAE01520402,
http://statistics.data.gov.uk/id/local-authority/29UP,Tonbridge & Malling Borough Council,11/2/2022,0021038232/25,21038232, 57.64,Landscape Services Ltd,00057600,,Maintenance of Grounds,Parking Off-Street,E10HAE01620402,
http://statistics.data.gov.uk/id/local-authority/29UP,Tonbridge & Malling Borough Council,11/2/2022,0021038232/26,21038232, 23.42,Landscape Services Ltd,00057600,,Maintenance of Grounds,Parking Off-Street,E10HAE01720402,
http://statistics.data.gov.uk/id/local-authority/29UP,Tonbridge & Malling Borough Council,11/2/2022,0021038232/27,21038232, 14.39,Landscape Services Ltd,00057600,,Maintenance of Grounds,Parking Off-Street,E10HAE02120402,
http://statistics.data.gov.uk/id/local-authority/29UP,Tonbridge & Malling Borough Council,11/2/2022,0021038232/28,21038232, 22.91,Landscape Services Ltd,00057600,,Maintenance of Grounds,Parking Off-Street,E10HAE02320402,
http://statistics.data.gov.uk/id/local-authority/29UP,Tonbridge & Malling Borough Council,11/2/2022,0021038232/29,21038232, 87.83,Landscape Services Ltd,00057600,,Maintenance of Grounds,Parking Off-Street,E10HAE02820402,
http://statistics.data.gov.uk/id/local-authority/29UP,Tonbridge & Malling Borough Council,11/2/2022,0021038232/3,21038232, 21497.43,Landscape Services Ltd,00057600,,Grounds Maintenance Contract,Sports Grounds,B13ET000050103,
http://statistics.data.gov.uk/id/local-authority/29UP,Tonbridge & Malling Borough Council,11/2/2022,0021038232/30,21038232, 23.78,Landscape Services Ltd,00057600,,Maintenance of Grounds,Parking Off-Street,E10HAE04020402,
http://statistics.data.gov.uk/id/local-authority/29UP,Tonbridge & Malling Borough Council,11/2/2022,0021038232/31,21038232, 78.42,Landscape Services Ltd,00057600,,Maintenance of Grounds,Parking Off-Street,E10HAE04520402,
http://statistics.data.gov.uk/id/local-authority/29UP,Tonbridge & Malling Borough Council,11/2/2022,0021038232/4,21038232, 7461.13,Landscape Services Ltd,00057600,,Grounds Maintenance Contract,Tonbridge Castle Grounds,B22LB000050103,
http://statistics.data.gov.uk/id/local-authority/29UP,Tonbridge & Malling Borough Council,11/2/2022,0021038232/5,21038232, 56.77,Landscape Services Ltd,00057600,,Trade Refuse Charges,Haysden Country Park,B22LC000044008,
http://statistics.data.gov.uk/id/local-authority/29UP,Tonbridge & Malling Borough Council,11/2/2022,0021038232/6,21038232, 487.02,Landscape Services Ltd,00057600,,Litter Collection,Haysden Country Park,B22LC000044061,
http://statistics.data.gov.uk/id/local-authority/29UP,Tonbridge & Malling Borough Council,11/2/2022,0021038232/7,21038232, 1674.08,Landscape Services Ltd,00057600,,Grounds Maintenance Contract,Haysden Country Park,B22LC000050103,
http://statistics.data.gov.uk/id/local-authority/29UP,Tonbridge & Malling Borough Council,11/2/2022,0021038232/8,21038232, 583.97,Landscape Services Ltd,00057600,,Grounds Maintenance Contract,Haysden Country Park,B22LC000050103,
http://statistics.data.gov.uk/id/local-authority/29UP,Tonbridge & Malling Borough Council,11/2/2022,0021038232/9,21038232, 12393.51,Landscape Services Ltd,00057600,,Grounds Maintenance Contract,Open Spaces & Amenity Areas,B22LE000050103,
http://statistics.data.gov.uk/id/local-authority/29UP,Tonbridge & Malling Borough Council,11/2/2022,0022027127/1,22027127, 1826.92,Savills,01869100,,Rent Deposit / Rent in Advance,Homelessness,C01AAC85544093,
http://statistics.data.gov.uk/id/local-authority/29UP,Tonbridge & Malling Borough Council,11/2/2022,0022027129/1,22027129, 1066.31,Clarion Housing,01776300,,Rent Deposit / Rent in Advance,Homelessness,C01AAC85544093,
http://statistics.data.gov.uk/id/local-authority/29UP,Tonbridge & Malling Borough Council,11/2/2022,0022027130/1,22027130, 384.00,On Site Wheelie Washers,01069700,,General Maintenance,Dry Recycling,H34SR000020301,
http://statistics.data.gov.uk/id/local-authority/29UP,Tonbridge & Malling Borough Council,11/2/2022,0022027131/1,22027131, 1245.00,On Site Wheelie Washers,01069700,,Other Expenses,Refuse Collection,H20SA000048010,
http://statistics.data.gov.uk/id/local-authority/29UP,Tonbridge & Malling Borough Council,11/2/2022,0022027132/1,22027132, 290.00,VWR International Ltd,01868200,823853225,Food Sampling,Food & Safety - Food Safety,H35SX000054011,
http://statistics.data.gov.uk/id/local-authority/29UP,Tonbridge & Malling Borough Council,11/2/2022,0022027133/1,22027133, 250.00,Landmark Information Group,00935700,,Subscriptions,Env Hlth & Hsg Sals&Overheads,D01AVDV0347002,220003273
http://statistics.data.gov.uk/id/local-authority/29UP,Tonbridge & Malling Borough Council,11/2/2022,0022027134/1,22027134, 245.00,Countrystyle Group,00835900,781981681,Collection of Card,Dry Recycling,H34SR000054008,
http://statistics.data.gov.uk/id/local-authority/29UP,Tonbridge & Malling Borough Council,11/2/2022,0022027135/1,22027135, 490.00,Countrystyle Group,00835900,781981681,Collection of Card,Dry Recycling,H34SR000054008,
http://statistics.data.gov.uk/id/local-authority/29UP,Tonbridge & Malling Borough Council,11/2/2022,0022027136/1,22027136, 69.44,British Telecommunications Plc,00012800,,Purchases,Homelessness,C01AATNPR40101,
http://statistics.data.gov.uk/id/local-authority/29UP,Tonbridge & Malling Borough Council,11/2/2022,0022027137/1,22027137, 1012.15,Town & Country Housing Group,01385400,,Other Expenses,Disabled Facilities Grant Mand,P03AC000009908,
http://statistics.data.gov.uk/id/local-authority/29UP,Tonbridge & Malling Borough Council,11/2/2022,0022027138/1,22027138, 6987.19,Adaptec Mobilty Ltd,01785800,339578354,Other Expenses,Disabled Facilities Grant Mand,P03AC000009908,
http://statistics.data.gov.uk/id/local-authority/29UP,Tonbridge & Malling Borough Council,11/2/2022,0022027139/1,22027139, 7120.16,Premiere Projects,00201200,,Other Expenses,Disabled Facilities Grant Mand,P03AC000009908,
http://statistics.data.gov.uk/id/local-authority/29UP,Tonbridge & Malling Borough Council,11/2/2022,0031018982/1,31018982, 546.00,PSR Lighting & Signs Ltd,01265400,,Tonbridge Christmas Lighting,Eco Dev & Reg Ton Chris Light,D52TF000047015,320003460
http://statistics.data.gov.uk/id/local-authority/29UP,Tonbridge & Malling Borough Council,11/2/2022,0031018983/1,31018983, 600.00,Forge Engineering,00137700,,Premises Repairs & Maintenance,Parking Off-Street,E10HA000020601,310042886
http://statistics.data.gov.uk/id/local-authority/29UP,Tonbridge & Malling Borough Council,11/2/2022,0031018984/1,31018984, 2689.56,DSSL Group Ltd,01839500,,CCTV Monitoring Station,Security Services Management,E09GA000051020,310042889
http://statistics.data.gov.uk/id/local-authority/29UP,Tonbridge & Malling Borough Council,11/2/2022,0031018985/1,31018985, 170.85,British Telecommunications Plc,00012800,,Maintenance - General,Security Services Management,E09GA000040135,
http://statistics.data.gov.uk/id/local-authority/29UP,Tonbridge & Malling Borough Council,11/2/2022,0031018986/1,31018986, 675.00,Archway Highway Services Ltd,01398000,,Premises Repairs & Maintenance,Parking On-Street,E10HD000020601,310042911
http://statistics.data.gov.uk/id/local-authority/29UP,Tonbridge & Malling Borough Council,11/2/2022,0031018987/1,31018987, 425.00,Arnold & Court Ltd,01411300,,Bridge Maintenance,Open Spaces & Amenity Areas,B22LE000020505,210056992
http://statistics.data.gov.uk/id/local-authority/29UP,Tonbridge & Malling Borough Council,11/2/2022,0031018988/1,31018988, 427.50,Arnold & Court Ltd,01411300,,Premises Repairs & Maintenance,Parking Off-Street,E10HA000020601,310042905
http://statistics.data.gov.uk/id/local-authority/29UP,Tonbridge & Malling Borough Council,11/2/2022,0031018989/1,31018989, 4080.00,Arnold & Court Ltd,01411300,,Bridge Maintenance,Open Spaces & Amenity Areas,B22LE000020505,210056958
http://statistics.data.gov.uk/id/local-authority/29UP,Tonbridge & Malling Borough Council,11/2/2022,0031018990/1,31018990, 3660.00,Arnold & Court Ltd,01411300,,Contract Payments,Car Park Imp Rolling Programme,P01AB000009904,310042845
http://statistics.data.gov.uk/id/local-authority/29UP,Tonbridge & Malling Borough Council,11/2/2022,0031018991/1,31018991, 211.83,Arnold & Court Ltd,01411300,,Premises Repairs & Maintenance,Parking Off-Street,E10HA000020601,310042899
http://statistics.data.gov.uk/id/local-authority/29UP,Tonbridge & Malling Borough Council,11/2/2022,0031018992/1,31018992, 272.50,Arnold & Court Ltd,01411300,,Premises Repairs & Maintenance,Parking Off-Street,E10HA000020601,310042899
http://statistics.data.gov.uk/id/local-authority/29UP,Tonbridge & Malling Borough Council,11/2/2022,0031018993/1,31018993, 800.00,Arnold & Court Ltd,01411300,,Premises Repairs & Maintenance,Parking Off-Street,E10HA000020601,310042878
http://statistics.data.gov.uk/id/local-authority/29UP,Tonbridge & Malling Borough Council,11/2/2022,0031018995/1,31018995, 484.00,Arnold & Court Ltd,01411300,,Premises Repairs & Maintenance,Parking Off-Street,E10HA000020601,310042881
http://statistics.data.gov.uk/id/local-authority/29UP,Tonbridge & Malling Borough Council,11/2/2022,0031018996/1,31018996, 200.00,Arnold & Court Ltd,01411300,,Sandbags,Civil Contingencies,D33NA000040128,310042888
http://statistics.data.gov.uk/id/local-authority/29UP,Tonbridge & Malling Borough Council,11/2/2022,0031018997/1,31018997, 465.00,Arnold & Court Ltd,01411300,,Premises Repairs & Maintenance,Parking Off-Street,E10HA000020601,310042877
http://statistics.data.gov.uk/id/local-authority/29UP,Tonbridge & Malling Borough Council,11/2/2022,0031018998/1,31018998, 475.00,Arnold & Court Ltd,01411300,,Premises Repairs & Maintenance,Parking Off-Street,E10HAE00120601,310042876
http://statistics.data.gov.uk/id/local-authority/29UP,Tonbridge & Malling Borough Council,11/2/2022,0032009870/1,32009870, 635.00,Sevenoaks District Council,00089300,,Professional Fees,Building Control,A01AD000044001,
http://statistics.data.gov.uk/id/local-authority/29UP,Tonbridge & Malling Borough Council,11/2/2022,0032009871/1,32009871, 22497.00,Ove Arup & Partners Ltd,01864300,524461265,Development of Local Plan,Development of Local Plan,A01AE000044023,320003450
http://statistics.data.gov.uk/id/local-authority/29UP,Tonbridge & Malling Borough Council,11/2/2022,0032009872/1,32009872, 203.49,KM Media Group Ltd,00053900,,Advertising General,Development Management,A01ABZ99944216,320003455
http://statistics.data.gov.uk/id/local-authority/29UP,Tonbridge & Malling Borough Council,11/2/2022,0032009873/1,32009873, 139.23,KM Media Group Ltd,00053900,,Advertising General,Development Management,A01ABZ99944216,320003454
http://statistics.data.gov.uk/id/local-authority/29UP,Tonbridge & Malling Borough Council,11/2/2022,0032009874/1,32009874, 2.92,KCS,00054200,,Stationery,Planning Sals&Overheads,D01AJDJ0143003,320003464
http://statistics.data.gov.uk/id/local-authority/29UP,Tonbridge & Malling Borough Council,11/2/2022,0032009874/2,32009874, 2.98,KCS,00054200,,Stationery,Planning Sals&Overheads,D01AJDJ0143003,320003464
http://statistics.data.gov.uk/id/local-authority/29UP,Tonbridge & Malling Borough Council,11/2/2022,0032009875/1,32009875, 12375.00,Kent County Council,00322500,,Development of Local Plan,Development of Local Plan,A01AE000044023,320003453
http://statistics.data.gov.uk/id/local-authority/29UP,Tonbridge & Malling Borough Council,11/2/2022,0032009876/1,32009876, 1147.00,G2 Recruitment Solutions,01786000,,Temporary Staff,Planning Sals&Overheads,D01AJDJ0111300,
http://statistics.data.gov.uk/id/local-authority/29UP,Tonbridge & Malling Borough Council,11/2/2022,0032009877/1,32009877, 1609.50,G2 Recruitment Solutions,01786000,,Temporary Staff,Planning Sals&Overheads,D01AJDJ0111300,
http://statistics.data.gov.uk/id/local-authority/29UP,Tonbridge & Malling Borough Council,11/2/2022,0032009878/1,32009878, 3165.89,G2 Recruitment Solutions,01786000,,Temporary Staff,Planning Sals&Overheads,D01AJDJ0111300,
http://statistics.data.gov.uk/id/local-authority/29UP,Tonbridge & Malling Borough Council,11/2/2022,0032009879/1,32009879, 2380.00,G2 Recruitment Solutions,01786000,,Temporary Staff,Planning Sals&Overheads,D01AJDJ0111300,
http://statistics.data.gov.uk/id/local-authority/29UP,Tonbridge & Malling Borough Council,11/2/2022,0032009880/1,32009880, 2440.08,CBA,01844700,,Development of Local Plan,Development of Local Plan,A01AE000044023,320003411
http://statistics.data.gov.uk/id/local-authority/29UP,Tonbridge & Malling Borough Council,11/2/2022,0032009881/1,32009881, 1612.50,Carrington West Limited,01844500,,Temporary Staff,Planning Sals&Overheads,D01AJDJ0111300,
http://statistics.data.gov.uk/id/local-authority/29UP,Tonbridge & Malling Borough Council,11/2/2022,0032009882/1,32009882, 653.00,Aylesford Parish Council,00007300,,Payments,S106 - Commuted Sums,M04AD000001001,
http://statistics.data.gov.uk/id/local-authority/29UP,Tonbridge & Malling Borough Council,11/2/2022,0032009883/1,32009883, 17.06,Amazon EU SARL,01738400,,Temporary Staff,Planning Sals&Overheads,D01AJDJ0111300,
http://statistics.data.gov.uk/id/local-authority/29UP,Tonbridge & Malling Borough Council,11/2/2022,0041034884/1,41034884, 556.60,Morgan Hunt UK Ltd,01086900,,Temporary Staff,Finance Sals&Overheads,D01AFDF1111300,
http://statistics.data.gov.uk/id/local-authority/29UP,Tonbridge & Malling Borough Council,11/2/2022,0041034885/1,41034885, 918.75,Morgan Hunt UK Ltd,01086900,,Temporary Staff,Finance Sals&Overheads,D01AFDF1111300,
http://statistics.data.gov.uk/id/local-authority/29UP,Tonbridge & Malling Borough Council,11/2/2022,0041034886/1,41034886, 437.80,Rundle & Co Ltd,00087200,,Bailiffs Commission,Local Revenue & NNDR Collect,D41QA000044075,
http://statistics.data.gov.uk/id/local-authority/29UP,Tonbridge & Malling Borough Council,11/2/2022,0041034886/3,41034886, 75.00,Rundle & Co Ltd,00087200,,Bailiffs Commission,Local Revenue & NNDR Collect,D41QA000044075,
http://statistics.data.gov.uk/id/local-authority/29UP,Tonbridge & Malling Borough Council,11/2/2022,0041034888/1,41034888, 16.61,Rundle & Co Ltd,00087200,,Bailiffs Commission,Local Revenue & NNDR Collect,D41QA000044075,
http://statistics.data.gov.uk/id/local-authority/29UP,Tonbridge & Malling Borough Council,11/2/2022,0041034890/1,41034890, 20.00,Computershare Voucher Services,01212600,,Childcare Scheme,Finance Sals&Overheads,D01AFDF0911136,
http://statistics.data.gov.uk/id/local-authority/29UP,Tonbridge & Malling Borough Council,11/2/2022,0041034890/2,41034890, 1.40,Computershare Voucher Services,01212600,,National Insurance,Finance Sals&Overheads,D01AFDF0911191,
http://statistics.data.gov.uk/id/local-authority/29UP,Tonbridge & Malling Borough Council,11/2/2022,0041034890/3,41034890, 50.00,Computershare Voucher Services,01212600,,Childcare Scheme,Legal Sals&Overheads,D01ARDR0011136,
http://statistics.data.gov.uk/id/local-authority/29UP,Tonbridge & Malling Borough Council,11/2/2022,0041034890/4,41034890, 3.50,Computershare Voucher Services,01212600,,National Insurance,Legal Sals&Overheads,D01ARDR0011191,
http://statistics.data.gov.uk/id/local-authority/29UP,Tonbridge & Malling Borough Council,11/2/2022,0041034890/5,41034890, 20.00,Computershare Voucher Services,01212600,,Childcare Scheme,Env Hlth & Hsg Sals&Overheads,D01AVDV0211136,
http://statistics.data.gov.uk/id/local-authority/29UP,Tonbridge & Malling Borough Council,11/2/2022,0041034890/6,41034890, 1.40,Computershare Voucher Services,01212600,,National Insurance,Env Hlth & Hsg Sals&Overheads,D01AVDV0211191,
http://statistics.data.gov.uk/id/local-authority/29UP,Tonbridge & Malling Borough Council,11/2/2022,0041034890/7,41034890, 243.00,Computershare Voucher Services,01212600,,Childcare Scheme,Env Hlth & Hsg Sals&Overheads,D01AVDV0711136,
http://statistics.data.gov.uk/id/local-authority/29UP,Tonbridge & Malling Borough Council,11/2/2022,0041034890/8,41034890, 17.01,Computershare Voucher Services,01212600,,National Insurance,Env Hlth & Hsg Sals&Overheads,D01AVDV0711191,
http://statistics.data.gov.uk/id/local-authority/29UP,Tonbridge & Malling Borough Council,11/2/2022,0051008746/1,51008746, 75.00,The Empty Homes Network,01798100,,Ext Fees/Prof & Tech,Training,D10DCDV0913561,
http://statistics.data.gov.uk/id/local-authority/29UP,Tonbridge & Malling Borough Council,11/9/2022,0011045111/1,11045111, 570.00,G C Industrial Heating Services,00578100,,BRREP Response - General,Tonbridge Castle / CAB,M15KFP50001997,110069866
http://statistics.data.gov.uk/id/local-authority/29UP,Tonbridge & Malling Borough Council,11/9/2022,0011045112/1,11045112, 1100.00,G C Industrial Heating Services,00578100,,BRREP Servicing - Heating Syst,Larkfield Leisure Centre,M15HDP20001934,110069814
http://statistics.data.gov.uk/id/local-authority/29UP,Tonbridge & Malling Borough Council,11/9/2022,0011045113/1,11045113, 470.60,SAS Energy,01856200,,BRREP General Maintenance,Larkfield Leisure Centre,M15HDP10001900,110069730
http://statistics.data.gov.uk/id/local-authority/29UP,Tonbridge & Malling Borough Council,11/9/2022,0011045114/1,11045114, 112.00,East Sussex Fire Ltd,01843100,,Repairs & Mtce to Buildings,Homelessness,C01AATNHS20101,110069587
http://statistics.data.gov.uk/id/local-authority/29UP,Tonbridge & Malling Borough Council,11/9/2022,0011045115/1,11045115, 315.00,Hadene Engineering Ltd,00041900,,BRREP Servicing - boilers,Larkfield Leisure Centre,M15HDP20001929,110069840
http://statistics.data.gov.uk/id/local-authority/29UP,Tonbridge & Malling Borough Council,11/9/2022,0011045116/1,11045116, 155.00,Southern Lightning Engineers Ltd,00094000,,BRREP Servicing-Lightning Prot,Gibson Building West,M15KBP20001942,110069682
http://statistics.data.gov.uk/id/local-authority/29UP,Tonbridge & Malling Borough Council,11/9/2022,0011045116/2,11045116, 155.00,Southern Lightning Engineers Ltd,00094000,,BRREP Servicing-Lightning Prot,Gibson Building East,M15KGP20001942,110069682
http://statistics.data.gov.uk/id/local-authority/29UP,Tonbridge & Malling Borough Council,11/9/2022,0011045117/1,11045117, 643.75,Broadwater Technologies,01534500,,BRREP Servicing - pool plant,Tonbridge Swimming Pool,M15HBP20001910,110069865
http://statistics.data.gov.uk/id/local-authority/29UP,Tonbridge & Malling Borough Council,11/9/2022,0011045118/1,11045118, 199.12,DORMA UK Ltd,00413500,549361128,BRREP Servicing-entrance doors,Tonbridge Castle / CAB,M15KFP20001927,110069819
http://statistics.data.gov.uk/id/local-authority/29UP,Tonbridge & Malling Borough Council,11/9/2022,0011045119/1,11045119, 491.63,Marine And Industrial Pump Services,00062800,,BRREP Servicing - sump pumps,Tonbridge Swimming Pool,M15HBP20001911,110069857
http://statistics.data.gov.uk/id/local-authority/29UP,Tonbridge & Malling Borough Council,11/9/2022,0011045120/1,11045120, 350.00,G C Industrial Heating Services,00578100,,BRREP Servicing - Heating Syst,Tonbridge Farm Pavillion,M15HGP20001934,110069485
http://statistics.data.gov.uk/id/local-authority/29UP,Tonbridge & Malling Borough Council,11/9/2022,0011045121/1,11045121, 880.00,Security & Electronic Solutions Ltd,01379500,,BRREP Servicing - CCTV,Angel Centre,M15HAP20001952,110069841
http://statistics.data.gov.uk/id/local-authority/29UP,Tonbridge & Malling Borough Council,11/9/2022,0011045122/1,11045122, 1340.00,Security & Electronic Solutions Ltd,01379500,,BRREP Servicing - CCTV,Larkfield Leisure Centre,M15HDP20001952,110069842
http://statistics.data.gov.uk/id/local-authority/29UP,Tonbridge & Malling Borough Council,11/9/2022,0011045123/1,11045123, 2500.00,Topline  Electronics Ltd Pools and Welln,01864600,,BRREP Plant renewals,Tonbridge Swimming Pool,M15HBP20001909,110069835
http://statistics.data.gov.uk/id/local-authority/29UP,Tonbridge & Malling Borough Council,11/9/2022,0011045124/1,11045124, 3675.36,Broadwater Technologies,01534500,,BRREP Servicing - pool plant,Tonbridge Swimming Pool,M15HBP20001910,110069588
http://statistics.data.gov.uk/id/local-authority/29UP,Tonbridge & Malling Borough Council,11/9/2022,0011045125/1,11045125, 750.00,BW May & Son Ltd,01853700,,BRREP Response - General,Tonbridge Castle Gatehouse,M15HKP50001997,110069636
http://statistics.data.gov.uk/id/local-authority/29UP,Tonbridge & Malling Borough Council,11/9/2022,0011045126/1,11045126, 1506.50,Vertiv Infrastructure Limited,00158300,,Maintenance - Ancillary Equip,Information Technology,D27KD000040137,110069767
http://statistics.data.gov.uk/id/local-authority/29UP,Tonbridge & Malling Borough Council,11/9/2022,0011045127/1,11045127, 437.00,BML Building Services Ltd,01505000,,BRREP Response - General,Tonbridge Castle Gatehouse,M15HKP50001997,110069879
http://statistics.data.gov.uk/id/local-authority/29UP,Tonbridge & Malling Borough Council,11/9/2022,0011045128/1,11045128, 1360.00,Chubb Fire & Security Ltd,00115400,174605362,BRREP Servicing-IntruderAlarm,Tonbridge Castle / CAB,M15KFP20001939,110069878
http://statistics.data.gov.uk/id/local-authority/29UP,Tonbridge & Malling Borough Council,11/9/2022,0011045129/1,11045129, 383.88,KCS,00054200,,Cleaning & Domestic Supplies,Cleaning & Security,D21FD000026001,110069869
http://statistics.data.gov.uk/id/local-authority/29UP,Tonbridge & Malling Borough Council,11/9/2022,0011045129/2,11045129, 53.70,KCS,00054200,,Cleaning & Domestic Supplies,Cleaning & Security,D21FD000026001,110069869
http://statistics.data.gov.uk/id/local-authority/29UP,Tonbridge & Malling Borough Council,11/9/2022,0011045129/3,11045129, 25.98,KCS,00054200,,Cleaning & Domestic Supplies,Cleaning & Security,D21FD000026001,110069869
http://statistics.data.gov.uk/id/local-authority/29UP,Tonbridge & Malling Borough Council,11/9/2022,0011045129/4,11045129, 20.94,KCS,00054200,,Cleaning & Domestic Supplies,Cleaning & Security,D21FD000026001,110069869
http://statistics.data.gov.uk/id/local-authority/29UP,Tonbridge & Malling Borough Council,11/9/2022,0011045129/5,11045129, 35.98,KCS,00054200,,Cleaning & Domestic Supplies,Cleaning & Security,D21FD000026001,110069869
http://statistics.data.gov.uk/id/local-authority/29UP,Tonbridge & Malling Borough Council,11/9/2022,0011045129/6,11045129, 35.70,KCS,00054200,,Cleaning & Domestic Supplies,Cleaning & Security,D21FD000026001,110069869
http://statistics.data.gov.uk/id/local-authority/29UP,Tonbridge & Malling Borough Council,11/9/2022,0011045129/7,11045129, 35.40,KCS,00054200,,Cleaning & Domestic Supplies,Cleaning & Security,D21FD000026001,110069869
http://statistics.data.gov.uk/id/local-authority/29UP,Tonbridge & Malling Borough Council,11/9/2022,0011045130/1,11045130, 11.85,KCS,00054200,,Purchases,Central Stationery Stock A/c,K03AD000001002,110069870
http://statistics.data.gov.uk/id/local-authority/29UP,Tonbridge & Malling Borough Council,11/9/2022,0011045130/2,11045130, 11.90,KCS,00054200,,Purchases,Central Stationery Stock A/c,K03AD000001002,110069870
http://statistics.data.gov.uk/id/local-authority/29UP,Tonbridge & Malling Borough Council,11/9/2022,0011045131/1,11045131, 1452.74,Raigins Group,01769400,,Other Expenses,Homeless Accommodation,P03AX000009908,110069808
http://statistics.data.gov.uk/id/local-authority/29UP,Tonbridge & Malling Borough Council,11/9/2022,0011045133/1,11045133, 183.66,Willow Pumps Ltd,00114100,,BRREP Servicing - Pumping Stn,Tonbridge Swimming Pool,M15HBP20001931,110069546
http://statistics.data.gov.uk/id/local-authority/29UP,Tonbridge & Malling Borough Council,11/9/2022,0011045133/2,11045133, 2387.58,Willow Pumps Ltd,00114100,,BRREP Servicing - Pumping Stn,Ton Sportsgrnd Bldgs / Toilets,M15HCP20001931,110069546
http://statistics.data.gov.uk/id/local-authority/29UP,Tonbridge & Malling Borough Council,11/9/2022,0011045133/3,11045133, 2020.26,Willow Pumps Ltd,00114100,,BRREP Servicing - Pumping Stn,Vale Rise Depot,M15LCP20001931,110069546
http://statistics.data.gov.uk/id/local-authority/29UP,Tonbridge & Malling Borough Council,11/9/2022,0011045134/3,11045134, 1561.36,The Oyster Partnership,01196400,,Temporary Staff,Admin & Prop Sals&Overheads,D01AADA1111300,
http://statistics.data.gov.uk/id/local-authority/29UP,Tonbridge & Malling Borough Council,11/9/2022,0011045135/3,11045135, 121.60,TMS Protection Ltd,01744300,,Office Security,Cleaning & Security,D21FD000044047,
http://statistics.data.gov.uk/id/local-authority/29UP,Tonbridge & Malling Borough Council,11/9/2022,0011045136/3,11045136, 189.90,Initial Washroom Hygiene,00048300,,Laundry - Roller Towels,Cleaning & Security,D21FD000042003,
http://statistics.data.gov.uk/id/local-authority/29UP,Tonbridge & Malling Borough Council,11/9/2022,0011045137/3,11045137, 2265.33,Royal Mail,00086200,,Purchases,Mailsort Stock Account,K37BR000001002,
http://statistics.data.gov.uk/id/local-authority/29UP,Tonbridge & Malling Borough Council,11/9/2022,0011045137/4,11045137, 6.65,Royal Mail,00086200,,Purchases,Mailsort Stock Account,K37BR000001002,
http://statistics.data.gov.uk/id/local-authority/29UP,Tonbridge & Malling Borough Council,11/9/2022,0011045137/5,11045137, 10.67,Royal Mail,00086200,,Purchases,Mailsort Stock Account,K37BR000001002,
http://statistics.data.gov.uk/id/local-authority/29UP,Tonbridge & Malling Borough Council,11/9/2022,0011045139/3,11045139, 575.85,KCS,00054200,,Estate Management Charge,Land Review,D40PS000020400,
http://statistics.data.gov.uk/id/local-authority/29UP,Tonbridge & Malling Borough Council,11/9/2022,0011045140/3,11045140, 121.34,KCS,00054200,,Estate Management Charge,Land Review,D40PS000020400,
http://statistics.data.gov.uk/id/local-authority/29UP,Tonbridge & Malling Borough Council,11/9/2022,0011045141/3,11045141, 294.10,KCS,00054200,,Estate Management Charge,Land Review,D40PS000020400,
http://statistics.data.gov.uk/id/local-authority/29UP,Tonbridge & Malling Borough Council,11/9/2022,0011045142/3,11045142, 2.45,Royal Mail,00086200,,Purchases,Mailsort Stock Account,K37BR000001002,
http://statistics.data.gov.uk/id/local-authority/29UP,Tonbridge & Malling Borough Council,11/9/2022,0011045142/4,11045142, 4.48,Royal Mail,00086200,,Purchases,Mailsort Stock Account,K37BR000001002,
http://statistics.data.gov.uk/id/local-authority/29UP,Tonbridge & Malling Borough Council,11/9/2022,0011045142/5,11045142, 1231.08,Royal Mail,00086200,,Purchases,Mailsort Stock Account,K37BR000001002,
http://statistics.data.gov.uk/id/local-authority/29UP,Tonbridge & Malling Borough Council,11/9/2022,0011045143/3,11045143, 19.20,Canon (UK) Limited,00298700,,Purchases - Paper,Printing,D22GA000040102,
http://statistics.data.gov.uk/id/local-authority/29UP,Tonbridge & Malling Borough Council,11/9/2022,0011045144/3,11045144, 729.60,Canon (UK) Limited,00298700,,Purchases - Paper,Printing,D22GA000040102,
http://statistics.data.gov.uk/id/local-authority/29UP,Tonbridge & Malling Borough Council,11/9/2022,0011045145/3,11045145, 470.00,G C Industrial Heating Services,00578100,,BRREP Response - General,Larkfield Leisure Centre,M15HDP50001997,
http://statistics.data.gov.uk/id/local-authority/29UP,Tonbridge & Malling Borough Council,11/9/2022,0011045146/3,11045146, 261.97,Biffa Waste Services Ltd,01284500,,Trade Refuse Charges,Cleaning & Security,D21FD000044008,
http://statistics.data.gov.uk/id/local-authority/29UP,Tonbridge & Malling Borough Council,11/9/2022,0011045147/3,11045147, 93.40,Biffa Waste Services Ltd,01284500,,Trade Refuse Charges,Cleaning & Security,D21FD000044008,
http://statistics.data.gov.uk/id/local-authority/29UP,Tonbridge & Malling Borough Council,11/9/2022,0011045148/3,11045148, 138.69,Biffa Waste Services Ltd,01284500,,Trade Refuse Charges,Cleaning & Security,D21FD000044008,
http://statistics.data.gov.uk/id/local-authority/29UP,Tonbridge & Malling Borough Council,11/9/2022,0011045149/3,11045149, 42.72,Biffa Waste Services Ltd,01284500,,Trade Refuse Charges,Cleaning & Security,D21FD000044008,
http://statistics.data.gov.uk/id/local-authority/29UP,Tonbridge & Malling Borough Council,11/9/2022,0011045150/3,11045150, 42.72,Biffa Waste Services Ltd,01284500,,Trade Refuse Charges,Cleaning & Security,D21FD000044008,
http://statistics.data.gov.uk/id/local-authority/29UP,Tonbridge & Malling Borough Council,11/9/2022,0011045151/3,11045151, 182.90,Biffa Waste Services Ltd,01284500,,Trade Refuse Charges,Cleaning & Security,D21FD000044008,
http://statistics.data.gov.uk/id/local-authority/29UP,Tonbridge & Malling Borough Council,11/9/2022,0011045152/1,11045152, 157.10,Scottish Water Business Stream Ltd,01641100,,Sewerage Charges,Buildings,D21FEDD6024003,
http://statistics.data.gov.uk/id/local-authority/29UP,Tonbridge & Malling Borough Council,11/9/2022,0011045153/1,11045153, 342.00,Disclosure & Barring Service,00865900,,Professional Fees,Licences - Fee Paying,H27SH000044001,
http://statistics.data.gov.uk/id/local-authority/29UP,Tonbridge & Malling Borough Council,11/9/2022,0011045154/3,11045154, 333.10,Premier Paper Group,01421800,,Purchases - Paper,Printing,D22GA000040102,
http://statistics.data.gov.uk/id/local-authority/29UP,Tonbridge & Malling Borough Council,11/9/2022,0011045155/1,11045155, 264.00,Harper Collins Publishers,01787600,,Purchases,TIC Stock Account,K18AX000001002,
http://statistics.data.gov.uk/id/local-authority/29UP,Tonbridge & Malling Borough Council,11/9/2022,0011045156/3,11045156, 1217.80,Sellick Partnership Group Limited,01336800,,Temporary Staff,Legal Sals&Overheads,D01ARDR0011300,
http://statistics.data.gov.uk/id/local-authority/29UP,Tonbridge & Malling Borough Council,11/9/2022,0011045157/3,11045157, 578.00,Thomson Snell & Passmore,00101700,,Legal Fees,Legal Sals&Overheads,D01ARDR0044002,
http://statistics.data.gov.uk/id/local-authority/29UP,Tonbridge & Malling Borough Council,11/9/2022,0011045158/1,11045158, 249.40,Emap Communications Ltd,00575500,,Reference Books & Publications,Admin & Prop Sals&Overheads,D01AADA0043010,
http://statistics.data.gov.uk/id/local-authority/29UP,Tonbridge & Malling Borough Council,11/9/2022,0011045158/2,11045158, 249.40,Emap Communications Ltd,00575500,,Reference Books & Publications,Finance Sals&Overheads,D01AFDF0043010,
http://statistics.data.gov.uk/id/local-authority/29UP,Tonbridge & Malling Borough Council,11/9/2022,0011045158/3,11045158, 249.40,Emap Communications Ltd,00575500,,Subscriptions,St Scene & Leis Sals&Overheads,D01AG000047002,
http://statistics.data.gov.uk/id/local-authority/29UP,Tonbridge & Malling Borough Council,11/9/2022,0011045158/4,11045158, 249.40,Emap Communications Ltd,00575500,,Reference Books & Publications,Planning Sals&Overheads,D01AJ000043010,
http://statistics.data.gov.uk/id/local-authority/29UP,Tonbridge & Malling Borough Council,11/9/2022,0011045158/5,11045158, 249.40,Emap Communications Ltd,00575500,,Reference Books & Publications,Legal Sals&Overheads,D01AR000043010,
http://statistics.data.gov.uk/id/local-authority/29UP,Tonbridge & Malling Borough Council,11/9/2022,0011045159/3,11045159, 117.00,Thomson Snell & Passmore,00101700,,Legal Fees,Legal Sals&Overheads,D01ARDR0044002,
http://statistics.data.gov.uk/id/local-authority/29UP,Tonbridge & Malling Borough Council,11/9/2022,0011045160/3,11045160, 805.00,Thomson Snell & Passmore,00101700,,Legal Fees,Legal Sals&Overheads,D01ARDR0044002,
http://statistics.data.gov.uk/id/local-authority/29UP,Tonbridge & Malling Borough Council,11/9/2022,0011045161/3,11045161, 442.00,Thomson Snell & Passmore,00101700,,Legal Fees,Legal Sals&Overheads,D01ARDR0044002,
http://statistics.data.gov.uk/id/local-authority/29UP,Tonbridge & Malling Borough Council,11/9/2022,0011045162/3,11045162, 476.00,Thomson Snell & Passmore,00101700,,Legal Fees,Legal Sals&Overheads,D01ARDR0044002,
http://statistics.data.gov.uk/id/local-authority/29UP,Tonbridge & Malling Borough Council,11/9/2022,0011045163/3,11045163, 2159.50,Thomson Snell & Passmore,00101700,,Legal Fees,Legal Sals&Overheads,D01ARDR0044002,
http://statistics.data.gov.uk/id/local-authority/29UP,Tonbridge & Malling Borough Council,11/9/2022,0011045164/3,11045164, 750.00,Bishop Whitehead,01871300,,Professional Fees,Land Review,D40PS000044001,
http://statistics.data.gov.uk/id/local-authority/29UP,Tonbridge & Malling Borough Council,11/9/2022,0011045165/3,11045165, 4632.50,Ch&i associates,01628900,,Legal Fees,Legal Sals&Overheads,D01ARDR0044002,
http://statistics.data.gov.uk/id/local-authority/29UP,Tonbridge & Malling Borough Council,11/9/2022,0011045165/4,11045165, 117.00,Ch&i associates,01628900,,Legal Fees,Legal Sals&Overheads,D01ARDR0044002,
http://statistics.data.gov.uk/id/local-authority/29UP,Tonbridge & Malling Borough Council,11/9/2022,0012008523/1,12008523, 5000.00,Agile Applications Ltd,01850800,,Consultancy Fees,Information Technology,D27KD000044011,410032202
http://statistics.data.gov.uk/id/local-authority/29UP,Tonbridge & Malling Borough Council,11/9/2022,0012008524/3,12008524, 15.12,Esendex Limited,01008900,,Leased Lines & Modems,Information Technology,D27KD000045011,
http://statistics.data.gov.uk/id/local-authority/29UP,Tonbridge & Malling Borough Council,11/9/2022,0012008525/1,12008525, 320.49,NEC Software Solutions UK Ltd,01073900,202159745,Software Hire & Support,Information Technology,D27KD000044059,410032262
http://statistics.data.gov.uk/id/local-authority/29UP,Tonbridge & Malling Borough Council,11/9/2022,0012008525/2,12008525, 699.24,NEC Software Solutions UK Ltd,01073900,202159745,Software Hire & Support,Information Technology,D27KD000044059,410032262
http://statistics.data.gov.uk/id/local-authority/29UP,Tonbridge & Malling Borough Council,11/9/2022,0012008526/1,12008526, 109.90,CCS Media Ltd,00018000,,Purchases,Information Technology,D27KD000040101,410032277
http://statistics.data.gov.uk/id/local-authority/29UP,Tonbridge & Malling Borough Council,11/9/2022,0012008526/2,12008526, 2.00,CCS Media Ltd,00018000,,Delivery Expenses,Information Technology,D27KD000044069,410032277
http://statistics.data.gov.uk/id/local-authority/29UP,Tonbridge & Malling Borough Council,11/9/2022,0012008527/1,12008527, 320.00,Electrosonic Ltd,00031100,,Maintenance - Ancillary Equip,Information Technology,D27KD000040137,410032279
http://statistics.data.gov.uk/id/local-authority/29UP,Tonbridge & Malling Borough Council,11/9/2022,0012008527/2,12008527, 80.00,Electrosonic Ltd,00031100,,Maintenance - Ancillary Equip,Information Technology,D27KD000040137,410032279
http://statistics.data.gov.uk/id/local-authority/29UP,Tonbridge & Malling Borough Council,11/9/2022,0012008528/1,12008528, 67.45,CCS Media Ltd,00018000,,Purchases,Information Technology,D27KD000040101,410032284
http://statistics.data.gov.uk/id/local-authority/29UP,Tonbridge & Malling Borough Council,11/9/2022,0012008528/2,12008528, 2.00,CCS Media Ltd,00018000,,Delivery Expenses,Information Technology,D27KD000044069,410032284
http://statistics.data.gov.uk/id/local-authority/29UP,Tonbridge & Malling Borough Council,11/9/2022,0012008529/1,12008529, 3.49,CCS Media Ltd,00018000,,Purchases,Information Technology,D27KD000040101,410032285
http://statistics.data.gov.uk/id/local-authority/29UP,Tonbridge & Malling Borough Council,11/9/2022,0012008529/2,12008529, 11.98,CCS Media Ltd,00018000,,Purchases,Information Technology,D27KD000040101,410032285
http://statistics.data.gov.uk/id/local-authority/29UP,Tonbridge & Malling Borough Council,11/9/2022,0012008529/3,12008529, 5.00,CCS Media Ltd,00018000,,Delivery Expenses,Information Technology,D27KD000044069,410032285
http://statistics.data.gov.uk/id/local-authority/29UP,Tonbridge & Malling Borough Council,11/9/2022,0012008530/3,12008530, 1977.46,NTT Cloud Communications UK Ltd,01794600,,Software Hire & Support,Information Technology,D27KD000044059,
http://statistics.data.gov.uk/id/local-authority/29UP,Tonbridge & Malling Borough Council,11/9/2022,0012008531/1,12008531, 5.80,Daisy Communications,01068100,,Telephones - Rentals,General Admin Telephones,D24GT000045005,
http://statistics.data.gov.uk/id/local-authority/29UP,Tonbridge & Malling Borough Council,11/9/2022,0012008531/2,12008531, 285.76,Daisy Communications,01068100,,Telephones - Call Costs,General Admin Telephones,D24GT000045006,
http://statistics.data.gov.uk/id/local-authority/29UP,Tonbridge & Malling Borough Council,11/9/2022,0012008531/3,12008531, 95.92,Daisy Communications,01068100,,Leased Lines & Modems,Information Technology,D27KD000045011,
http://statistics.data.gov.uk/id/local-authority/29UP,Tonbridge & Malling Borough Council,11/9/2022,0012008531/4,12008531, 74.46,Daisy Communications,01068100,,Maintenance - General,Security Services Management,E09GA000040135,
http://statistics.data.gov.uk/id/local-authority/29UP,Tonbridge & Malling Borough Council,11/9/2022,0012008532/1,12008532, 203.94,NEC Software Solutions UK Ltd,01073900,202159745,Software Hire & Support,Information Technology,D27KD000044059,410032261
http://statistics.data.gov.uk/id/local-authority/29UP,Tonbridge & Malling Borough Council,11/9/2022,0021038233/1,21038233, 15.00,Weddle and Co,00714900,,Maintenance of Grounds,Haysden Country Park,B22LC000020402,210057023
http://statistics.data.gov.uk/id/local-authority/29UP,Tonbridge & Malling Borough Council,11/9/2022,0021038234/1,21038234, 565.83,Table Tennis 365 Ltd,01870000,996063381,Initial Furniture & Equipment,Capital Renewals Leisure,P05KGBC0109906,210057026
http://statistics.data.gov.uk/id/local-authority/29UP,Tonbridge & Malling Borough Council,11/9/2022,0021038235/1,21038235, 130.00,SWS Countryside & Landscape,01567200,,Health & Safety - Trees,Countryside/Woodland Mgt,B22LG000044045,210057019
http://statistics.data.gov.uk/id/local-authority/29UP,Tonbridge & Malling Borough Council,11/9/2022,0021038236/1,21038236, 250.00,SWS Countryside & Landscape,01567200,,Health & Safety - Trees,Countryside/Woodland Mgt,B22LG000044045,210057021
http://statistics.data.gov.uk/id/local-authority/29UP,Tonbridge & Malling Borough Council,11/9/2022,0021038237/1,21038237, 550.00,SWS Countryside & Landscape,01567200,,Health & Safety - Trees,Countryside/Woodland Mgt,B22LG000044045,210057020
http://statistics.data.gov.uk/id/local-authority/29UP,Tonbridge & Malling Borough Council,11/9/2022,0021038238/1,21038238, 512.65,Streetmaster (South Wales) Ltd,00222100,,Maintenance of Grounds,Sports Grounds,B13ET000020402,210056843
http://statistics.data.gov.uk/id/local-authority/29UP,Tonbridge & Malling Borough Council,11/9/2022,0021038239/1,21038239, 700.70,Streetmaster (South Wales) Ltd,00222100,,Maintenance of Grounds,Sports Grounds,B13ET000020402,210056852
http://statistics.data.gov.uk/id/local-authority/29UP,Tonbridge & Malling Borough Council,11/9/2022,0021038240/3,21038240, 15.30,B&Q/Screwfix Direct(TradeUKAccount),00141300,,Purchases,Open Spaces & Amenity Areas,B22LE000040101,
http://statistics.data.gov.uk/id/local-authority/29UP,Tonbridge & Malling Borough Council,11/9/2022,0021038241/3,21038241, 25.63,B&Q/Screwfix Direct(TradeUKAccount),00141300,,Purchases,Open Spaces & Amenity Areas,B22LE000040101,
http://statistics.data.gov.uk/id/local-authority/29UP,Tonbridge & Malling Borough Council,11/9/2022,0021038242/1,21038242, 52.00,Monitor Pest Control Ltd,01476700,,Maintenance of Grounds,Open Spaces & Amenity Areas,B22LE000020402,210057005
http://statistics.data.gov.uk/id/local-authority/29UP,Tonbridge & Malling Borough Council,11/9/2022,0021038243/1,21038243, 189.00,The Lockshop Warehouse,01293500,,Maintenance of Grounds,Haysden Country Park,B22LC000020402,210057018
http://statistics.data.gov.uk/id/local-authority/29UP,Tonbridge & Malling Borough Council,11/9/2022,0021038243/2,21038243, 126.00,The Lockshop Warehouse,01293500,,Maintenance of Grounds,Haysden Country Park,B22LC000020402,210057018
http://statistics.data.gov.uk/id/local-authority/29UP,Tonbridge & Malling Borough Council,11/9/2022,0021038243/3,21038243, 126.00,The Lockshop Warehouse,01293500,,Maintenance of Grounds,Open Spaces & Amenity Areas,B22LE000020402,210057018
http://statistics.data.gov.uk/id/local-authority/29UP,Tonbridge & Malling Borough Council,11/9/2022,0021038243/4,21038243, 5.50,The Lockshop Warehouse,01293500,,Maintenance of Grounds,Open Spaces & Amenity Areas,B22LE000020402,210057018
http://statistics.data.gov.uk/id/local-authority/29UP,Tonbridge & Malling Borough Council,11/9/2022,0021038244/1,21038244, 345.00,Kompan Ltd,01741600,382219257,Maintenance of Play Equipment,Open Spaces & Amenity Areas,B22LE000020503,210056925
http://statistics.data.gov.uk/id/local-authority/29UP,Tonbridge & Malling Borough Council,11/9/2022,0021038246/1,21038246, 3277.64,UK Gym Pits,01870200,,Initial Furniture & Equipment,Capital Renewals Leisure,P05KGBC0209906,210057027
http://statistics.data.gov.uk/id/local-authority/29UP,Tonbridge & Malling Borough Council,11/9/2022,0021038247/1,21038247, 452.99,Cater-Kwik Ltd,01265500,,Initial Furniture & Equipment,Capital Renewals Leisure,P05KGBC0209906,210057033
http://statistics.data.gov.uk/id/local-authority/29UP,Tonbridge & Malling Borough Council,11/9/2022,0021038248/1,21038248, 849.99,Cater-Kwik Ltd,01265500,,Initial Furniture & Equipment,Capital Renewals Leisure,P05KGBC0209906,210057032
http://statistics.data.gov.uk/id/local-authority/29UP,Tonbridge & Malling Borough Council,11/9/2022,0021038249/1,21038249, 742.86,Landscape Services Ltd,00057600,,Grounds Maintenance Contract,Cemetery,B26MP000050103,
http://statistics.data.gov.uk/id/local-authority/29UP,Tonbridge & Malling Borough Council,11/9/2022,0021038250/1,21038250, 83.20,Landscape Services Ltd,00057600,,Grounds Maintenance Contract,Sports Grounds,B13ET000050103,210056756
http://statistics.data.gov.uk/id/local-authority/29UP,Tonbridge & Malling Borough Council,11/9/2022,0021038250/2,21038250, 501.18,Landscape Services Ltd,00057600,,Grounds Maintenance Contract,Sports Grounds,B13ET000050103,210056756
http://statistics.data.gov.uk/id/local-authority/29UP,Tonbridge & Malling Borough Council,11/9/2022,0021038251/1,21038251, 502.67,Landscape Services Ltd,00057600,,Grounds Maintenance Contract,Cemetery,B26MP000050103,210056757
http://statistics.data.gov.uk/id/local-authority/29UP,Tonbridge & Malling Borough Council,11/9/2022,0021038252/3,21038252, 1041.67,Bravo Productions Castlems Ltd,01770200,,Marketing,Events Development,B41TJ000044215,
http://statistics.data.gov.uk/id/local-authority/29UP,Tonbridge & Malling Borough Council,11/9/2022,0021038253/1,21038253, 2169.00,Broxap Ltd,00312300,,Maintenance of Grounds,Sports Grounds,B13ET000020402,210056842
http://statistics.data.gov.uk/id/local-authority/29UP,Tonbridge & Malling Borough Council,11/9/2022,0021038253/2,21038253, 180.00,Broxap Ltd,00312300,,Maintenance of Grounds,Sports Grounds,B13ET000020402,210056842
http://statistics.data.gov.uk/id/local-authority/29UP,Tonbridge & Malling Borough Council,11/9/2022,0021038254/1,21038254, 74.71,G.L. & R.G. Bourne,00737500,,Gates / Security,Haysden Country Park,B22LC000044017,210056722
http://statistics.data.gov.uk/id/local-authority/29UP,Tonbridge & Malling Borough Council,11/9/2022,0021038255/1,21038255, 544.98,G.L. & R.G. Bourne,00737500,,Gates / Security,Haysden Country Park,B22LC000044017,210056722
http://statistics.data.gov.uk/id/local-authority/29UP,Tonbridge & Malling Borough Council,11/9/2022,0021038256/1,21038256, 565.00,Arnold & Court Ltd,01411300,,Maintenance of Play Equipment,Open Spaces & Amenity Areas,B22LE000020503,210056946
http://statistics.data.gov.uk/id/local-authority/29UP,Tonbridge & Malling Borough Council,11/9/2022,0021038257/1,21038257, 325.00,Arnold & Court Ltd,01411300,,Maintenance of Grounds,Tonbridge Castle Grounds,B22LB000020402,210056949
http://statistics.data.gov.uk/id/local-authority/29UP,Tonbridge & Malling Borough Council,11/9/2022,0021038258/1,21038258, 80.00,Arnold & Court Ltd,01411300,,Maintenance of Grounds,Sports Grounds,B13ET000020402,210056948
http://statistics.data.gov.uk/id/local-authority/29UP,Tonbridge & Malling Borough Council,11/9/2022,0021038259/1,21038259, 200.00,Arnold & Court Ltd,01411300,,Maintenance of Play Equipment,Open Spaces & Amenity Areas,B22LE000020503,210056962
http://statistics.data.gov.uk/id/local-authority/29UP,Tonbridge & Malling Borough Council,11/9/2022,0021038260/1,21038260, 300.00,Arnold & Court Ltd,01411300,,Maintenance of Grounds,Open Spaces & Amenity Areas,B22LE000020402,210056947
http://statistics.data.gov.uk/id/local-authority/29UP,Tonbridge & Malling Borough Council,11/9/2022,0021038261/1,21038261, 659.99,BPS Access Solutions Ltd,01870400,821045079,Initial Furniture & Equipment,Capital Renewals Leisure,P05KGBC0409906,210057031
http://statistics.data.gov.uk/id/local-authority/29UP,Tonbridge & Malling Borough Council,11/9/2022,0021038262/1,21038262, 104.00,10Kent County Playing Fields Association,01868900,,Sports Development Programme,Sports Partnerships,B39TD000044097,
http://statistics.data.gov.uk/id/local-authority/29UP,Tonbridge & Malling Borough Council,11/9/2022,0021038263/1,21038263, 3000.00,Kent County Council,00167000,,Sports Development Programme,Sports Partnerships,B39TD000044097,210057024
http://statistics.data.gov.uk/id/local-authority/29UP,Tonbridge & Malling Borough Council,11/9/2022,0022027140/1,22027140, 2850.00,Wynsdale Waste Management Ltd,01772500,,Other Expenses,Housing Assistance,P03AD000009908,
http://statistics.data.gov.uk/id/local-authority/29UP,Tonbridge & Malling Borough Council,11/9/2022,0022027141/1,22027141, 2554.13,Ward Security LTD,01490000,,Dog Warden,Street Scene,H23SD000044100,
http://statistics.data.gov.uk/id/local-authority/29UP,Tonbridge & Malling Borough Council,11/9/2022,0022027142/1,22027142, 7039.00,Under My Roof Ltd,01806700,,Temporary Accommodation,Homelessness,C01AA000044051,
http://statistics.data.gov.uk/id/local-authority/29UP,Tonbridge & Malling Borough Council,11/9/2022,0022027143/1,22027143, 7133.00,Under My Roof Ltd,01806700,,Temporary Accommodation,Homelessness,C01AA000044051,
http://statistics.data.gov.uk/id/local-authority/29UP,Tonbridge & Malling Borough Council,11/9/2022,0022027144/1,22027144, 365.00,Town & Country Housing Group,01385400,,Countywide DFG Project,Private Sector Housing Renewal,C03BD000044031,
http://statistics.data.gov.uk/id/local-authority/29UP,Tonbridge & Malling Borough Council,11/9/2022,0022027145/1,22027145, 714.00,Town & Country Housing Group,01385400,,Other Expenses,Housing Assistance,P03AD000009908,
http://statistics.data.gov.uk/id/local-authority/29UP,Tonbridge & Malling Borough Council,11/9/2022,0022027146/1,22027146, 18131.00,SPA CAFFE LIMITED,00127100,,Temporary Accommodation,Homelessness,C01AA000044051,
http://statistics.data.gov.uk/id/local-authority/29UP,Tonbridge & Malling Borough Council,11/9/2022,0022027147/1,22027147, 24443.50,Social & Community Care,01768400,,Temporary Accommodation,Homelessness,C01AA000044051,
http://statistics.data.gov.uk/id/local-authority/29UP,Tonbridge & Malling Borough Council,11/9/2022,0022027148/1,22027148, 2226.57,The Care Group-Housing & Care Trust,01699600,,Temporary Accommodation,Homelessness,C01AA000044051,
http://statistics.data.gov.uk/id/local-authority/29UP,Tonbridge & Malling Borough Council,11/9/2022,0022027149/1,22027149, 2108.00,Smart Property Professionals,01815100,,Temporary Accommodation,Homelessness,C01AA000044051,
http://statistics.data.gov.uk/id/local-authority/29UP,Tonbridge & Malling Borough Council,11/9/2022,0022027150/1,22027150, 2542.00,Simply Rented Ltd ,01691400,,Temporary Accommodation,Homelessness,C01AA000044051,
http://statistics.data.gov.uk/id/local-authority/29UP,Tonbridge & Malling Borough Council,11/9/2022,0022027151/1,22027151, 6975.00,Premier Property Providers,01785400,,Temporary Accommodation,Homelessness,C01AA000044051,
http://statistics.data.gov.uk/id/local-authority/29UP,Tonbridge & Malling Borough Council,11/9/2022,0022027152/1,22027152, 31208.00,Paramount Independent Property Suppliers,01595300,,Temporary Accommodation,Homelessness,C01AA000044051,
http://statistics.data.gov.uk/id/local-authority/29UP,Tonbridge & Malling Borough Council,11/9/2022,0022027153/1,22027153, 9958.00,Less Homeless Ltd,01489300,,Temporary Accommodation,Homelessness,C01AA000044051,
http://statistics.data.gov.uk/id/local-authority/29UP,Tonbridge & Malling Borough Council,11/9/2022,0022027154/1,22027154, 700.00,Less Homeless Ltd,01489300,,Other Expenses,Ukrainian Refugee Assistance,D54UA000048010,
http://statistics.data.gov.uk/id/local-authority/29UP,Tonbridge & Malling Borough Council,11/9/2022,0022027155/1,22027155, 3200.00,Kent Housing,01503200,,Temporary Accommodation,Homelessness,C01AA000044051,
http://statistics.data.gov.uk/id/local-authority/29UP,Tonbridge & Malling Borough Council,11/9/2022,0022027156/1,22027156, 6293.00,Kent Accommodation Ltd,01722000,,Temporary Accommodation,Homelessness,C01AA000044051,
http://statistics.data.gov.uk/id/local-authority/29UP,Tonbridge & Malling Borough Council,11/9/2022,0022027157/1,22027157, 2544.00,House to Home Lettings Ltd ,01647600,,Temporary Accommodation,Homelessness,C01AA000044051,
http://statistics.data.gov.uk/id/local-authority/29UP,Tonbridge & Malling Borough Council,11/9/2022,0022027158/3,22027158, 800.00,Green Recycling LTD,01563000,,Paper Recycling,Dry Recycling,H34SR000054024,
http://statistics.data.gov.uk/id/local-authority/29UP,Tonbridge & Malling Borough Council,11/9/2022,0022027159/1,22027159, 360.00,Britains Limited,01743900,,Repairs & Mtce to Buildings,Homelessness,C01AATNHS20101,220003275
http://statistics.data.gov.uk/id/local-authority/29UP,Tonbridge & Malling Borough Council,11/9/2022,0022027160/3,22027160, 37.00,Biffa Waste Services Ltd,01284500,,Trade Refuse Charges,Cleaning & Security,D21FD000044008,
http://statistics.data.gov.uk/id/local-authority/29UP,Tonbridge & Malling Borough Council,11/9/2022,0022027161/3,22027161, 37.00,Biffa Waste Services Ltd,01284500,,Trade Refuse Charges,Cleaning & Security,D21FD000044008,
http://statistics.data.gov.uk/id/local-authority/29UP,Tonbridge & Malling Borough Council,11/9/2022,0022027162/1,22027162, 1085.00,1st  Steps Housing Kent,01716100,,Temporary Accommodation,Homelessness,C01AA000044051,
http://statistics.data.gov.uk/id/local-authority/29UP,Tonbridge & Malling Borough Council,11/9/2022,0022027163/10,22027163, 72.20,Urbaser LTD,01718800,,Maintenance of Grounds,Leybourne Lakes Country Park,B22LK000020402,
http://statistics.data.gov.uk/id/local-authority/29UP,Tonbridge & Malling Borough Council,11/9/2022,0022027163/11,22027163, 26.13,Urbaser LTD,01718800,,Dog Bin Emptying,Leybourne Lakes Country Park,B22LK000044012,
http://statistics.data.gov.uk/id/local-authority/29UP,Tonbridge & Malling Borough Council,11/9/2022,0022027163/12,22027163, 60.22,Urbaser LTD,01718800,,Maintenance of Grounds,Grounds,D21FF000020402,
http://statistics.data.gov.uk/id/local-authority/29UP,Tonbridge & Malling Borough Council,11/9/2022,0022027163/13,22027163, 184.19,Urbaser LTD,01718800,,Maintenance of Grounds,Parking Off-Street,E10HA000020402,
http://statistics.data.gov.uk/id/local-authority/29UP,Tonbridge & Malling Borough Council,11/9/2022,0022027163/14,22027163, 4686.59,Urbaser LTD,01718800,,Maintenance of Grounds,Parking Off-Street,E10HAE00120402,
http://statistics.data.gov.uk/id/local-authority/29UP,Tonbridge & Malling Borough Council,11/9/2022,0022027163/15,22027163, 504.84,Urbaser LTD,01718800,,Maintenance of Grounds,Parking Off-Street,E10HAE00220402,
http://statistics.data.gov.uk/id/local-authority/29UP,Tonbridge & Malling Borough Council,11/9/2022,0022027163/16,22027163, 315.82,Urbaser LTD,01718800,,Maintenance of Grounds,Parking Off-Street,E10HAE00320402,
http://statistics.data.gov.uk/id/local-authority/29UP,Tonbridge & Malling Borough Council,11/9/2022,0022027163/17,22027163, 1651.73,Urbaser LTD,01718800,,Maintenance of Grounds,Parking Off-Street,E10HAE00420402,
http://statistics.data.gov.uk/id/local-authority/29UP,Tonbridge & Malling Borough Council,11/9/2022,0022027163/18,22027163, 274.48,Urbaser LTD,01718800,,Maintenance of Grounds,Parking Off-Street,E10HAE00520402,
http://statistics.data.gov.uk/id/local-authority/29UP,Tonbridge & Malling Borough Council,11/9/2022,0022027163/19,22027163, 1023.71,Urbaser LTD,01718800,,Maintenance of Grounds,Parking Off-Street,E10HAE00620402,
http://statistics.data.gov.uk/id/local-authority/29UP,Tonbridge & Malling Borough Council,11/9/2022,0022027163/20,22027163, 8.63,Urbaser LTD,01718800,,Maintenance of Grounds,Parking Off-Street,E10HAE00820402,
http://statistics.data.gov.uk/id/local-authority/29UP,Tonbridge & Malling Borough Council,11/9/2022,0022027163/21,22027163, 8.52,Urbaser LTD,01718800,,Maintenance of Grounds,Parking Off-Street,E10HAE00920402,
http://statistics.data.gov.uk/id/local-authority/29UP,Tonbridge & Malling Borough Council,11/9/2022,0022027163/22,22027163, 20.23,Urbaser LTD,01718800,,Maintenance of Grounds,Parking Off-Street,E10HAE01020402,
http://statistics.data.gov.uk/id/local-authority/29UP,Tonbridge & Malling Borough Council,11/9/2022,0022027163/23,22027163, 96.12,Urbaser LTD,01718800,,Maintenance of Grounds,Parking Off-Street,E10HAE01120402,
http://statistics.data.gov.uk/id/local-authority/29UP,Tonbridge & Malling Borough Council,11/9/2022,0022027163/24,22027163, 60.48,Urbaser LTD,01718800,,Maintenance of Grounds,Parking Off-Street,E10HAE01220402,
http://statistics.data.gov.uk/id/local-authority/29UP,Tonbridge & Malling Borough Council,11/9/2022,0022027163/25,22027163, 1146.81,Urbaser LTD,01718800,,Maintenance of Grounds,Parking Off-Street,E10HAE01320402,
http://statistics.data.gov.uk/id/local-authority/29UP,Tonbridge & Malling Borough Council,11/9/2022,0022027163/26,22027163, 87.22,Urbaser LTD,01718800,,Maintenance of Grounds,Parking Off-Street,E10HAE01420402,
http://statistics.data.gov.uk/id/local-authority/29UP,Tonbridge & Malling Borough Council,11/9/2022,0022027163/27,22027163, 268.78,Urbaser LTD,01718800,,Maintenance of Grounds,Parking Off-Street,E10HAE01520402,
http://statistics.data.gov.uk/id/local-authority/29UP,Tonbridge & Malling Borough Council,11/9/2022,0022027163/28,22027163, 289.08,Urbaser LTD,01718800,,Maintenance of Grounds,Parking Off-Street,E10HAE01620402,
http://statistics.data.gov.uk/id/local-authority/29UP,Tonbridge & Malling Borough Council,11/9/2022,0022027163/29,22027163, 853.41,Urbaser LTD,01718800,,Maintenance of Grounds,Parking Off-Street,E10HAE01720402,
http://statistics.data.gov.uk/id/local-authority/29UP,Tonbridge & Malling Borough Council,11/9/2022,0022027163/3,22027163, 387.37,Urbaser LTD,01718800,,Maintenance of Grounds,Sports Grounds,B13ET000020402,
http://statistics.data.gov.uk/id/local-authority/29UP,Tonbridge & Malling Borough Council,11/9/2022,0022027163/30,22027163, 244.95,Urbaser LTD,01718800,,Maintenance of Grounds,Parking Off-Street,E10HAE01920402,
http://statistics.data.gov.uk/id/local-authority/29UP,Tonbridge & Malling Borough Council,11/9/2022,0022027163/31,22027163, 538.07,Urbaser LTD,01718800,,Maintenance of Grounds,Parking Off-Street,E10HAE02020402,
http://statistics.data.gov.uk/id/local-authority/29UP,Tonbridge & Malling Borough Council,11/9/2022,0022027163/32,22027163, 18.68,Urbaser LTD,01718800,,Maintenance of Grounds,Parking Off-Street,E10HAE02120402,
http://statistics.data.gov.uk/id/local-authority/29UP,Tonbridge & Malling Borough Council,11/9/2022,0022027163/33,22027163, 123.00,Urbaser LTD,01718800,,Maintenance of Grounds,Parking Off-Street,E10HAE02220402,
http://statistics.data.gov.uk/id/local-authority/29UP,Tonbridge & Malling Borough Council,11/9/2022,0022027163/34,22027163, 1034.02,Urbaser LTD,01718800,,Maintenance of Grounds,Parking Off-Street,E10HAE02320402,
http://statistics.data.gov.uk/id/local-authority/29UP,Tonbridge & Malling Borough Council,11/9/2022,0022027163/35,22027163, 2.67,Urbaser LTD,01718800,,Maintenance of Grounds,Parking Off-Street,E10HAE02720402,
http://statistics.data.gov.uk/id/local-authority/29UP,Tonbridge & Malling Borough Council,11/9/2022,0022027163/36,22027163, 375.72,Urbaser LTD,01718800,,Maintenance of Grounds,Parking Off-Street,E10HAE02820402,
http://statistics.data.gov.uk/id/local-authority/29UP,Tonbridge & Malling Borough Council,11/9/2022,0022027163/37,22027163, 6.77,Urbaser LTD,01718800,,Maintenance of Grounds,Parking Off-Street,E10HAE02920402,
http://statistics.data.gov.uk/id/local-authority/29UP,Tonbridge & Malling Borough Council,11/9/2022,0022027163/38,22027163, 39.82,Urbaser LTD,01718800,,Maintenance of Grounds,Parking Off-Street,E10HAE03020402,
http://statistics.data.gov.uk/id/local-authority/29UP,Tonbridge & Malling Borough Council,11/9/2022,0022027163/39,22027163, 33.88,Urbaser LTD,01718800,,Maintenance of Grounds,Parking Off-Street,E10HAE03120402,
http://statistics.data.gov.uk/id/local-authority/29UP,Tonbridge & Malling Borough Council,11/9/2022,0022027163/4,22027163, 82.44,Urbaser LTD,01718800,,Maintenance of Grounds,Poult Wood Golf Centre,B21KE000020402,
http://statistics.data.gov.uk/id/local-authority/29UP,Tonbridge & Malling Borough Council,11/9/2022,0022027163/40,22027163, 718.40,Urbaser LTD,01718800,,Maintenance of Grounds,Parking Off-Street,E10HAE04020402,
http://statistics.data.gov.uk/id/local-authority/29UP,Tonbridge & Malling Borough Council,11/9/2022,0022027163/41,22027163, 498.26,Urbaser LTD,01718800,,Maintenance of Grounds,Parking Off-Street,E10HAE04220402,
http://statistics.data.gov.uk/id/local-authority/29UP,Tonbridge & Malling Borough Council,11/9/2022,0022027163/42,22027163, 1430.15,Urbaser LTD,01718800,,Maintenance of Grounds,Parking Off-Street,E10HAE04520402,
http://statistics.data.gov.uk/id/local-authority/29UP,Tonbridge & Malling Borough Council,11/9/2022,0022027163/43,22027163, 92676.10,Urbaser LTD,01718800,,Contract Payments,Refuse Collection,H20SA000054001,
http://statistics.data.gov.uk/id/local-authority/29UP,Tonbridge & Malling Borough Council,11/9/2022,0022027163/44,22027163, 946.15,Urbaser LTD,01718800,,Responsible Dog Ownership,Street Scene,H23SD000044050,
http://statistics.data.gov.uk/id/local-authority/29UP,Tonbridge & Malling Borough Council,11/9/2022,0022027163/45,22027163, 56523.64,Urbaser LTD,01718800,,Contract Payments,Street Scene,H23SD000054001,
http://statistics.data.gov.uk/id/local-authority/29UP,Tonbridge & Malling Borough Council,11/9/2022,0022027163/46,22027163, 356.30,Urbaser LTD,01718800,,General Maintenance,Dry Recycling,H34SR000020301,
http://statistics.data.gov.uk/id/local-authority/29UP,Tonbridge & Malling Borough Council,11/9/2022,0022027163/47,22027163, 84198.36,Urbaser LTD,01718800,,Contract Payments,Dry Recycling,H34SR000054001,
http://statistics.data.gov.uk/id/local-authority/29UP,Tonbridge & Malling Borough Council,11/9/2022,0022027163/48,22027163, 32945.93,Urbaser LTD,01718800,,Contract Payments,Food Recycling,H34SS000054001,
http://statistics.data.gov.uk/id/local-authority/29UP,Tonbridge & Malling Borough Council,11/9/2022,0022027163/49,22027163, 17888.09,Urbaser LTD,01718800,,Contract Payments,Garden Waste Recycling,H34ST000054001,
http://statistics.data.gov.uk/id/local-authority/29UP,Tonbridge & Malling Borough Council,11/9/2022,0022027163/5,22027163, 34.02,Urbaser LTD,01718800,,Maintenance of Grounds,Haysden Country Park,B22LC000020402,
http://statistics.data.gov.uk/id/local-authority/29UP,Tonbridge & Malling Borough Council,11/9/2022,0022027163/6,22027163, 26.13,Urbaser LTD,01718800,,Dog Bin Emptying,Haysden Country Park,B22LC000044012,
http://statistics.data.gov.uk/id/local-authority/29UP,Tonbridge & Malling Borough Council,11/9/2022,0022027163/7,22027163, 740.63,Urbaser LTD,01718800,,Maintenance of Grounds,Open Spaces & Amenity Areas,B22LE000020402,
http://statistics.data.gov.uk/id/local-authority/29UP,Tonbridge & Malling Borough Council,11/9/2022,0022027163/8,22027163, 13.93,Urbaser LTD,01718800,,Dog Bin Emptying,Open Spaces & Amenity Areas,B22LE000044012,
http://statistics.data.gov.uk/id/local-authority/29UP,Tonbridge & Malling Borough Council,11/9/2022,0022027163/9,22027163, 24.04,Urbaser LTD,01718800,,Maintenance of Grounds,Countryside/Woodland Mgt,B22LG000020402,
http://statistics.data.gov.uk/id/local-authority/29UP,Tonbridge & Malling Borough Council,11/9/2022,0022027164/1,22027164, 4322.11,Ward Security LTD,01490000,,Dog Warden,Street Scene,H23SD000044100,
http://statistics.data.gov.uk/id/local-authority/29UP,Tonbridge & Malling Borough Council,11/9/2022,0022027166/1,22027166, 5611.00,Under My Roof Ltd,01806700,,Temporary Accommodation,Homelessness,C01AA000044051,
http://statistics.data.gov.uk/id/local-authority/29UP,Tonbridge & Malling Borough Council,11/9/2022,0022027167/1,22027167, 9774.00,Simon Niblett Lettings,00072600,,Temporary Accommodation,Homelessness,C01AA000044051,
http://statistics.data.gov.uk/id/local-authority/29UP,Tonbridge & Malling Borough Council,11/9/2022,0022027168/1,22027168, 1113.75,Specialist Hygiene Services,01466100,,Cleaning & Domestic Supplies,Haysden Country Park,B22LC000026001,
http://statistics.data.gov.uk/id/local-authority/29UP,Tonbridge & Malling Borough Council,11/9/2022,0022027168/2,22027168, 3925.50,Specialist Hygiene Services,01466100,,Contract Payments,Public Conveniences,H22SC000054001,
http://statistics.data.gov.uk/id/local-authority/29UP,Tonbridge & Malling Borough Council,11/9/2022,0022027169/1,22027169, 250.00,ReferAll Ltd,01817700,,Healthy Living Initiatives,Public Health - Healthy Living,H40SYVH0048145,220003277
http://statistics.data.gov.uk/id/local-authority/29UP,Tonbridge & Malling Borough Council,11/9/2022,0022027170/1,22027170, 490.00,Countrystyle Group,00835900,781981681,Collection of Card,Dry Recycling,H34SR000054008,
http://statistics.data.gov.uk/id/local-authority/29UP,Tonbridge & Malling Borough Council,11/9/2022,0022027171/1,22027171, 2229.60,Acorn Maintenance Services,01036000,,Other Expenses,Disabled Facilities Grant Mand,P03AC000009908,
http://statistics.data.gov.uk/id/local-authority/29UP,Tonbridge & Malling Borough Council,11/9/2022,0031019001/1,31019001, 500.00,Traffic Enforcement Centre,00604200,,Adjudication & Enforcement Ser,Parking Off-Street,E10HA000044230,
http://statistics.data.gov.uk/id/local-authority/29UP,Tonbridge & Malling Borough Council,11/9/2022,0031019001/2,31019001, 500.00,Traffic Enforcement Centre,00604200,,Adjudication & Enforcement Ser,Parking On-Street,E10HD000044230,
http://statistics.data.gov.uk/id/local-authority/29UP,Tonbridge & Malling Borough Council,11/9/2022,0031019004/1,31019004, 450.00,Wellden Land Surveys,01410600,,Professional Fees,Boro Drainage & Land Drainage,E20MA000044001,310042817
http://statistics.data.gov.uk/id/local-authority/29UP,Tonbridge & Malling Borough Council,11/9/2022,0031019005/1,31019005, 2837.33,Tonbridge & Malling Leisure Trust,01469100,,Ticket Refunds - Lower Castle,Parking Off-Street,E10HAE01344199,
http://statistics.data.gov.uk/id/local-authority/29UP,Tonbridge & Malling Borough Council,11/9/2022,0031019006/1,31019006, 104.98,Shell U.K. Oil Products Limited,01673300,,"Petrol, Diesel & Oil",Patrolling,B22LF000030106,
http://statistics.data.gov.uk/id/local-authority/29UP,Tonbridge & Malling Borough Council,11/9/2022,0031019006/2,31019006, 88.81,Shell U.K. Oil Products Limited,01673300,,"Petrol, Diesel & Oil",Parking Off-Street,E10HA000030106,
http://statistics.data.gov.uk/id/local-authority/29UP,Tonbridge & Malling Borough Council,11/9/2022,0031019006/3,31019006, 88.81,Shell U.K. Oil Products Limited,01673300,,"Petrol, Diesel & Oil",Parking On-Street,E10HD000030106,
http://statistics.data.gov.uk/id/local-authority/29UP,Tonbridge & Malling Borough Council,11/9/2022,0031019007/1,31019007, 128.72,Shell U.K. Oil Products Limited,01673300,,"Petrol, Diesel & Oil",Parking Off-Street,E10HA000030106,
http://statistics.data.gov.uk/id/local-authority/29UP,Tonbridge & Malling Borough Council,11/9/2022,0031019007/2,31019007, 128.71,Shell U.K. Oil Products Limited,01673300,,"Petrol, Diesel & Oil",Parking On-Street,E10HD000030106,
http://statistics.data.gov.uk/id/local-authority/29UP,Tonbridge & Malling Borough Council,11/9/2022,0031019009/1,31019009, 449.95,Seymour Hire Ltd,00737200,,Transport Repair & Maintenance,Parking On-Street,E10HD000030103,310042904
http://statistics.data.gov.uk/id/local-authority/29UP,Tonbridge & Malling Borough Council,11/9/2022,0031019010/1,31019010, 21.58,B&Q/Screwfix Direct(TradeUKAccount),00141300,,Purchases,Boro Highways & Emergency Oper,E01AA000040101,
http://statistics.data.gov.uk/id/local-authority/29UP,Tonbridge & Malling Borough Council,11/9/2022,0031019012/1,31019012, 23.93,REDACTED PERSONAL DATA,01344100,,Purchases,Security Services Management,E09GA000040101,
http://statistics.data.gov.uk/id/local-authority/29UP,Tonbridge & Malling Borough Council,11/9/2022,0031019014/1,31019014, 999.30,Patrol,01189800,,Adjudication & Enforcement Ser,Parking Off-Street,E10HA000044230,
http://statistics.data.gov.uk/id/local-authority/29UP,Tonbridge & Malling Borough Council,11/9/2022,0031019016/1,31019016, 2917.99,Marston,01485000,,Adjudication & Enforcement Ser,Parking Off-Street,E10HA000044230,
http://statistics.data.gov.uk/id/local-authority/29UP,Tonbridge & Malling Borough Council,11/9/2022,0031019018/1,31019018, 125.00,Duke Contractors Ltd,00082900,,Maintenance of Grounds,Haysden Country Park,B22LCCARP20402,210056856
http://statistics.data.gov.uk/id/local-authority/29UP,Tonbridge & Malling Borough Council,11/9/2022,0031019018/2,31019018, 1725.00,Duke Contractors Ltd,00082900,,Maintenance of Grounds,Haysden Country Park,B22LCCARP20402,210056856
http://statistics.data.gov.uk/id/local-authority/29UP,Tonbridge & Malling Borough Council,11/9/2022,0031019018/3,31019018, 750.00,Duke Contractors Ltd,00082900,,Maintenance of Grounds,Haysden Country Park,B22LCCARP20402,210056856
http://statistics.data.gov.uk/id/local-authority/29UP,Tonbridge & Malling Borough Council,11/9/2022,0031019018/4,31019018, 567.50,Duke Contractors Ltd,00082900,,Maintenance of Grounds,Haysden Country Park,B22LCCARP20402,210056856
http://statistics.data.gov.uk/id/local-authority/29UP,Tonbridge & Malling Borough Council,11/9/2022,0031019019/1,31019019, 1064.00,Duke Contractors Ltd,00082900,,Maintenance of Grounds,Sports Grounds,B13ETCARP20402,210056857
http://statistics.data.gov.uk/id/local-authority/29UP,Tonbridge & Malling Borough Council,11/9/2022,0031019020/1,31019020, 4955.18,DSSL Group Ltd,01839500,,CCTV Monitoring Station,Security Services Management,E09GA000051020,310042903
http://statistics.data.gov.uk/id/local-authority/29UP,Tonbridge & Malling Borough Council,11/9/2022,0031019021/1,31019021, 43.48,Landscape Services Ltd,00057600,,Maintenance of Grounds,Parking Off-Street,E10HAE01720402,310042813
http://statistics.data.gov.uk/id/local-authority/29UP,Tonbridge & Malling Borough Council,11/9/2022,0031019021/2,31019021, 266.32,Landscape Services Ltd,00057600,,Maintenance of Grounds,Parking Off-Street,E10HAE04020402,310042813
http://statistics.data.gov.uk/id/local-authority/29UP,Tonbridge & Malling Borough Council,11/9/2022,0031019022/1,31019022, 1890.79,CDER Group,01773300,,Adjudication & Enforcement Ser,Parking Off-Street,E10HA000044230,
http://statistics.data.gov.uk/id/local-authority/29UP,Tonbridge & Malling Borough Council,11/9/2022,0031019023/1,31019023, 800.00,Arnold & Court Ltd,01411300,,Repair & Mtce of Fixed Plant,Boro Highways & Emergency Oper,E01AA000020501,310042882
http://statistics.data.gov.uk/id/local-authority/29UP,Tonbridge & Malling Borough Council,11/9/2022,0031019024/1,31019024, 65.00,Royal British Legion Industries Ltd,00139700,,Repair & Mtce of Fixed Plant,Boro Highways & Emergency Oper,E01AA000020501,310042900
http://statistics.data.gov.uk/id/local-authority/29UP,Tonbridge & Malling Borough Council,11/9/2022,0032009888/3,32009888, 1653.00,Vivid Resourcing,01773700,,Temporary Staff,Planning Sals&Overheads,D01AJDJ0111300,
http://statistics.data.gov.uk/id/local-authority/29UP,Tonbridge & Malling Borough Council,11/9/2022,0032009889/3,32009889, 2760.00,Quality Bailiffs,01835600,,Professional Fees,Development Management,A01ABENFO44001,
http://statistics.data.gov.uk/id/local-authority/29UP,Tonbridge & Malling Borough Council,11/9/2022,0032009890/3,32009890, 1652.58,The Oyster Partnership,01196400,,Temporary Staff,Planning Sals&Overheads,D01AJDJ0111300,
http://statistics.data.gov.uk/id/local-authority/29UP,Tonbridge & Malling Borough Council,11/9/2022,0032009891/3,32009891, 1915.65,The Oyster Partnership,01196400,,Temporary Staff,Planning Sals&Overheads,D01AJDJ0111300,
http://statistics.data.gov.uk/id/local-authority/29UP,Tonbridge & Malling Borough Council,11/9/2022,0032009892/3,32009892, 1621.50,The Oyster Partnership,01196400,,Temporary Staff,Planning Sals&Overheads,D01AJDJ0111300,
http://statistics.data.gov.uk/id/local-authority/29UP,Tonbridge & Malling Borough Council,11/9/2022,0032009893/3,32009893, 2043.26,The Oyster Partnership,01196400,,Temporary Staff,Planning Sals&Overheads,D01AJDJ0111300,
http://statistics.data.gov.uk/id/local-authority/29UP,Tonbridge & Malling Borough Council,11/9/2022,0032009894/3,32009894, 1277.10,The Oyster Partnership,01196400,,Temporary Staff,Planning Sals&Overheads,D01AJDJ0111300,
http://statistics.data.gov.uk/id/local-authority/29UP,Tonbridge & Malling Borough Council,11/9/2022,0032009895/3,32009895, 1669.88,The Oyster Partnership,01196400,,Temporary Staff,Planning Sals&Overheads,D01AJDJ0111300,
http://statistics.data.gov.uk/id/local-authority/29UP,Tonbridge & Malling Borough Council,11/9/2022,0032009896/3,32009896, 1265.00,The Oyster Partnership,01196400,,Temporary Staff,Planning Sals&Overheads,D01AJDJ0111300,
http://statistics.data.gov.uk/id/local-authority/29UP,Tonbridge & Malling Borough Council,11/9/2022,0032009897/3,32009897, 2073.65,The Oyster Partnership,01196400,,Temporary Staff,Planning Sals&Overheads,D01AJDJ0111300,
http://statistics.data.gov.uk/id/local-authority/29UP,Tonbridge & Malling Borough Council,11/9/2022,0032009898/1,32009898, 224.91,KM Media Group Ltd,00053900,,Advertising General,Development Management,A01ABZ99944216,310042901
http://statistics.data.gov.uk/id/local-authority/29UP,Tonbridge & Malling Borough Council,11/9/2022,0032009899/1,32009899, 3860.00,Kent County Council,01244700,,Temporary Staff,Planning Sals&Overheads,D01AJDJ0311300,320003462
http://statistics.data.gov.uk/id/local-authority/29UP,Tonbridge & Malling Borough Council,11/9/2022,0032009900/3,32009900, 1147.00,G2 Recruitment Solutions,01786000,,Temporary Staff,Planning Sals&Overheads,D01AJDJ0111300,
http://statistics.data.gov.uk/id/local-authority/29UP,Tonbridge & Malling Borough Council,11/9/2022,0032009901/3,32009901, 1609.50,G2 Recruitment Solutions,01786000,,Temporary Staff,Planning Sals&Overheads,D01AJDJ0111300,
http://statistics.data.gov.uk/id/local-authority/29UP,Tonbridge & Malling Borough Council,11/9/2022,0032009902/3,32009902, 3118.32,G2 Recruitment Solutions,01786000,,Temporary Staff,Planning Sals&Overheads,D01AJDJ0111300,
http://statistics.data.gov.uk/id/local-authority/29UP,Tonbridge & Malling Borough Council,11/9/2022,0032009903/3,32009903, 2590.00,G2 Recruitment Solutions,01786000,,Temporary Staff,Planning Sals&Overheads,D01AJDJ0111300,
http://statistics.data.gov.uk/id/local-authority/29UP,Tonbridge & Malling Borough Council,11/9/2022,0032009904/3,32009904, 1010.50,Carrington West Limited,01844500,,Temporary Staff,Planning Sals&Overheads,D01AJDJ0111300,
http://statistics.data.gov.uk/id/local-authority/29UP,Tonbridge & Malling Borough Council,11/9/2022,0032009905/1,32009905, 2000.00,JBA Consulting,01599000,665300941,Development of Local Plan,Development of Local Plan,A01AE000044023,
http://statistics.data.gov.uk/id/local-authority/29UP,Tonbridge & Malling Borough Council,11/9/2022,0041034899/1,41034899, 252.00,Irrv,00050300,,Reference Books & Publications,Local Revenue & NNDR Collect,D41QA000043010,410032281
http://statistics.data.gov.uk/id/local-authority/29UP,Tonbridge & Malling Borough Council,11/9/2022,0041034900/1,41034900, 171.00,Irrv,00050300,,Reference Books & Publications,Local Revenue & NNDR Collect,D41QA000043010,410032282
http://statistics.data.gov.uk/id/local-authority/29UP,Tonbridge & Malling Borough Council,11/9/2022,0041034902/1,41034902, 9073.00,Kent County Council,00322500,,Tracing Services,Local Revenue & NNDR Collect,D41QA000044091,410032280
http://statistics.data.gov.uk/id/local-authority/29UP,Tonbridge & Malling Borough Council,11/9/2022,0041034903/1,41034903, 385.93,Maidstone Borough Council,01173700,,Bailiffs Commission,Local Revenue & NNDR Collect,D41QA000044075,
http://statistics.data.gov.uk/id/local-authority/29UP,Tonbridge & Malling Borough Council,11/9/2022,0041034904/1,41034904, 2046.26,Maidstone Borough Council,01173700,,Bailiffs Commission,Local Revenue & NNDR Collect,D41QA000044075,
http://statistics.data.gov.uk/id/local-authority/29UP,Tonbridge & Malling Borough Council,11/9/2022,0041034905/1,41034905, 1482.92,Rundle & Co Ltd,00087200,,Bailiffs Commission,Local Revenue & NNDR Collect,D41QA000044075,
http://statistics.data.gov.uk/id/local-authority/29UP,Tonbridge & Malling Borough Council,11/9/2022,0041034906/1,41034906, 1021.19,Rundle & Co Ltd,00087200,,Bailiffs Commission,Local Revenue & NNDR Collect,D41QA000044075,
http://statistics.data.gov.uk/id/local-authority/29UP,Tonbridge & Malling Borough Council,11/9/2022,0041034909/1,41034909, 1148.78,NEC Software Solutions UK Ltd,01073900,202159745,Other Expenses,Housing Benefits,C05CL000048010,410032283
http://statistics.data.gov.uk/id/local-authority/29UP,Tonbridge & Malling Borough Council,11/9/2022,0041034909/2,41034909, 1465.28,NEC Software Solutions UK Ltd,01073900,202159745,Other Expenses,Housing Benefits,C05CL000048010,410032283
http://statistics.data.gov.uk/id/local-authority/29UP,Tonbridge & Malling Borough Council,11/9/2022,0041034910/1,41034910, 93.84,Adelante Software Limited,01393800,812115871,Credit Card Commission,Banking Arrangements,D43QK000044082,
http://statistics.data.gov.uk/id/local-authority/29UP,Tonbridge & Malling Borough Council,11/9/2022,0041034912/1,41034912, 2.92,KCS,00054200,,Purchases,Finance Sals&Overheads,D01AF000040101,410032287
http://statistics.data.gov.uk/id/local-authority/29UP,Tonbridge & Malling Borough Council,11/9/2022,0041034912/2,41034912, 14.25,KCS,00054200,,Stationery,Finance Sals&Overheads,D01AF000043003,410032287
http://statistics.data.gov.uk/id/local-authority/29UP,Tonbridge & Malling Borough Council,11/9/2022,0041034913/3,41034913, 5000.00,Zurich Municipal Managment Services,01094000,,Insurance Employees - General,General Admin Finance,D24GP000013810,
http://statistics.data.gov.uk/id/local-authority/29UP,Tonbridge & Malling Borough Council,11/9/2022,0051008751/1,51008751, 600.00,NEC Software Solutions UK Ltd,01073900,202159745,Ext Fees/Prof & Tech,Training,D10DCDF1113561,510010600
http://statistics.data.gov.uk/id/local-authority/29UP,Tonbridge & Malling Borough Council,11/14/2022,0041034930/1,41034930, 15.20,HSBC Bank Plc,01740800,,Bank Charges,Banking Arrangements,D43QK000044222,
http://statistics.data.gov.uk/id/local-authority/29UP,Tonbridge & Malling Borough Council,11/16/2022,0011045166/1,11045166, 264.60,Harper Collins Publishers,01787600,,Purchases,TIC Stock Account,K18AX000001002,
http://statistics.data.gov.uk/id/local-authority/29UP,Tonbridge & Malling Borough Council,11/16/2022,0011045167/1,11045167, 500.00,G C Industrial Heating Services,00578100,,BRREP Servicing - Heating Syst,Leis Man Poult Wood Golf Centr,M15HEP20001934,110069483
http://statistics.data.gov.uk/id/local-authority/29UP,Tonbridge & Malling Borough Council,11/16/2022,0011045168/1,11045168, 743.00,G C Industrial Heating Services,00578100,,BRREP Servicing - Heating Syst,Angel Centre,M15HAP20001934,110069491
http://statistics.data.gov.uk/id/local-authority/29UP,Tonbridge & Malling Borough Council,11/16/2022,0011045169/1,11045169, 858.00,Loxton Installations Ltd,01278800,,BRREP General Maintenance,Larkfield Leisure Centre,M15HDP10001900,110069851
http://statistics.data.gov.uk/id/local-authority/29UP,Tonbridge & Malling Borough Council,11/16/2022,0011045170/1,11045170, 720.00,G C Industrial Heating Services,00578100,,BRREP Plant renewals,Larkfield Leisure Centre,M15HDP20001909,110069873
http://statistics.data.gov.uk/id/local-authority/29UP,Tonbridge & Malling Borough Council,11/16/2022,0011045171/1,11045171, 335.00,G C Industrial Heating Services,00578100,,BRREP Servicing - Heating Syst,Gibson Building East,M15KGP20001934,110069494
http://statistics.data.gov.uk/id/local-authority/29UP,Tonbridge & Malling Borough Council,11/16/2022,0011045172/1,11045172, 2872.80,Wallgate Ltd,00850000,,BRREP Servicing - WallgateUnit,PC - General,M15JAP20001972,110069782
http://statistics.data.gov.uk/id/local-authority/29UP,Tonbridge & Malling Borough Council,11/16/2022,0011045173/1,11045173, 1500.00,SJC Door Security Installations,01278600,,Economic Development & Regen,Eco Dev & Reg Gen Bus Support,D52TD000047027,110069847
http://statistics.data.gov.uk/id/local-authority/29UP,Tonbridge & Malling Borough Council,11/16/2022,0011045174/1,11045174, 1089.00,G C Industrial Heating Services,00578100,,BRREP Servicing - Heating Syst,Gibson Building West,M15KBP20001934,110069493
http://statistics.data.gov.uk/id/local-authority/29UP,Tonbridge & Malling Borough Council,11/16/2022,0011045175/1,11045175, 312.29,Coolburn Air Conditioning Ltd,01137900,,BRREP Servicing - air handling,Leis Man Poult Wood Golf Centr,M15HEP20001936,110069724
http://statistics.data.gov.uk/id/local-authority/29UP,Tonbridge & Malling Borough Council,11/16/2022,0011045176/1,11045176, 820.00,IWS Water Hygiene,01392400,,BRREP Water Softener,Tonbridge Swimming Pool,M15HBP20001917,110069852
http://statistics.data.gov.uk/id/local-authority/29UP,Tonbridge & Malling Borough Council,11/16/2022,0011045177/1,11045177, 1000.00,Southern Lightning Engineers Ltd,00094000,,BRREP General Maintenance,Larkfield Leisure Centre,M15HDP10001900,110069850
http://statistics.data.gov.uk/id/local-authority/29UP,Tonbridge & Malling Borough Council,11/16/2022,0011045178/1,11045178, 825.05,Chubb Fire & Security Ltd,00115400,174605362,BRREP Servicing-IntruderAlarm,Tonbridge Swimming Pool,M15HBP20001939,110069901
http://statistics.data.gov.uk/id/local-authority/29UP,Tonbridge & Malling Borough Council,11/16/2022,0011045179/1,11045179, 107.04,Edmundson Electrical Ltd,01210900,,Cleaning & Domestic Supplies,Cleaning & Security,D21FD000026001,110069827
http://statistics.data.gov.uk/id/local-authority/29UP,Tonbridge & Malling Borough Council,11/16/2022,0011045179/2,11045179, 119.02,Edmundson Electrical Ltd,01210900,,Cleaning & Domestic Supplies,Cleaning & Security,D21FD000026001,110069827
http://statistics.data.gov.uk/id/local-authority/29UP,Tonbridge & Malling Borough Council,11/16/2022,0011045180/1,11045180, 52.00,Edmundson Electrical Ltd,01210900,,Cleaning & Domestic Supplies,Cleaning & Security,D21FD000026001,110069678
http://statistics.data.gov.uk/id/local-authority/29UP,Tonbridge & Malling Borough Council,11/16/2022,0011045181/1,11045181, 195.00,GreenFish Consulting part of JCML Consul,01627700,,BRREP General Maintenance,Land Review,M15MAP49901900,110069891
http://statistics.data.gov.uk/id/local-authority/29UP,Tonbridge & Malling Borough Council,11/16/2022,0011045182/1,11045182, 79.00,BML Building Services Ltd,01505000,,BRREP Response - General,Gibson Building West,M15KBP50001997,110069858
http://statistics.data.gov.uk/id/local-authority/29UP,Tonbridge & Malling Borough Council,11/16/2022,0011045183/1,11045183, 79.00,BML Building Services Ltd,01505000,,BRREP Response - General,Shops & Maisonettes,M15NAP50001997,110069863
http://statistics.data.gov.uk/id/local-authority/29UP,Tonbridge & Malling Borough Council,11/16/2022,0011045184/3,11045184, 930.37,Papo UK Ltd,01238600,,Purchases,TIC Stock Account,K18AX000001002,
http://statistics.data.gov.uk/id/local-authority/29UP,Tonbridge & Malling Borough Council,11/16/2022,0011045185/3,11045185, 20.47,Oasis Group  - Box-It South East,00966800,931579211,Purchases,Electoral Registration,D31MF000040101,
http://statistics.data.gov.uk/id/local-authority/29UP,Tonbridge & Malling Borough Council,11/16/2022,0011045186/3,11045186, 21.15,Oasis Group  - Box-It South East,00966800,931579211,Purchases,Electoral Registration,D31MF000040101,
http://statistics.data.gov.uk/id/local-authority/29UP,Tonbridge & Malling Borough Council,11/16/2022,0011045187/3,11045187, 21.15,Oasis Group  - Box-It South East,00966800,931579211,Purchases,Electoral Registration,D31MF000040101,
http://statistics.data.gov.uk/id/local-authority/29UP,Tonbridge & Malling Borough Council,11/16/2022,0011045188/3,11045188, 192.00,Premier Group Recycling Ltd,01365300,,Confidential Waste,Cleaning & Security,D21FD000044009,
http://statistics.data.gov.uk/id/local-authority/29UP,Tonbridge & Malling Borough Council,11/16/2022,0011045189/3,11045189, 1729.43,Ricoh UK Ltd,01402300,,Maintenance - General,Printing,D22GA000040135,
http://statistics.data.gov.uk/id/local-authority/29UP,Tonbridge & Malling Borough Council,11/16/2022,0011045190/3,11045190, 243.69,Ricoh UK Ltd,01402300,,Maintenance - General,Printing,D22GA000040135,
http://statistics.data.gov.uk/id/local-authority/29UP,Tonbridge & Malling Borough Council,11/16/2022,0011045191/3,11045191, 1688.14,Royal Mail,00086200,,Purchases,Mailsort Stock Account,K37BR000001002,
http://statistics.data.gov.uk/id/local-authority/29UP,Tonbridge & Malling Borough Council,11/16/2022,0011045191/4,11045191, 2.45,Royal Mail,00086200,,Purchases,Mailsort Stock Account,K37BR000001002,
http://statistics.data.gov.uk/id/local-authority/29UP,Tonbridge & Malling Borough Council,11/16/2022,0011045191/5,11045191, 9.10,Royal Mail,00086200,,Purchases,Mailsort Stock Account,K37BR000001002,
http://statistics.data.gov.uk/id/local-authority/29UP,Tonbridge & Malling Borough Council,11/16/2022,0011045192/3,11045192, 388.32,Royal Mail,00086200,,Postages - Business Reply,Electoral Registration,D31MF000045003,
http://statistics.data.gov.uk/id/local-authority/29UP,Tonbridge & Malling Borough Council,11/16/2022,0011045192/4,11045192, 63.76,Royal Mail,00086200,,Purchases,Business Reply Stock Account,K14AT000001002,
http://statistics.data.gov.uk/id/local-authority/29UP,Tonbridge & Malling Borough Council,11/16/2022,0011045193/3,11045193, 851.20,TMS Protection Ltd,01744300,,Office Security,Cleaning & Security,D21FD000044047,
http://statistics.data.gov.uk/id/local-authority/29UP,Tonbridge & Malling Borough Council,11/16/2022,0011045194/3,11045194, 127.50,K T Fire Protection Ltd,00057000,,BRREP Servicing - FireAlarmSys,Larkfield Leisure Centre,M15HDP20001937,
http://statistics.data.gov.uk/id/local-authority/29UP,Tonbridge & Malling Borough Council,11/16/2022,0011045195/3,11045195, 288.00,Chillmech Limited,00978700,,BRREP Servicing-Air Condition,Tonbridge Swimming Pool,M15HBP20001935,
http://statistics.data.gov.uk/id/local-authority/29UP,Tonbridge & Malling Borough Council,11/16/2022,0011045196/3,11045196, 1862.67,GSF SANDYLIGHT LTD,01705300,,Temporary Staff,Admin & Prop Sals&Overheads,D01AADA0511300,
http://statistics.data.gov.uk/id/local-authority/29UP,Tonbridge & Malling Borough Council,11/16/2022,0011045197/3,11045197, 4271.60,Cornerstones Barristers,01359100,,Other Planning Enq - Legal Cos,Legal Sals&Overheads,D01ARDR0044146,
http://statistics.data.gov.uk/id/local-authority/29UP,Tonbridge & Malling Borough Council,11/16/2022,0011045198/3,11045198, 344.83,Initial Washroom Hygiene,00048300,,Laundry - Roller Towels,Cleaning & Security,D21FD000042003,
http://statistics.data.gov.uk/id/local-authority/29UP,Tonbridge & Malling Borough Council,11/16/2022,0011045199/3,11045199, 168.39,Papo UK Ltd,01238600,,Purchases,TIC Stock Account,K18AX000001002,
http://statistics.data.gov.uk/id/local-authority/29UP,Tonbridge & Malling Borough Council,11/16/2022,0011045200/3,11045200, 1217.80,Sellick Partnership Group Limited,01336800,,Temporary Staff,Legal Sals&Overheads,D01ARDR0011300,
http://statistics.data.gov.uk/id/local-authority/29UP,Tonbridge & Malling Borough Council,11/16/2022,0011045201/3,11045201, 63.60,Kent Crisps Ltd,01806500,,Purchases,TIC Stock Account,K18AX000001002,
http://statistics.data.gov.uk/id/local-authority/29UP,Tonbridge & Malling Borough Council,11/16/2022,0011045202/1,11045202, 5000.00,Fleet Retail Packaging Ltd,01871400,,Economic Development & Regen,Eco Dev & Reg Gen Bus Support,D52TD000047027,
http://statistics.data.gov.uk/id/local-authority/29UP,Tonbridge & Malling Borough Council,11/16/2022,0011045203/1,11045203, 2087.00,Bravo Productions Castlems Ltd,01770200,,Economic Development & Regen,Eco Dev & Reg Gen Bus Support,D52TD000047027,
http://statistics.data.gov.uk/id/local-authority/29UP,Tonbridge & Malling Borough Council,11/16/2022,0011045204/3,11045204, 525.00,Francis Taylor Building,01688700,,Other Planning Enq - Legal Cos,Legal Sals&Overheads,D01ARDR0044146,
http://statistics.data.gov.uk/id/local-authority/29UP,Tonbridge & Malling Borough Council,11/16/2022,0011045205/1,11045205, 9000.00,Wrotham Parish Council,00115501,,Contributions to Other Bodies,Public Conveniences,H22SC000048018,
http://statistics.data.gov.uk/id/local-authority/29UP,Tonbridge & Malling Borough Council,11/16/2022,0011045206/3,11045206, 3349.25,Royal Mail,00086200,,Purchases,Mailsort Stock Account,K37BR000001002,
http://statistics.data.gov.uk/id/local-authority/29UP,Tonbridge & Malling Borough Council,11/16/2022,0011045206/4,11045206, 44.27,Royal Mail,00086200,,Purchases,Mailsort Stock Account,K37BR000001002,
http://statistics.data.gov.uk/id/local-authority/29UP,Tonbridge & Malling Borough Council,11/16/2022,0011045206/5,11045206, 3.50,Royal Mail,00086200,,Purchases,Mailsort Stock Account,K37BR000001002,
http://statistics.data.gov.uk/id/local-authority/29UP,Tonbridge & Malling Borough Council,11/16/2022,0011045207/1,11045207, 150.00,Claire Beale,01872400,,Purchases,TIC Stock Account,K18AX000001002,
http://statistics.data.gov.uk/id/local-authority/29UP,Tonbridge & Malling Borough Council,11/16/2022,0012008533/1,12008533, 3.00,O2 UK Ltd,01268000,,Telephones - General,Open Spaces & Amenity Areas,B22LE000045010,
http://statistics.data.gov.uk/id/local-authority/29UP,Tonbridge & Malling Borough Council,11/16/2022,0012008533/10,12008533, 9.00,O2 UK Ltd,01268000,,Mobile Telephones,Technical Sals&Overheads,D01AEDE0245013,
http://statistics.data.gov.uk/id/local-authority/29UP,Tonbridge & Malling Borough Council,11/16/2022,0012008533/11,12008533, 42.77,O2 UK Ltd,01268000,,Mobile Telephones,Technical Sals&Overheads,D01AEDE0445013,
http://statistics.data.gov.uk/id/local-authority/29UP,Tonbridge & Malling Borough Council,11/16/2022,0012008533/12,12008533, 3.00,O2 UK Ltd,01268000,,Mobile Telephones,Technical Sals&Overheads,D01AEDE0545013,
http://statistics.data.gov.uk/id/local-authority/29UP,Tonbridge & Malling Borough Council,11/16/2022,0012008533/13,12008533, 12.00,O2 UK Ltd,01268000,,Mobile Telephones,Finance Sals&Overheads,D01AFDF0045013,
http://statistics.data.gov.uk/id/local-authority/29UP,Tonbridge & Malling Borough Council,11/16/2022,0012008533/14,12008533, 6.00,O2 UK Ltd,01268000,,Mobile Telephones,Finance Sals&Overheads,D01AFDF0945013,
http://statistics.data.gov.uk/id/local-authority/29UP,Tonbridge & Malling Borough Council,11/16/2022,0012008533/15,12008533, 12.00,O2 UK Ltd,01268000,,Mobile Telephones,St Scene & Leis Sals&Overheads,D01AGDG0045013,
http://statistics.data.gov.uk/id/local-authority/29UP,Tonbridge & Malling Borough Council,11/16/2022,0012008533/16,12008533, 12.00,O2 UK Ltd,01268000,,Mobile Telephones,St Scene & Leis Sals&Overheads,D01AGDG0145013,
http://statistics.data.gov.uk/id/local-authority/29UP,Tonbridge & Malling Borough Council,11/16/2022,0012008533/17,12008533, 9.00,O2 UK Ltd,01268000,,Mobile Telephones,St Scene & Leis Sals&Overheads,D01AGDG0445013,
http://statistics.data.gov.uk/id/local-authority/29UP,Tonbridge & Malling Borough Council,11/16/2022,0012008533/18,12008533, 37.30,O2 UK Ltd,01268000,,Mobile Telephones,St Scene & Leis Sals&Overheads,D01AGDG2045013,
http://statistics.data.gov.uk/id/local-authority/29UP,Tonbridge & Malling Borough Council,11/16/2022,0012008533/19,12008533, 9.00,O2 UK Ltd,01268000,,Mobile Telephones,Planning Sals&Overheads,D01AJDJ0045013,
http://statistics.data.gov.uk/id/local-authority/29UP,Tonbridge & Malling Borough Council,11/16/2022,0012008533/2,12008533, 6.00,O2 UK Ltd,01268000,,Mobile Telephones,Admin & Prop Sals&Overheads,D01AADA0045013,
http://statistics.data.gov.uk/id/local-authority/29UP,Tonbridge & Malling Borough Council,11/16/2022,0012008533/20,12008533, 12.10,O2 UK Ltd,01268000,,Mobile Telephones,Planning Sals&Overheads,D01AJDJ0245013,
http://statistics.data.gov.uk/id/local-authority/29UP,Tonbridge & Malling Borough Council,11/16/2022,0012008533/21,12008533, 6.00,O2 UK Ltd,01268000,,Mobile Telephones,Legal Sals&Overheads,D01ARDR0045013,
http://statistics.data.gov.uk/id/local-authority/29UP,Tonbridge & Malling Borough Council,11/16/2022,0012008533/22,12008533, 12.00,O2 UK Ltd,01268000,,Mobile Telephones,Legal Sals&Overheads,D01ARDR0445013,
http://statistics.data.gov.uk/id/local-authority/29UP,Tonbridge & Malling Borough Council,11/16/2022,0012008533/23,12008533, 3.00,O2 UK Ltd,01268000,,Mobile Telephones,Legal Sals&Overheads,D01ARDR0745013,
http://statistics.data.gov.uk/id/local-authority/29UP,Tonbridge & Malling Borough Council,11/16/2022,0012008533/24,12008533, 3.00,O2 UK Ltd,01268000,,Mobile Telephones,Env Hlth & Hsg Sals&Overheads,D01AVDV0045013,
http://statistics.data.gov.uk/id/local-authority/29UP,Tonbridge & Malling Borough Council,11/16/2022,0012008533/25,12008533, 9.00,O2 UK Ltd,01268000,,Mobile Telephones,Env Hlth & Hsg Sals&Overheads,D01AVDV0145013,
http://statistics.data.gov.uk/id/local-authority/29UP,Tonbridge & Malling Borough Council,11/16/2022,0012008533/26,12008533, 6.00,O2 UK Ltd,01268000,,Mobile Telephones,Env Hlth & Hsg Sals&Overheads,D01AVDV0345013,
http://statistics.data.gov.uk/id/local-authority/29UP,Tonbridge & Malling Borough Council,11/16/2022,0012008533/27,12008533, 3.00,O2 UK Ltd,01268000,,Mobile Telephones,Env Hlth & Hsg Sals&Overheads,D01AVDV0745013,
http://statistics.data.gov.uk/id/local-authority/29UP,Tonbridge & Malling Borough Council,11/16/2022,0012008533/28,12008533, 6.00,O2 UK Ltd,01268000,,Mobile Telephones,Env Hlth & Hsg Sals&Overheads,D01AVDV0945013,
http://statistics.data.gov.uk/id/local-authority/29UP,Tonbridge & Malling Borough Council,11/16/2022,0012008533/29,12008533, 9.40,O2 UK Ltd,01268000,,Mobile Telephones,Customer Services,D23CS000045013,
http://statistics.data.gov.uk/id/local-authority/29UP,Tonbridge & Malling Borough Council,11/16/2022,0012008533/3,12008533, 3.00,O2 UK Ltd,01268000,,Mobile Telephones,Admin & Prop Sals&Overheads,D01AADA1045013,
http://statistics.data.gov.uk/id/local-authority/29UP,Tonbridge & Malling Borough Council,11/16/2022,0012008533/30,12008533, 3.20,O2 UK Ltd,01268000,,Mobile Telephones,Tonbridge Gateway,D23TG000045013,
http://statistics.data.gov.uk/id/local-authority/29UP,Tonbridge & Malling Borough Council,11/16/2022,0012008533/31,12008533, 627.00,O2 UK Ltd,01268000,,Leased Lines & Modems,Information Technology,D27KD000045011,
http://statistics.data.gov.uk/id/local-authority/29UP,Tonbridge & Malling Borough Council,11/16/2022,0012008533/32,12008533, 3.00,O2 UK Ltd,01268000,,Mobile Telephones,Mayoral & Other Member Support,D29LX000045013,
http://statistics.data.gov.uk/id/local-authority/29UP,Tonbridge & Malling Borough Council,11/16/2022,0012008533/33,12008533, 3.00,O2 UK Ltd,01268000,,Emergency Out of Hours Recharg,Refuse Collection,H20SA000045030,
http://statistics.data.gov.uk/id/local-authority/29UP,Tonbridge & Malling Borough Council,11/16/2022,0012008533/34,12008533, 3.00,O2 UK Ltd,01268000,,Emergency Out of Hours Recharg,Street Scene,H23SD000045030,
http://statistics.data.gov.uk/id/local-authority/29UP,Tonbridge & Malling Borough Council,11/16/2022,0012008533/4,12008533, 9.08,O2 UK Ltd,01268000,,Mobile Telephones,Admin & Prop Sals&Overheads,D01AADA1245013,
http://statistics.data.gov.uk/id/local-authority/29UP,Tonbridge & Malling Borough Council,11/16/2022,0012008533/5,12008533, 3.00,O2 UK Ltd,01268000,,Mobile Telephones,Chief Exec Sals&Overheads,D01ACDC0045013,
http://statistics.data.gov.uk/id/local-authority/29UP,Tonbridge & Malling Borough Council,11/16/2022,0012008533/6,12008533, 3.00,O2 UK Ltd,01268000,,Mobile Telephones,Chief Exec Sals&Overheads,D01ACDC0145013,
http://statistics.data.gov.uk/id/local-authority/29UP,Tonbridge & Malling Borough Council,11/16/2022,0012008533/7,12008533, 3.00,O2 UK Ltd,01268000,,Mobile Telephones,Chief Exec Sals&Overheads,D01ACDC0245013,
http://statistics.data.gov.uk/id/local-authority/29UP,Tonbridge & Malling Borough Council,11/16/2022,0012008533/8,12008533, 3.00,O2 UK Ltd,01268000,,Mobile Telephones,Technical Sals&Overheads,D01AEDE0045013,
http://statistics.data.gov.uk/id/local-authority/29UP,Tonbridge & Malling Borough Council,11/16/2022,0012008533/9,12008533, 6.00,O2 UK Ltd,01268000,,Mobile Telephones,Technical Sals&Overheads,D01AEDE0145013,
http://statistics.data.gov.uk/id/local-authority/29UP,Tonbridge & Malling Borough Council,11/16/2022,0012008534/1,12008534, 199.95,CCS Media Ltd,00018000,,Purchases,Information Technology,D27KD000040101,410032289
http://statistics.data.gov.uk/id/local-authority/29UP,Tonbridge & Malling Borough Council,11/16/2022,0012008534/2,12008534, 9.95,CCS Media Ltd,00018000,,Delivery Expenses,Information Technology,D27KD000044069,410032289
http://statistics.data.gov.uk/id/local-authority/29UP,Tonbridge & Malling Borough Council,11/16/2022,0012008535/1,12008535, 4.25,KCS,00054200,,Copy Charges,Multi Function Devices,D22GB000040125,
http://statistics.data.gov.uk/id/local-authority/29UP,Tonbridge & Malling Borough Council,11/16/2022,0012008536/1,12008536, 22.86,KCS,00054200,,Copy Charges,Multi Function Devices,D22GB000040125,
http://statistics.data.gov.uk/id/local-authority/29UP,Tonbridge & Malling Borough Council,11/16/2022,0012008537/1,12008537, 2.85,KCS,00054200,,Copy Charges,Multi Function Devices,D22GB000040125,
http://statistics.data.gov.uk/id/local-authority/29UP,Tonbridge & Malling Borough Council,11/16/2022,0012008538/1,12008538, 6.91,KCS,00054200,,Copy Charges,Multi Function Devices,D22GB000040125,
http://statistics.data.gov.uk/id/local-authority/29UP,Tonbridge & Malling Borough Council,11/16/2022,0012008539/1,12008539, 0.02,KCS,00054200,,Copy Charges,Multi Function Devices,D22GB000040125,
http://statistics.data.gov.uk/id/local-authority/29UP,Tonbridge & Malling Borough Council,11/16/2022,0012008540/3,12008540, 83.48,KCS,00054200,,Copy Charges,Multi Function Devices,D22GB000040125,
http://statistics.data.gov.uk/id/local-authority/29UP,Tonbridge & Malling Borough Council,11/16/2022,0012008541/1,12008541, 0.01,KCS,00054200,,Copy Charges,Multi Function Devices,D22GB000040125,
http://statistics.data.gov.uk/id/local-authority/29UP,Tonbridge & Malling Borough Council,11/16/2022,0012008542/3,12008542, 3.53,KCS,00054200,,Copy Charges,Multi Function Devices,D22GB000040125,
http://statistics.data.gov.uk/id/local-authority/29UP,Tonbridge & Malling Borough Council,11/16/2022,0012008543/3,12008543, 151.79,KCS,00054200,,Copy Charges,Multi Function Devices,D22GB000040125,
http://statistics.data.gov.uk/id/local-authority/29UP,Tonbridge & Malling Borough Council,11/16/2022,0021038264/1,21038264, 2689.85,Castle Water,01696500,,Water Charges (Metered),Haysden Country Park,B22LC000024001,
http://statistics.data.gov.uk/id/local-authority/29UP,Tonbridge & Malling Borough Council,11/16/2022,0021038265/1,21038265, 2818.96,Castle Water,01696500,,Water Charges (Metered),Haysden Country Park,B22LC000024001,
http://statistics.data.gov.uk/id/local-authority/29UP,Tonbridge & Malling Borough Council,11/16/2022,0021038266/1,21038266, 12.50,Scottish Water Business Stream Ltd,01641100,,Sewerage Charges,Cemetery,B26MP000024003,
http://statistics.data.gov.uk/id/local-authority/29UP,Tonbridge & Malling Borough Council,11/16/2022,0021038267/1,21038267, 19.99,KCS,00054200,,Purchases,Haysden Country Park,B22LC000040101,210057037
http://statistics.data.gov.uk/id/local-authority/29UP,Tonbridge & Malling Borough Council,11/16/2022,0021038267/2,21038267, 5.90,KCS,00054200,,Purchases,Haysden Country Park,B22LC000040101,210057037
http://statistics.data.gov.uk/id/local-authority/29UP,Tonbridge & Malling Borough Council,11/16/2022,0021038267/3,21038267, 6.95,KCS,00054200,,Purchases,Haysden Country Park,B22LC000040101,210057037
http://statistics.data.gov.uk/id/local-authority/29UP,Tonbridge & Malling Borough Council,11/16/2022,0021038267/4,21038267, 49.98,KCS,00054200,,Purchases,Haysden Country Park,B22LC000040101,210057037
http://statistics.data.gov.uk/id/local-authority/29UP,Tonbridge & Malling Borough Council,11/16/2022,0021038268/1,21038268, 752.50,KCC - L.A.S.E.R Commercial Services ,00184300,,Electricity,Haysden Country Park,B22LC000021002,
http://statistics.data.gov.uk/id/local-authority/29UP,Tonbridge & Malling Borough Council,11/16/2022,0021038269/1,21038269, 1641.91,KCC - L.A.S.E.R Commercial Services ,00184300,,Electricity,Haysden Country Park,B22LC000021002,
http://statistics.data.gov.uk/id/local-authority/29UP,Tonbridge & Malling Borough Council,11/16/2022,0021038270/1,21038270, 2055.85,KCC - L.A.S.E.R Commercial Services ,00184300,,Electricity,Haysden Country Park,B22LC000021002,
http://statistics.data.gov.uk/id/local-authority/29UP,Tonbridge & Malling Borough Council,11/16/2022,0021038271/1,21038271, 2202.56,KCC - L.A.S.E.R Commercial Services ,00184300,,Electricity,Haysden Country Park,B22LC000021002,
http://statistics.data.gov.uk/id/local-authority/29UP,Tonbridge & Malling Borough Council,11/16/2022,0021038272/1,21038272, 685.66,Atlas Facilities Managment Limited ,01075900,,Gates / Security,Patrolling,B22LF000044017,210056716
http://statistics.data.gov.uk/id/local-authority/29UP,Tonbridge & Malling Borough Council,11/16/2022,0021038273/1,21038273, 1580.00,Green Leaf Tree & Landscapes Limited,01860500,,Health & Safety - Trees,Countryside/Woodland Mgt,B22LG000044045,210056973
http://statistics.data.gov.uk/id/local-authority/29UP,Tonbridge & Malling Borough Council,11/16/2022,0022027172/1,22027172, 3.00,Tonbridge & Malling Borough Council,00103700,,Professional Fees,Private Sector Housing Renewal,C03BD000044001,
http://statistics.data.gov.uk/id/local-authority/29UP,Tonbridge & Malling Borough Council,11/16/2022,0022027173/1,22027173, 6386.00,Swale Heating Ltd,00099500,,Other Expenses,Housing Assistance,P03AD000009908,
http://statistics.data.gov.uk/id/local-authority/29UP,Tonbridge & Malling Borough Council,11/16/2022,0022027174/1,22027174, 1475.00,PSR Lighting & Signs Ltd,01265400,,Initial Furniture & Equipment,Air Quality Monitoring Station,P02EN000009906,220003276
http://statistics.data.gov.uk/id/local-authority/29UP,Tonbridge & Malling Borough Council,11/16/2022,0022027175/1,22027175, 37.41,Maidstone Borough Council,01173700,,Council Tax,Homelessness,C01AA000023002,
http://statistics.data.gov.uk/id/local-authority/29UP,Tonbridge & Malling Borough Council,11/16/2022,0022027176/3,22027176, 245.00,Countrystyle Group,00835900,781981681,Collection of Card,Dry Recycling,H34SR000054008,
http://statistics.data.gov.uk/id/local-authority/29UP,Tonbridge & Malling Borough Council,11/16/2022,0022027177/1,22027177, 250.00,Kent Accommodation Ltd,01722000,,Professional Fees,Homelessness,C01AA000044001,
http://statistics.data.gov.uk/id/local-authority/29UP,Tonbridge & Malling Borough Council,11/16/2022,0022027178/3,22027178, 8.58,Mrs D Pellen,01151100,,Health General,Food & Safety - General,H35SW000044049,
http://statistics.data.gov.uk/id/local-authority/29UP,Tonbridge & Malling Borough Council,11/16/2022,0022027179/3,22027179, 9.75,REDACTED PERSONAL DATA,01139500,,Health General,Food & Safety - General,H35SW000044049,
http://statistics.data.gov.uk/id/local-authority/29UP,Tonbridge & Malling Borough Council,11/16/2022,0022027180/1,22027180, 692.00,DM Marketing Communications,01742000,,Publicity & Promotion,Dry Recycling,H34SRZ99944217,220003278
http://statistics.data.gov.uk/id/local-authority/29UP,Tonbridge & Malling Borough Council,11/16/2022,0022027180/2,22027180, 60.00,DM Marketing Communications,01742000,,Publicity & Promotion,Dry Recycling,H34SRZ99944217,220003278
http://statistics.data.gov.uk/id/local-authority/29UP,Tonbridge & Malling Borough Council,11/16/2022,0022027181/1,22027181, 4253.49,Clarion Housing,01776300,,Temporary Accommodation,Homelessness,C01AA000044051,
http://statistics.data.gov.uk/id/local-authority/29UP,Tonbridge & Malling Borough Council,11/16/2022,0022027182/1,22027182, 3700.41,Clarion Housing,01776300,,Temporary Accommodation,Homelessness,C01AA000044051,
http://statistics.data.gov.uk/id/local-authority/29UP,Tonbridge & Malling Borough Council,11/16/2022,0022027183/1,22027183, 3126.31,Clarion Housing,01776300,,Temporary Accommodation,Homelessness,C01AA000044051,
http://statistics.data.gov.uk/id/local-authority/29UP,Tonbridge & Malling Borough Council,11/16/2022,0022027184/1,22027184, 3.00,Tonbridge & Malling Borough Council,00103700,,Other Expenses,Housing Assistance,P03AD000009908,
http://statistics.data.gov.uk/id/local-authority/29UP,Tonbridge & Malling Borough Council,11/16/2022,0022027185/1,22027185, 1120.56,Town & Country Housing Group,01385400,,Other Expenses,Disabled Facilities Grant Mand,P03AC000009908,
http://statistics.data.gov.uk/id/local-authority/29UP,Tonbridge & Malling Borough Council,11/16/2022,0022027186/1,22027186, 410.00,Gregory (Kent) LTD,01310800,,Other Expenses,Disabled Facilities Grant Mand,P03AC000009908,
http://statistics.data.gov.uk/id/local-authority/29UP,Tonbridge & Malling Borough Council,11/16/2022,0022027187/1,22027187, 3.00,Tonbridge & Malling Borough Council,00103700,,Other Expenses,Housing Assistance,P03AD000009908,
http://statistics.data.gov.uk/id/local-authority/29UP,Tonbridge & Malling Borough Council,11/16/2022,0022027188/3,22027188, 385.00,Monitor Pest Control Ltd,01476700,,Other Expenses,Pest Control,H24SE000048010,
http://statistics.data.gov.uk/id/local-authority/29UP,Tonbridge & Malling Borough Council,11/16/2022,0022027189/1,22027189, 3703.26,Clarion Housing,01776300,,Temporary Accommodation,Homelessness,C01AA000044051,
http://statistics.data.gov.uk/id/local-authority/29UP,Tonbridge & Malling Borough Council,11/16/2022,0022027190/1,22027190, 3879.56,Clarion Housing,01776300,,Temporary Accommodation,Homelessness,C01AA000044051,
http://statistics.data.gov.uk/id/local-authority/29UP,Tonbridge & Malling Borough Council,11/16/2022,0022027191/1,22027191, 5992.86,Acorn Maintenance Services,01036000,,Other Expenses,Disabled Facilities Grant Mand,P03AC000009908,
http://statistics.data.gov.uk/id/local-authority/29UP,Tonbridge & Malling Borough Council,11/16/2022,0022027192/1,22027192, 862.97,Town & Country Housing Group,01385400,,Other Expenses,Disabled Facilities Grant Mand,P03AC000009908,
http://statistics.data.gov.uk/id/local-authority/29UP,Tonbridge & Malling Borough Council,11/16/2022,0022027193/1,22027193, 17280.00,Ascendit Lifts Ltd,00446600,,Other Expenses,Disabled Facilities Grant Mand,P03AC000009908,
http://statistics.data.gov.uk/id/local-authority/29UP,Tonbridge & Malling Borough Council,11/16/2022,0022027194/1,22027194, 3718.20,All Star Heating & Plumbing Ltd,01779100,,Other Expenses,Housing Assistance,P03AD000009908,
http://statistics.data.gov.uk/id/local-authority/29UP,Tonbridge & Malling Borough Council,11/16/2022,0022027195/1,22027195, 6.00,Tonbridge & Malling Borough Council,00103700,,Other Expenses,Housing Assistance,P03AD000009908,
http://statistics.data.gov.uk/id/local-authority/29UP,Tonbridge & Malling Borough Council,11/16/2022,0031019013/5,31019013, 320.49,REDACTED PERSONAL DATA,01344100,,Tonbridge Christmas Lighting,Eco Dev & Reg Ton Chris Light,D52TF000047015,
http://statistics.data.gov.uk/id/local-authority/29UP,Tonbridge & Malling Borough Council,11/16/2022,0031019033/1,31019033, 30.55,Phoenix Commercial Collections,01490200,,Adjudication & Enforcement Ser,Parking Off-Street,E10HA000044230,
http://statistics.data.gov.uk/id/local-authority/29UP,Tonbridge & Malling Borough Council,11/16/2022,0031019034/1,31019034, 299.97,Phoenix Commercial Collections,01490200,,Adjudication & Enforcement Ser,Parking Off-Street,E10HA000044230,
http://statistics.data.gov.uk/id/local-authority/29UP,Tonbridge & Malling Borough Council,11/16/2022,0031019035/1,31019035, 114.00,CDER Group,01773300,,Adjudication & Enforcement Ser,Parking Off-Street,E10HA000044230,
http://statistics.data.gov.uk/id/local-authority/29UP,Tonbridge & Malling Borough Council,11/16/2022,0031019036/1,31019036, 985.78,CDER Group,01773300,,Adjudication & Enforcement Ser,Parking Off-Street,E10HA000044230,
http://statistics.data.gov.uk/id/local-authority/29UP,Tonbridge & Malling Borough Council,11/16/2022,0031019037/1,31019037, 870.55,CDER Group,01773300,,Adjudication & Enforcement Ser,Parking Off-Street,E10HA000044230,
http://statistics.data.gov.uk/id/local-authority/29UP,Tonbridge & Malling Borough Council,11/16/2022,0031019038/1,31019038, 56.31,CDER Group,01773300,,Adjudication & Enforcement Ser,Parking Off-Street,E10HA000044230,
http://statistics.data.gov.uk/id/local-authority/29UP,Tonbridge & Malling Borough Council,11/16/2022,0031019039/3,31019039, 1260.00,Sevenoaks District Council,00089300,,Out of Hours Service,Civil Contingencies,D33NA000045025,
http://statistics.data.gov.uk/id/local-authority/29UP,Tonbridge & Malling Borough Council,11/16/2022,0031019040/3,31019040, 379.34,Security Plus + Limited,01815500,536937019,Cash Collection,Parking Off-Street,E10HA000044007,
http://statistics.data.gov.uk/id/local-authority/29UP,Tonbridge & Malling Borough Council,11/16/2022,0031019041/3,31019041, 9673.00,Security Plus + Limited,01815500,536937019,Cash Collection,Parking Off-Street,E10HA000044007,
http://statistics.data.gov.uk/id/local-authority/29UP,Tonbridge & Malling Borough Council,11/16/2022,0031019042/3,31019042, 1858.36,Security Plus + Limited,01815500,536937019,Cash Collection,Parking Off-Street,E10HA000044007,
http://statistics.data.gov.uk/id/local-authority/29UP,Tonbridge & Malling Borough Council,11/16/2022,0031019043/3,31019043, 1191.50,Security Plus + Limited,01815500,536937019,Cash Collection,Parking Off-Street,E10HA000044007,
http://statistics.data.gov.uk/id/local-authority/29UP,Tonbridge & Malling Borough Council,11/16/2022,0031019045/1,31019045, 46.29,Royal British Legion Industries Ltd,00139700,,Premises Repairs & Maintenance,Parking On-Street,E10HD000020601,310042920
http://statistics.data.gov.uk/id/local-authority/29UP,Tonbridge & Malling Borough Council,11/16/2022,0031019046/1,31019046, 199.94,Royal British Legion Industries Ltd,00139700,,Premises Repairs & Maintenance,Parking On-Street,E10HD000020601,310042912
http://statistics.data.gov.uk/id/local-authority/29UP,Tonbridge & Malling Borough Council,11/16/2022,0032009906/3,32009906, 1354.50,Carrington West Limited,01844500,,Temporary Staff,Planning Sals&Overheads,D01AJDJ0111300,
http://statistics.data.gov.uk/id/local-authority/29UP,Tonbridge & Malling Borough Council,11/16/2022,0032009907/1,32009907, 1023.11,The Oyster Partnership,01196400,,Temporary Staff,Planning Sals&Overheads,D01AJDJ0111300,
http://statistics.data.gov.uk/id/local-authority/29UP,Tonbridge & Malling Borough Council,11/16/2022,0032009908/1,32009908, 1750.10,The Oyster Partnership,01196400,,Temporary Staff,Planning Sals&Overheads,D01AJDJ0111300,
http://statistics.data.gov.uk/id/local-authority/29UP,Tonbridge & Malling Borough Council,11/16/2022,0032009909/1,32009909, 1721.32,The Oyster Partnership,01196400,,Temporary Staff,Planning Sals&Overheads,D01AJDJ0111300,
http://statistics.data.gov.uk/id/local-authority/29UP,Tonbridge & Malling Borough Council,11/16/2022,0032009910/1,32009910, 2054.29,The Oyster Partnership,01196400,,Temporary Staff,Planning Sals&Overheads,D01AJDJ0111300,
http://statistics.data.gov.uk/id/local-authority/29UP,Tonbridge & Malling Borough Council,11/16/2022,0032009911/1,32009911, 182.07,KM Media Group Ltd,00053900,,Advertising General,Development Management,A01ABZ99944216,320003458
http://statistics.data.gov.uk/id/local-authority/29UP,Tonbridge & Malling Borough Council,11/16/2022,0032009912/1,32009912, 1147.00,G2 Recruitment Solutions,01786000,,Temporary Staff,Planning Sals&Overheads,D01AJDJ0111300,
http://statistics.data.gov.uk/id/local-authority/29UP,Tonbridge & Malling Borough Council,11/16/2022,0032009913/1,32009913, 1305.00,G2 Recruitment Solutions,01786000,,Temporary Staff,Planning Sals&Overheads,D01AJDJ0111300,
http://statistics.data.gov.uk/id/local-authority/29UP,Tonbridge & Malling Borough Council,11/16/2022,0032009914/3,32009914, 2957.86,G2 Recruitment Solutions,01786000,,Temporary Staff,Planning Sals&Overheads,D01AJDJ0111300,
http://statistics.data.gov.uk/id/local-authority/29UP,Tonbridge & Malling Borough Council,11/16/2022,0032009915/1,32009915, 2590.00,G2 Recruitment Solutions,01786000,,Temporary Staff,Planning Sals&Overheads,D01AJDJ0111300,
http://statistics.data.gov.uk/id/local-authority/29UP,Tonbridge & Malling Borough Council,11/16/2022,0041034920/1,41034920, 80.00,WorldPay Ltd,01402000,991280207,Credit Card Commission,Banking Arrangements,D43QK000044082,
http://statistics.data.gov.uk/id/local-authority/29UP,Tonbridge & Malling Borough Council,11/16/2022,0041034920/2,41034920, 203.20,WorldPay Ltd,01402000,991280207,Credit Card Commission,Banking Arrangements,D43QK000044082,
http://statistics.data.gov.uk/id/local-authority/29UP,Tonbridge & Malling Borough Council,11/16/2022,0041034920/3,41034920, 0.72,WorldPay Ltd,01402000,991280207,Credit Card Commission,Banking Arrangements,D43QK000044082,
http://statistics.data.gov.uk/id/local-authority/29UP,Tonbridge & Malling Borough Council,11/16/2022,0041034921/1,41034921, 80.00,WorldPay Ltd,01402000,991280207,Credit Card Commission,Banking Arrangements,D43QK000044082,
http://statistics.data.gov.uk/id/local-authority/29UP,Tonbridge & Malling Borough Council,11/16/2022,0041034921/2,41034921, 853.60,WorldPay Ltd,01402000,991280207,Credit Card Commission,Banking Arrangements,D43QK000044082,
http://statistics.data.gov.uk/id/local-authority/29UP,Tonbridge & Malling Borough Council,11/16/2022,0041034921/3,41034921, 1.12,WorldPay Ltd,01402000,991280207,Credit Card Commission,Banking Arrangements,D43QK000044082,
http://statistics.data.gov.uk/id/local-authority/29UP,Tonbridge & Malling Borough Council,11/16/2022,0041034922/1,41034922, 80.00,WorldPay Ltd,01402000,991280207,Credit Card Commission,Banking Arrangements,D43QK000044082,
http://statistics.data.gov.uk/id/local-authority/29UP,Tonbridge & Malling Borough Council,11/16/2022,0041034922/2,41034922, 170.56,WorldPay Ltd,01402000,991280207,Credit Card Commission,Banking Arrangements,D43QK000044082,
http://statistics.data.gov.uk/id/local-authority/29UP,Tonbridge & Malling Borough Council,11/16/2022,0041034931/1,41034931, 65.00,King & Shaxson Treasury Solutions,01524000,,Professional Fees,Treasury Management,D43QT000044001,410032265
http://statistics.data.gov.uk/id/local-authority/29UP,Tonbridge & Malling Borough Council,11/16/2022,0041034932/1,41034932, 4.16,Amazon EU SARL,01738400,,Purchases,Finance Sals&Overheads,D01AFDF1140101,410032288
http://statistics.data.gov.uk/id/local-authority/29UP,Tonbridge & Malling Borough Council,11/16/2022,0041034932/2,41034932, 9.16,Amazon EU SARL,01738400,,Stationery,Finance Sals&Overheads,D01AFDF1143003,410032288
http://statistics.data.gov.uk/id/local-authority/29UP,Tonbridge & Malling Borough Council,11/16/2022,0041034933/3,41034933, 361.79,Morgan Hunt UK Ltd,01086900,,Temporary Staff,Finance Sals&Overheads,D01AFDF1111300,
http://statistics.data.gov.uk/id/local-authority/29UP,Tonbridge & Malling Borough Council,11/16/2022,0041034934/3,41034934, 892.50,Morgan Hunt UK Ltd,01086900,,Temporary Staff,Finance Sals&Overheads,D01AFDF1111300,
http://statistics.data.gov.uk/id/local-authority/29UP,Tonbridge & Malling Borough Council,11/16/2022,0041034935/3,41034935, 940.99,Rundle & Co Ltd,00087200,,Bailiffs Commission,Local Revenue & NNDR Collect,D41QA000044075,
http://statistics.data.gov.uk/id/local-authority/29UP,Tonbridge & Malling Borough Council,11/16/2022,0041034936/3,41034936, 1252.44,Rundle & Co Ltd,00087200,,Bailiffs Commission,Local Revenue & NNDR Collect,D41QA000044075,
http://statistics.data.gov.uk/id/local-authority/29UP,Tonbridge & Malling Borough Council,11/16/2022,0041034937/1,41034937, 1522.84,PPE Supplies Direct,01863900,,Charitable / Voluntary Organis,Grants & Payments to Vol Orgn,D37PACK2247005,
http://statistics.data.gov.uk/id/local-authority/29UP,Tonbridge & Malling Borough Council,11/16/2022,0051008752/1,51008752, 795.00,Alpha Parking Ltd,01167300,,Ext Fees/Prof & Tech,Training,D10DCDE0513561,510010597
http://statistics.data.gov.uk/id/local-authority/29UP,Tonbridge & Malling Borough Council,11/16/2022,0051008753/1,51008753, 150.00,Town & Country Planning Association,01403200,,Ext Fees/Prof & Tech,Training,D10DCDJ0013561,510010598
http://statistics.data.gov.uk/id/local-authority/29UP,Tonbridge & Malling Borough Council,11/17/2022,0041034942/1,41034942, 59.95,Allpay Limited,01816500,,Giro / Swipe Card Charges,Local Revenue & NNDR Collect,D41QA000044083,
http://statistics.data.gov.uk/id/local-authority/29UP,Tonbridge & Malling Borough Council,11/18/2022,0041034943/1,41034943, 761.29,King & Shaxson Investments,01411100,,Professional Fees,Treasury Management,D43QT000044001,
http://statistics.data.gov.uk/id/local-authority/29UP,Tonbridge & Malling Borough Council,11/18/2022,0041034944/1,41034944, 223.75,National Westminster Bank Plc,00069400,,Bank Charges,Banking Arrangements,D43QK000044222,
http://statistics.data.gov.uk/id/local-authority/29UP,Tonbridge & Malling Borough Council,11/18/2022,0041034945/3,41034945, 19.95,WorldPay Ltd,01402000,991280207,Credit Card Commission,Banking Arrangements,D43QK000044082,
http://statistics.data.gov.uk/id/local-authority/29UP,Tonbridge & Malling Borough Council,11/22/2022,0041034955/1,41034955, 70.54,National Westminster Bank Plc,00894500,,Electricity,Homelessness,C01AATNHS21002,
http://statistics.data.gov.uk/id/local-authority/29UP,Tonbridge & Malling Borough Council,11/22/2022,0041034955/10,41034955, 14.93,National Westminster Bank Plc,00894500,,Software Hire & Support,Information Technology,D27KD000044059,
http://statistics.data.gov.uk/id/local-authority/29UP,Tonbridge & Malling Borough Council,11/22/2022,0041034955/11,41034955, 7.46,National Westminster Bank Plc,00894500,,Delivery Expenses,Information Technology,D27KD000044069,
http://statistics.data.gov.uk/id/local-authority/29UP,Tonbridge & Malling Borough Council,11/22/2022,0041034955/12,41034955, 91.09,National Westminster Bank Plc,00894500,,Subscriptions,Information Technology,D27KD000047002,
http://statistics.data.gov.uk/id/local-authority/29UP,Tonbridge & Malling Borough Council,11/22/2022,0041034955/13,41034955, 14.00,National Westminster Bank Plc,00894500,,Information & Publicity,Information & Publicity,D32MJ000044076,
http://statistics.data.gov.uk/id/local-authority/29UP,Tonbridge & Malling Borough Council,11/22/2022,0041034955/14,41034955, 316.50,National Westminster Bank Plc,00894500,,Legal Fees,Local Revenue & NNDR Collect,D41QA000044002,
http://statistics.data.gov.uk/id/local-authority/29UP,Tonbridge & Malling Borough Council,11/22/2022,0041034955/15,41034955, 630.00,National Westminster Bank Plc,00894500,,Bank Charges,Banking Arrangements,D43QK000044222,
http://statistics.data.gov.uk/id/local-authority/29UP,Tonbridge & Malling Borough Council,11/22/2022,0041034955/16,41034955, 376.00,National Westminster Bank Plc,00894500,,Economic Development & Regen,Eco Dev & Reg Gen Bus Support,D52TD000047027,
http://statistics.data.gov.uk/id/local-authority/29UP,Tonbridge & Malling Borough Council,11/22/2022,0041034955/17,41034955, 46.33,National Westminster Bank Plc,00894500,,Transport Repair & Maintenance,Parking Off-Street,E10HA000030103,
http://statistics.data.gov.uk/id/local-authority/29UP,Tonbridge & Malling Borough Council,11/22/2022,0041034955/18,41034955, 69.50,National Westminster Bank Plc,00894500,,Transport Repair & Maintenance,Parking On-Street,E10HD000030103,
http://statistics.data.gov.uk/id/local-authority/29UP,Tonbridge & Malling Borough Council,11/22/2022,0041034955/19,41034955, 49.44,National Westminster Bank Plc,00894500,,Sales,TIC Stock Account,K18AX000002002,
http://statistics.data.gov.uk/id/local-authority/29UP,Tonbridge & Malling Borough Council,11/22/2022,0041034955/2,41034955, 195.00,National Westminster Bank Plc,00894500,,Ext Fees/Prof & Tech,Training,D10DCDA0513561,
http://statistics.data.gov.uk/id/local-authority/29UP,Tonbridge & Malling Borough Council,11/22/2022,0041034955/20,41034955, 89.25,National Westminster Bank Plc,00894500,,Sales,TIC Stock Account,K18AX000002002,
http://statistics.data.gov.uk/id/local-authority/29UP,Tonbridge & Malling Borough Council,11/22/2022,0041034955/21,41034955, 60.51,National Westminster Bank Plc,00894500,,Sales,TIC Stock Account,K18AX000002002,
http://statistics.data.gov.uk/id/local-authority/29UP,Tonbridge & Malling Borough Council,11/22/2022,0041034955/3,41034955, 150.00,National Westminster Bank Plc,00894500,,Ext Fees/Prof & Tech,Training,D10DCDJ0313561,
http://statistics.data.gov.uk/id/local-authority/29UP,Tonbridge & Malling Borough Council,11/22/2022,0041034955/9,41034955, 37.91,National Westminster Bank Plc,00894500,,Software Hire & Support,Information Technology,D27KD000044059,
http://statistics.data.gov.uk/id/local-authority/29UP,Tonbridge & Malling Borough Council,11/22/2022,0041034956/1,41034956, 2388.00,H.M. Revenue & Customs,00048400,,Levy Payment,Apprenticeship Scheme,D10DE000013700,
http://statistics.data.gov.uk/id/local-authority/29UP,Tonbridge & Malling Borough Council,11/22/2022,0041034960/1,41034960, 15.00,WorldPay ,01568000,,Credit Card Commission,Banking Arrangements,D43QK000044082,
http://statistics.data.gov.uk/id/local-authority/29UP,Tonbridge & Malling Borough Council,11/22/2022,0041034961/1,41034961, 169.41,WorldPay ,01568000,,Credit Card Commission,Banking Arrangements,D43QK000044082,
http://statistics.data.gov.uk/id/local-authority/29UP,Tonbridge & Malling Borough Council,11/22/2022,0041034962/1,41034962, 753.89,WorldPay ,01568000,,Credit Card Commission,Banking Arrangements,D43QK000044082,
http://statistics.data.gov.uk/id/local-authority/29UP,Tonbridge & Malling Borough Council,11/22/2022,0041034963/1,41034963, 4303.15,WorldPay ,01568000,,Credit Card Commission,Banking Arrangements,D43QK000044082,
http://statistics.data.gov.uk/id/local-authority/29UP,Tonbridge & Malling Borough Council,11/22/2022,0041034963/2,41034963, 674.83,WorldPay ,01568000,,Credit Card Commission,Banking Arrangements,D43QK000044082,
http://statistics.data.gov.uk/id/local-authority/29UP,Tonbridge & Malling Borough Council,11/23/2022,0011045209/1,11045209, 426.00,BML Building Services Ltd,01505000,,BRREP General Maintenance,PC - General,M15JAP10001900,110069838
http://statistics.data.gov.uk/id/local-authority/29UP,Tonbridge & Malling Borough Council,11/23/2022,0011045210/1,11045210, 440.00,Salomons Estate UK Ltd,01859900,,Community Safety Initiatives,Community Safety,D30MA000048134,
http://statistics.data.gov.uk/id/local-authority/29UP,Tonbridge & Malling Borough Council,11/23/2022,0011045211/1,11045211, 379.98,REDACTED PERSONAL DATA,01873800,,Other Expenses,Ukrainian Refugee Assistance,D54UA000048010,
http://statistics.data.gov.uk/id/local-authority/29UP,Tonbridge & Malling Borough Council,11/23/2022,0011045211/2,11045211, 53.29,REDACTED PERSONAL DATA,01873800,,Other Expenses,Ukrainian Refugee Assistance,D54UA000048010,
http://statistics.data.gov.uk/id/local-authority/29UP,Tonbridge & Malling Borough Council,11/23/2022,0011045212/1,11045212, 149.99,REDACTED PERSONAL DATA,01873900,,Other Expenses,Ukrainian Refugee Assistance,D54UA000048010,
http://statistics.data.gov.uk/id/local-authority/29UP,Tonbridge & Malling Borough Council,11/23/2022,0011045212/2,11045212, 199.98,REDACTED PERSONAL DATA,01873900,,Other Expenses,Ukrainian Refugee Assistance,D54UA000048010,
http://statistics.data.gov.uk/id/local-authority/29UP,Tonbridge & Malling Borough Council,11/23/2022,0011045212/3,11045212, 54.00,REDACTED PERSONAL DATA,01873900,,Other Expenses,Ukrainian Refugee Assistance,D54UA000048010,
http://statistics.data.gov.uk/id/local-authority/29UP,Tonbridge & Malling Borough Council,11/23/2022,0011045213/3,11045213, 1217.80,Sellick Partnership Group Limited,01336800,,Temporary Staff,Legal Sals&Overheads,D01ARDR0011300,
http://statistics.data.gov.uk/id/local-authority/29UP,Tonbridge & Malling Borough Council,11/23/2022,0011045215/1,11045215, 5000.00,STL Lighting Ltd,01874000,,Economic Development & Regen,Eco Dev & Reg Gen Bus Support,D52TD000047027,
http://statistics.data.gov.uk/id/local-authority/29UP,Tonbridge & Malling Borough Council,11/23/2022,0012008544/1,12008544, 4657.60,NEC Software Solutions UK Ltd,01073900,202159745,Software Hire & Support,Information Technology,D27KD000044059,410032260
http://statistics.data.gov.uk/id/local-authority/29UP,Tonbridge & Malling Borough Council,11/23/2022,0012008545/3,12008545, 45.00,Nexus Data Systems Ltd,01057000,,Purchases,Information Technology,D27KD000040101,
http://statistics.data.gov.uk/id/local-authority/29UP,Tonbridge & Malling Borough Council,11/23/2022,0012008546/1,12008546, 51.16,Bytes Software Services,01676900,823818226,Software Hire & Support,Information Technology,D27KD000044059,410032291
http://statistics.data.gov.uk/id/local-authority/29UP,Tonbridge & Malling Borough Council,11/23/2022,0012008547/1,12008547, 5727.28,KHIPU Networks Limited,01191500,,Maintenance - Ancillary Equip,Information Technology,D27KD000040137,410032292
http://statistics.data.gov.uk/id/local-authority/29UP,Tonbridge & Malling Borough Council,11/23/2022,0012008548/1,12008548, 59.50,Get It Repaired,01631300,287357752,Maintenance - General,Parking Off-Street,E10HA000040135,410032290
http://statistics.data.gov.uk/id/local-authority/29UP,Tonbridge & Malling Borough Council,11/23/2022,0012008548/2,12008548, 59.50,Get It Repaired,01631300,287357752,Maintenance - General,Parking On-Street,E10HD000040135,410032290
http://statistics.data.gov.uk/id/local-authority/29UP,Tonbridge & Malling Borough Council,11/23/2022,0012008549/1,12008549, 59.90,CCS Media Ltd,00018000,,Purchases,Information Technology,D27KD000040101,410032293
http://statistics.data.gov.uk/id/local-authority/29UP,Tonbridge & Malling Borough Council,11/23/2022,0012008549/2,12008549, 5.00,CCS Media Ltd,00018000,,Delivery Expenses,Information Technology,D27KD000044069,410032293
http://statistics.data.gov.uk/id/local-authority/29UP,Tonbridge & Malling Borough Council,11/23/2022,0012008550/1,12008550, 1660.00,3C Technology Limited,00997700,,Initial Furniture & Equipment,Capital Renewals IT,P06FBFB2009906,410032294
http://statistics.data.gov.uk/id/local-authority/29UP,Tonbridge & Malling Borough Council,11/23/2022,0012008550/2,12008550, 1864.00,3C Technology Limited,00997700,,Initial Furniture & Equipment,Capital Renewals IT,P06FBFB2009906,410032294
http://statistics.data.gov.uk/id/local-authority/29UP,Tonbridge & Malling Borough Council,11/23/2022,0012008550/3,12008550, 112.00,3C Technology Limited,00997700,,Initial Furniture & Equipment,Capital Renewals IT,P06FBFB2009906,410032294
http://statistics.data.gov.uk/id/local-authority/29UP,Tonbridge & Malling Borough Council,11/23/2022,0012008551/1,12008551, 136.51,Insight Direct (UK) Ltd,01092700,,Software Hire & Support,Information Technology,D27KD000044059,410032095
http://statistics.data.gov.uk/id/local-authority/29UP,Tonbridge & Malling Borough Council,11/23/2022,0012008552/3,12008552, 17522.81,Phoenix Software Ltd,00077400,755349015,Software Hire & Support,Information Technology,D27KD000044059,
http://statistics.data.gov.uk/id/local-authority/29UP,Tonbridge & Malling Borough Council,11/23/2022,0021038274/1,21038274, 9884.69,Wicksteed Leisure Limited,00167900,,Contract Payments,Tonbridge Farm Sportsground Si,P05DF000009904,210056944
http://statistics.data.gov.uk/id/local-authority/29UP,Tonbridge & Malling Borough Council,11/23/2022,0021038275/1,21038275, 3541.67,Tracks 2000 (International) Ltd,01729900,,Initial Furniture & Equipment,Capital Renewals Leisure,P05KGBC0109906,210056960
http://statistics.data.gov.uk/id/local-authority/29UP,Tonbridge & Malling Borough Council,11/23/2022,0021038276/1,21038276, 4887.50,Waste Consulting LLP,01530700,737059028,Professional Fees,Sports Grounds,B13ET000044001,210056953
http://statistics.data.gov.uk/id/local-authority/29UP,Tonbridge & Malling Borough Council,11/23/2022,0021038277/3,21038277, 225.00,SWS Countryside & Landscape,01567200,,Health & Safety - Trees,Countryside/Woodland Mgt,B22LG000044045,
http://statistics.data.gov.uk/id/local-authority/29UP,Tonbridge & Malling Borough Council,11/23/2022,0021038279/1,21038279, 3525.00,Flex Flooring Ltd,01208600,,Initial Furniture & Equipment,Capital Renewals Leisure,P05KGBC0209906,210057050
http://statistics.data.gov.uk/id/local-authority/29UP,Tonbridge & Malling Borough Council,11/23/2022,0021038280/1,21038280, 9425.00,Flex Flooring Ltd,01208600,,Initial Furniture & Equipment,Capital Renewals Leisure,P05KGBC0409906,210057051
http://statistics.data.gov.uk/id/local-authority/29UP,Tonbridge & Malling Borough Council,11/23/2022,0022027196/1,22027196, 1454.69,Town & Country Housing Group,01385400,,Other Expenses,Disabled Facilities Grant Mand,P03AC000009908,
http://statistics.data.gov.uk/id/local-authority/29UP,Tonbridge & Malling Borough Council,11/23/2022,0022027197/1,22027197, 4900.00,Dolphin Stairlifts,00698900,,Other Expenses,Disabled Facilities Grant Mand,P03AC000009908,
http://statistics.data.gov.uk/id/local-authority/29UP,Tonbridge & Malling Borough Council,11/23/2022,0022027198/1,22027198, 5602.05,Acorn Maintenance Services,01036000,,Other Expenses,Disabled Facilities Grant Mand,P03AC000009908,
http://statistics.data.gov.uk/id/local-authority/29UP,Tonbridge & Malling Borough Council,11/23/2022,0022027199/1,22027199, 895.96,Town & Country Housing Group,01385400,,Other Expenses,Disabled Facilities Grant Mand,P03AC000009908,
http://statistics.data.gov.uk/id/local-authority/29UP,Tonbridge & Malling Borough Council,11/23/2022,0022027200/1,22027200, 6221.94,Accessible Solutions LTD,01539700,,Other Expenses,Disabled Facilities Grant Mand,P03AC000009908,
http://statistics.data.gov.uk/id/local-authority/29UP,Tonbridge & Malling Borough Council,11/23/2022,0022027201/3,22027201, 1555.50,Lucy and Martin Recycling LTD,01694200,,Bring Sites Mixed Recycling,Dry Recycling,H34SR000054026,
http://statistics.data.gov.uk/id/local-authority/29UP,Tonbridge & Malling Borough Council,11/23/2022,0022027202/1,22027202, 19049.35,Consultants in Care Ltd,01764200,,Temporary Accommodation,Homelessness,C01AA000044051,
http://statistics.data.gov.uk/id/local-authority/29UP,Tonbridge & Malling Borough Council,11/23/2022,0022027203/3,22027203, 245.00,Countrystyle Group,00835900,781981681,Collection of Card,Dry Recycling,H34SR000054008,
http://statistics.data.gov.uk/id/local-authority/29UP,Tonbridge & Malling Borough Council,11/23/2022,0022027204/1,22027204, 15.65,REDACTED PERSONAL DATA,01477000,,Health General,Food & Safety - General,H35SW000044049,
http://statistics.data.gov.uk/id/local-authority/29UP,Tonbridge & Malling Borough Council,11/23/2022,0022027205/1,22027205, 95.00,Town & Country Housing Group,01385400,,Countywide DFG Project,Private Sector Housing Renewal,C03BD000044031,
http://statistics.data.gov.uk/id/local-authority/29UP,Tonbridge & Malling Borough Council,11/23/2022,0022027206/3,22027206, 2600.00,RD Furniture Ltd,01873100,390869842,Purchases,Homelessness,C01AATNPR40101,
http://statistics.data.gov.uk/id/local-authority/29UP,Tonbridge & Malling Borough Council,11/23/2022,0022027207/3,22027207, 2475.00,BML Building Services Ltd,01505000,,Repairs & Mtce to Buildings,Homelessness,C01AATNHS20101,
http://statistics.data.gov.uk/id/local-authority/29UP,Tonbridge & Malling Borough Council,11/23/2022,0022027208/1,22027208, 6131.40,All Star Heating & Plumbing Ltd,01779100,,Other Expenses,Housing Assistance,P03AD000009908,
http://statistics.data.gov.uk/id/local-authority/29UP,Tonbridge & Malling Borough Council,11/23/2022,0031019047/3,31019047, 69.91,Shell U.K. Oil Products Limited,01673300,,"Petrol, Diesel & Oil",Patrolling,B22LF000030106,
http://statistics.data.gov.uk/id/local-authority/29UP,Tonbridge & Malling Borough Council,11/23/2022,0031019047/4,31019047, 111.03,Shell U.K. Oil Products Limited,01673300,,"Petrol, Diesel & Oil",Parking Off-Street,E10HA000030106,
http://statistics.data.gov.uk/id/local-authority/29UP,Tonbridge & Malling Borough Council,11/23/2022,0031019047/5,31019047, 111.04,Shell U.K. Oil Products Limited,01673300,,"Petrol, Diesel & Oil",Parking On-Street,E10HD000030106,
http://statistics.data.gov.uk/id/local-authority/29UP,Tonbridge & Malling Borough Council,11/23/2022,0031019055/3,31019055, 1195.74,CDER Group,01773300,,Adjudication & Enforcement Ser,Parking Off-Street,E10HA000044230,
http://statistics.data.gov.uk/id/local-authority/29UP,Tonbridge & Malling Borough Council,11/23/2022,0031019059/3,31019059, 170.85,British Telecommunications Plc,00012800,,Maintenance - General,Security Services Management,E09GA000040135,
http://statistics.data.gov.uk/id/local-authority/29UP,Tonbridge & Malling Borough Council,11/23/2022,0031019060/1,31019060, 600.00,Forge Engineering,00137700,,Premises Repairs & Maintenance,Parking Off-Street,E10HA000020601,320003465
http://statistics.data.gov.uk/id/local-authority/29UP,Tonbridge & Malling Borough Council,11/23/2022,0031019061/1,31019061, 57.80,Greenham Trading Ltd,00127900,745138823,Purchases,Boro Highways & Emergency Oper,E01AA000040101,310042928
http://statistics.data.gov.uk/id/local-authority/29UP,Tonbridge & Malling Borough Council,11/23/2022,0031019062/1,31019062, 650.00,Eiger Safety,01103300,,Tonbridge Christmas Lighting,Eco Dev & Reg Ton Chris Light,D52TF000047015,210057049
http://statistics.data.gov.uk/id/local-authority/29UP,Tonbridge & Malling Borough Council,11/23/2022,0031019063/1,31019063, 1227.00,Archway Highway Services Ltd,01398000,,Other Expenses,Car Park Imp Rolling Programme,P01AB000009908,310042913
http://statistics.data.gov.uk/id/local-authority/29UP,Tonbridge & Malling Borough Council,11/23/2022,0032009918/3,32009918, 5486.25,Vivid Resourcing,01773700,,Temporary Staff,Planning Sals&Overheads,D01AJDJ0111300,
http://statistics.data.gov.uk/id/local-authority/29UP,Tonbridge & Malling Borough Council,11/23/2022,0032009919/3,32009919, 1645.41,The Oyster Partnership,01196400,,Temporary Staff,Planning Sals&Overheads,D01AJDJ0111300,
http://statistics.data.gov.uk/id/local-authority/29UP,Tonbridge & Malling Borough Council,11/23/2022,0032009920/3,32009920, 1844.70,The Oyster Partnership,01196400,,Temporary Staff,Planning Sals&Overheads,D01AJDJ0111300,
http://statistics.data.gov.uk/id/local-authority/29UP,Tonbridge & Malling Borough Council,11/23/2022,0032009921/3,32009921, 1809.18,The Oyster Partnership,01196400,,Temporary Staff,Planning Sals&Overheads,D01AJDJ0111300,
http://statistics.data.gov.uk/id/local-authority/29UP,Tonbridge & Malling Borough Council,11/23/2022,0032009922/3,32009922, 2056.99,The Oyster Partnership,01196400,,Temporary Staff,Planning Sals&Overheads,D01AJDJ0111300,
http://statistics.data.gov.uk/id/local-authority/29UP,Tonbridge & Malling Borough Council,11/23/2022,0032009923/3,32009923, 1147.00,G2 Recruitment Solutions,01786000,,Temporary Staff,Planning Sals&Overheads,D01AJDJ0111300,
http://statistics.data.gov.uk/id/local-authority/29UP,Tonbridge & Malling Borough Council,11/23/2022,0032009924/3,32009924, 1609.50,G2 Recruitment Solutions,01786000,,Temporary Staff,Planning Sals&Overheads,D01AJDJ0111300,
http://statistics.data.gov.uk/id/local-authority/29UP,Tonbridge & Malling Borough Council,11/23/2022,0032009925/3,32009925, 2940.82,G2 Recruitment Solutions,01786000,,Temporary Staff,Planning Sals&Overheads,D01AJDJ0111300,
http://statistics.data.gov.uk/id/local-authority/29UP,Tonbridge & Malling Borough Council,11/23/2022,0032009927/3,32009927, 1612.50,Carrington West Limited,01844500,,Temporary Staff,Planning Sals&Overheads,D01AJDJ0111300,
http://statistics.data.gov.uk/id/local-authority/29UP,Tonbridge & Malling Borough Council,11/23/2022,0032009929/1,32009929, 171.36,KM Media Group Ltd,00053900,,Advertising General,Development Management,A01ABZ99944216,320003456
http://statistics.data.gov.uk/id/local-authority/29UP,Tonbridge & Malling Borough Council,11/23/2022,0041034948/3,41034948, 473.11,Morgan Hunt UK Ltd,01086900,,Temporary Staff,Finance Sals&Overheads,D01AFDF1111300,
http://statistics.data.gov.uk/id/local-authority/29UP,Tonbridge & Malling Borough Council,11/23/2022,0041034949/3,41034949, 892.50,Morgan Hunt UK Ltd,01086900,,Temporary Staff,Finance Sals&Overheads,D01AFDF1111300,
http://statistics.data.gov.uk/id/local-authority/29UP,Tonbridge & Malling Borough Council,11/23/2022,0041034950/3,41034950, 431.37,Morgan Hunt UK Ltd,01086900,,Temporary Staff,Finance Sals&Overheads,D01AFDF1111300,
http://statistics.data.gov.uk/id/local-authority/29UP,Tonbridge & Malling Borough Council,11/23/2022,0041034951/3,41034951, 556.60,Morgan Hunt UK Ltd,01086900,,Temporary Staff,Finance Sals&Overheads,D01AFDF1111300,
http://statistics.data.gov.uk/id/local-authority/29UP,Tonbridge & Malling Borough Council,11/23/2022,0041034952/3,41034952, 2928.58,Maidstone Borough Council,01173700,,Bailiffs Commission,Local Revenue & NNDR Collect,D41QA000044075,
http://statistics.data.gov.uk/id/local-authority/29UP,Tonbridge & Malling Borough Council,11/23/2022,0041034953/3,41034953, 814.07,Rundle & Co Ltd,00087200,,Bailiffs Commission,Local Revenue & NNDR Collect,D41QA000044075,
http://statistics.data.gov.uk/id/local-authority/29UP,Tonbridge & Malling Borough Council,11/23/2022,0041034954/3,41034954, 16.61,Rundle & Co Ltd,00087200,,Bailiffs Commission,Local Revenue & NNDR Collect,D41QA000044075,
http://statistics.data.gov.uk/id/local-authority/29UP,Tonbridge & Malling Borough Council,11/25/2022,0041034973/1,41034973, 68.00,National Westminster Bank Plc,00069400,,Direct Debit / Bank Charges,Local Revenue & NNDR Collect,D41QA000044079,
http://statistics.data.gov.uk/id/local-authority/29UP,Tonbridge & Malling Borough Council,11/30/2022,0011045216/1,11045216, 1190.00,G C Industrial Heating Services,00578100,,BRREP Plant renewals,Angel Centre,M15HAP20001909,110069761
http://statistics.data.gov.uk/id/local-authority/29UP,Tonbridge & Malling Borough Council,11/30/2022,0011045217/1,11045217, 720.00,G C Industrial Heating Services,00578100,,BRREP Servicing - Heating Syst,Tonbridge Swimming Pool,M15HBP20001934,110069492
http://statistics.data.gov.uk/id/local-authority/29UP,Tonbridge & Malling Borough Council,11/30/2022,0011045218/1,11045218, 5571.00,Record UK Ltd,01116900,,BRREP Servicing-entrance doors,Larkfield Leisure Centre,M15HDP20001927,110069562
http://statistics.data.gov.uk/id/local-authority/29UP,Tonbridge & Malling Borough Council,11/30/2022,0011045219/1,11045219, 350.50,Record UK Ltd,01116900,,BRREP Servicing-entrance doors,Tonbridge Swimming Pool,M15HBP20001927,110069332
http://statistics.data.gov.uk/id/local-authority/29UP,Tonbridge & Malling Borough Council,11/30/2022,0011045220/1,11045220, 1994.02,Chubb Fire & Security Ltd,00115400,174605362,BRREP Servicing-IntruderAlarm,Tonbridge Swimming Pool,M15HBP20001939,110069862
http://statistics.data.gov.uk/id/local-authority/29UP,Tonbridge & Malling Borough Council,11/30/2022,0011045221/1,11045221, 2191.20,Triple S Lift Services,01344900,,BRREP Servicing - lifts,Angel Centre,M15HAP20001930,110069831
http://statistics.data.gov.uk/id/local-authority/29UP,Tonbridge & Malling Borough Council,11/30/2022,0011045222/1,11045222, 740.00,K T Fire Protection Ltd,00057000,,BRREP Servicing - FireAlarmSys,Tonbridge Castle / CAB,M15KFP20001937,110069815
http://statistics.data.gov.uk/id/local-authority/29UP,Tonbridge & Malling Borough Council,11/30/2022,0011045223/1,11045223, 27650.00,G Baker Roofing Ltd,01664400,522705274,BRREP General Maintenance,Larkfield Leisure Centre,M15HDP10001900,110069699
http://statistics.data.gov.uk/id/local-authority/29UP,Tonbridge & Malling Borough Council,11/30/2022,0011045224/1,11045224, 55.00,Monitor Pest Control Ltd,01476700,,BRREP Rodent Control,Gibson Building West,M15KBP20001949,110069887
http://statistics.data.gov.uk/id/local-authority/29UP,Tonbridge & Malling Borough Council,11/30/2022,0011045225/1,11045225, 180.00,PV Environmental Surveys,00987200,,BRREP Asbestos monitoring,Angel Centre,M15HAP30001993,110069843
http://statistics.data.gov.uk/id/local-authority/29UP,Tonbridge & Malling Borough Council,11/30/2022,0011045225/2,11045225, 180.00,PV Environmental Surveys,00987200,,BRREP Asbestos monitoring,Larkfield Leisure Centre,M15HDP30001993,110069843
http://statistics.data.gov.uk/id/local-authority/29UP,Tonbridge & Malling Borough Council,11/30/2022,0011045225/3,11045225, 180.00,PV Environmental Surveys,00987200,,BRREP Asbestos monitoring,Leis Man Poult Wood Golf Centr,M15HEP30001993,110069843
http://statistics.data.gov.uk/id/local-authority/29UP,Tonbridge & Malling Borough Council,11/30/2022,0011045225/4,11045225, 180.00,PV Environmental Surveys,00987200,,BRREP Asbestos monitoring,Tonbridge Farm Pavillion,M15HGP30001993,110069843
http://statistics.data.gov.uk/id/local-authority/29UP,Tonbridge & Malling Borough Council,11/30/2022,0011045225/5,11045225, 180.00,PV Environmental Surveys,00987200,,BRREP Asbestos monitoring,PC - General,M15JAP30001993,110069843
http://statistics.data.gov.uk/id/local-authority/29UP,Tonbridge & Malling Borough Council,11/30/2022,0011045225/6,11045225, 180.00,PV Environmental Surveys,00987200,,BRREP Asbestos monitoring,Gibson Building West,M15KBP30001993,110069843
http://statistics.data.gov.uk/id/local-authority/29UP,Tonbridge & Malling Borough Council,11/30/2022,0011045225/7,11045225, 180.00,PV Environmental Surveys,00987200,,BRREP Asbestos monitoring,Tonbridge Castle / CAB,M15KFP30001993,110069843
http://statistics.data.gov.uk/id/local-authority/29UP,Tonbridge & Malling Borough Council,11/30/2022,0011045225/8,11045225, 180.00,PV Environmental Surveys,00987200,,BRREP Asbestos monitoring,Shops & Maisonettes,M15NAP30001993,110069843
http://statistics.data.gov.uk/id/local-authority/29UP,Tonbridge & Malling Borough Council,11/30/2022,0011045226/1,11045226, 180.00,Hoey Ainscough Associates Ltd,01473400,,Ext Fees/Prof & Tech,Training,D10DCDA0013561,110069653
http://statistics.data.gov.uk/id/local-authority/29UP,Tonbridge & Malling Borough Council,11/30/2022,0011045227/1,11045227, 150.00,Weddle and Co,00714900,,Other Expenses,Mayoral & Other Member Support,D29LX000048010,110069888
http://statistics.data.gov.uk/id/local-authority/29UP,Tonbridge & Malling Borough Council,11/30/2022,0011045228/1,11045228, 100.00,BML Building Services Ltd,01505000,,BRREP Response - General,Tonbridge Castle / CAB,M15KFP50001997,110069892
http://statistics.data.gov.uk/id/local-authority/29UP,Tonbridge & Malling Borough Council,11/30/2022,0011045229/1,11045229, 79.00,BML Building Services Ltd,01505000,,BRREP Response - General,Leis Man Poult Wood Golf Centr,M15HEP50001997,110069885
http://statistics.data.gov.uk/id/local-authority/29UP,Tonbridge & Malling Borough Council,11/30/2022,0011045230/1,11045230, 45.98,KCS,00054200,,Stationery,Admin & Prop Sals&Overheads,D01AA000043003,110069905
http://statistics.data.gov.uk/id/local-authority/29UP,Tonbridge & Malling Borough Council,11/30/2022,0011045231/1,11045231, 272.50,BML Building Services Ltd,01505000,,BRREP Roof repairs - General,PC - General,M15JAP20001968,110069779
http://statistics.data.gov.uk/id/local-authority/29UP,Tonbridge & Malling Borough Council,11/30/2022,0011045232/1,11045232, 5472.00,Security & Electronic Solutions Ltd,01379500,,Other Expenses,Homeless Accommodation,P03AX000009908,110069817
http://statistics.data.gov.uk/id/local-authority/29UP,Tonbridge & Malling Borough Council,11/30/2022,0011045233/1,11045233, 168.75,Marlow Fire & Security (BBC)  Ltd,00008800,342427963,BRREP Servicing - Gas Ext Syst,Gibson Building West,M15KBP20001979,110069904
http://statistics.data.gov.uk/id/local-authority/29UP,Tonbridge & Malling Borough Council,11/30/2022,0011045234/1,11045234, 112.00,East Sussex Fire Ltd,01843100,,Repairs & Mtce to Buildings,Homelessness,C01AATNHS20101,110069587
http://statistics.data.gov.uk/id/local-authority/29UP,Tonbridge & Malling Borough Council,11/30/2022,0011045235/1,11045235, 1967.50,Westcountry Group,00656400,,Stationery,Local Revenue & NNDR Collect,D41QA000043003,110069871
http://statistics.data.gov.uk/id/local-authority/29UP,Tonbridge & Malling Borough Council,11/30/2022,0011045236/1,11045236, 430.00,Fusion Events TW,01875200,,Community Safety Initiatives,Community Safety,D30MA000048134,
http://statistics.data.gov.uk/id/local-authority/29UP,Tonbridge & Malling Borough Council,11/30/2022,0011045237/1,11045237, 765.00,Venn Group Ltd,00914300,,Temporary Staff,Legal Sals&Overheads,D01ARDR0011300,
http://statistics.data.gov.uk/id/local-authority/29UP,Tonbridge & Malling Borough Council,11/30/2022,0011045238/1,11045238, 350.00,BML Building Services Ltd,01505000,,BRREP Response - General,Larkfield Leisure Centre,M15HDP50001997,
http://statistics.data.gov.uk/id/local-authority/29UP,Tonbridge & Malling Borough Council,11/30/2022,0011045239/1,11045239, 75.92,Scottish Water Business Stream Ltd,01641100,,Sewerage Charges,Buildings,D21FEDD5024003,
http://statistics.data.gov.uk/id/local-authority/29UP,Tonbridge & Malling Borough Council,11/30/2022,0011045240/1,11045240, 580.66,Canon (UK) Limited,00298700,,Purchases - Paper,Printing,D22GA000040102,
http://statistics.data.gov.uk/id/local-authority/29UP,Tonbridge & Malling Borough Council,11/30/2022,0011045241/1,11045241, 1507.52,The Oyster Partnership,01196400,,Temporary Staff,Admin & Prop Sals&Overheads,D01AADA1111300,
http://statistics.data.gov.uk/id/local-authority/29UP,Tonbridge & Malling Borough Council,11/30/2022,0011045242/1,11045242, 41.48,Extinguisher Doctor Ltd,00059500,,BRREP Servicing-FireExtinguish,Tonbridge Castle / CAB,M15KFP20001938,
http://statistics.data.gov.uk/id/local-authority/29UP,Tonbridge & Malling Borough Council,11/30/2022,0011045243/1,11045243, 2752.50,Thomson Snell & Passmore,00101700,,Legal Fees,Legal Sals&Overheads,D01ARDR0044002,
http://statistics.data.gov.uk/id/local-authority/29UP,Tonbridge & Malling Borough Council,11/30/2022,0011045244/1,11045244, 150.00,BML Building Services Ltd,01505000,,BRREP Response - General,Tonbridge Farm Pavillion,M15HGP50001997,
http://statistics.data.gov.uk/id/local-authority/29UP,Tonbridge & Malling Borough Council,11/30/2022,0011045247/1,11045247, 3000.00,Cornerstones Barristers,01359100,,Other Planning Enq - Legal Cos,Legal Sals&Overheads,D01ARDR0044146,
http://statistics.data.gov.uk/id/local-authority/29UP,Tonbridge & Malling Borough Council,11/30/2022,0011045248/1,11045248, 1217.80,Sellick Partnership Group Limited,01336800,,Temporary Staff,Legal Sals&Overheads,D01ARDR0011300,
http://statistics.data.gov.uk/id/local-authority/29UP,Tonbridge & Malling Borough Council,11/30/2022,0011045249/1,11045249, 4.48,Royal Mail,00086200,,Purchases,Mailsort Stock Account,K37BR000001002,
http://statistics.data.gov.uk/id/local-authority/29UP,Tonbridge & Malling Borough Council,11/30/2022,0011045249/2,11045249, 1538.45,Royal Mail,00086200,,Purchases,Mailsort Stock Account,K37BR000001002,
http://statistics.data.gov.uk/id/local-authority/29UP,Tonbridge & Malling Borough Council,11/30/2022,0011045249/3,11045249, 3.50,Royal Mail,00086200,,Purchases,Mailsort Stock Account,K37BR000001002,
http://statistics.data.gov.uk/id/local-authority/29UP,Tonbridge & Malling Borough Council,11/30/2022,0011045250/1,11045250, 1561.36,The Oyster Partnership,01196400,,Temporary Staff,Admin & Prop Sals&Overheads,D01AADA1111300,
http://statistics.data.gov.uk/id/local-authority/29UP,Tonbridge & Malling Borough Council,11/30/2022,0011045251/1,11045251, 2300.00,Cornerstones Barristers,01359100,,Legal Fees,Legal Sals&Overheads,D01ARDR0044002,
http://statistics.data.gov.uk/id/local-authority/29UP,Tonbridge & Malling Borough Council,11/30/2022,0012008553/1,12008553, 795.00,3C Technology Limited,00997700,,Initial Furniture & Equipment,Capital Renewals IT,P06FBFB1009906,410032295
http://statistics.data.gov.uk/id/local-authority/29UP,Tonbridge & Malling Borough Council,11/30/2022,0012008554/1,12008554, 20000.00,Kent County Council,00167000,,Kent Connects,Information Technology,D27KD000044057,410032296
http://statistics.data.gov.uk/id/local-authority/29UP,Tonbridge & Malling Borough Council,11/30/2022,0012008555/1,12008555, 6855.20,KHIPU Networks Limited,01191500,,Software Hire & Support,Information Technology,D27KD000044059,410032300
http://statistics.data.gov.uk/id/local-authority/29UP,Tonbridge & Malling Borough Council,11/30/2022,0012008555/2,12008555, 2958.85,KHIPU Networks Limited,01191500,,Software Hire & Support,Information Technology,D27KD000044059,410032300
http://statistics.data.gov.uk/id/local-authority/29UP,Tonbridge & Malling Borough Council,11/30/2022,0012008555/3,12008555, 2958.85,KHIPU Networks Limited,01191500,,Software Hire & Support,Information Technology,D27KD000044059,410032300
http://statistics.data.gov.uk/id/local-authority/29UP,Tonbridge & Malling Borough Council,11/30/2022,0012008555/4,12008555, 4430.61,KHIPU Networks Limited,01191500,,Software Hire & Support,Information Technology,D27KD000044059,410032300
http://statistics.data.gov.uk/id/local-authority/29UP,Tonbridge & Malling Borough Council,11/30/2022,0012008556/1,12008556, 3614.15,Bytes Software Services,01676900,823818226,Software Hire & Support,Information Technology,D27KD000044059,410032299
http://statistics.data.gov.uk/id/local-authority/29UP,Tonbridge & Malling Borough Council,11/30/2022,0012008556/2,12008556, 1310.11,Bytes Software Services,01676900,823818226,Software Hire & Support,Information Technology,D27KD000044059,410032299
http://statistics.data.gov.uk/id/local-authority/29UP,Tonbridge & Malling Borough Council,11/30/2022,0012008556/3,12008556, 894.89,Bytes Software Services,01676900,823818226,Software Hire & Support,Information Technology,D27KD000044059,410032299
http://statistics.data.gov.uk/id/local-authority/29UP,Tonbridge & Malling Borough Council,11/30/2022,0012008556/4,12008556, 371.08,Bytes Software Services,01676900,823818226,Software Hire & Support,Information Technology,D27KD000044059,410032299
http://statistics.data.gov.uk/id/local-authority/29UP,Tonbridge & Malling Borough Council,11/30/2022,0012008556/5,12008556, 650.28,Bytes Software Services,01676900,823818226,Software Hire & Support,Information Technology,D27KD000044059,410032299
http://statistics.data.gov.uk/id/local-authority/29UP,Tonbridge & Malling Borough Council,11/30/2022,0012008557/1,12008557, 145.99,CCS Media Ltd,00018000,,Maintenance - Ancillary Equip,Information Technology,D27KD000040137,410032297
http://statistics.data.gov.uk/id/local-authority/29UP,Tonbridge & Malling Borough Council,11/30/2022,0012008557/2,12008557, 2.00,CCS Media Ltd,00018000,,Delivery Expenses,Information Technology,D27KD000044069,410032297
http://statistics.data.gov.uk/id/local-authority/29UP,Tonbridge & Malling Borough Council,11/30/2022,0021038281/3,21038281, 199.98,Tonbridge & Malling Leisure Trust,01469100,,Initial Furniture & Equipment,Capital Renewals Leisure,P05KGBC0409906,
http://statistics.data.gov.uk/id/local-authority/29UP,Tonbridge & Malling Borough Council,11/30/2022,0021038282/1,21038282, 50.00,South East Water Ltd,01330300,,Maintenance of Grounds,Haysden Country Park,B22LC000020402,210057016
http://statistics.data.gov.uk/id/local-authority/29UP,Tonbridge & Malling Borough Council,11/30/2022,0021038283/1,21038283, 5000.00,CLEAR Synergy Ltd,01874200,,Events Support,Events Development,B41TJ000044041,
http://statistics.data.gov.uk/id/local-authority/29UP,Tonbridge & Malling Borough Council,11/30/2022,0021038284/1,21038284, 272.85,Kings Hill Garage Ltd,01546300,,Transport Repair & Maintenance,Patrolling,B22LF000030103,210057042
http://statistics.data.gov.uk/id/local-authority/29UP,Tonbridge & Malling Borough Council,11/30/2022,0021038284/2,21038284, 15.00,Kings Hill Garage Ltd,01546300,,Transport Repair & Maintenance,Patrolling,B22LF000030103,210057042
http://statistics.data.gov.uk/id/local-authority/29UP,Tonbridge & Malling Borough Council,11/30/2022,0021038284/3,21038284, 54.85,Kings Hill Garage Ltd,01546300,,Transport Repair & Maintenance,Patrolling,B22LF000030103,210057042
http://statistics.data.gov.uk/id/local-authority/29UP,Tonbridge & Malling Borough Council,11/30/2022,0021038285/1,21038285, 241.65,Landscape Services Ltd,00057600,,Maintenance of Grounds,Open Spaces & Amenity Areas,B22LE000020402,210056987
http://statistics.data.gov.uk/id/local-authority/29UP,Tonbridge & Malling Borough Council,11/30/2022,0021038286/1,21038286, 2928.87,Landscape Services Ltd,00057600,,Maintenance of Grounds,Countryside/Woodland Mgt,B22LG000020402,210056755
http://statistics.data.gov.uk/id/local-authority/29UP,Tonbridge & Malling Borough Council,11/30/2022,0021038287/1,21038287, 3394.00,Blackwood Bayne Ltd,01681400,,Market Research/Audit Program,Market Research,B37SE000044062,210056694
http://statistics.data.gov.uk/id/local-authority/29UP,Tonbridge & Malling Borough Council,11/30/2022,0021038288/1,21038288, 45.00,REDACTED PERSONAL DATA,01875000,,Health & Safety - Trees,Countryside/Woodland Mgt,B22LG000044045,
http://statistics.data.gov.uk/id/local-authority/29UP,Tonbridge & Malling Borough Council,11/30/2022,0021038289/1,21038289, 625.00,Matt Stephens,01802100,,Events Support,Events Development,B41TJ000044041,
http://statistics.data.gov.uk/id/local-authority/29UP,Tonbridge & Malling Borough Council,11/30/2022,0021038290/1,21038290, 242.00,Matt Stephens,01802100,,Events Support,Events Development,B41TJ000044041,
http://statistics.data.gov.uk/id/local-authority/29UP,Tonbridge & Malling Borough Council,11/30/2022,0021038291/1,21038291, 1650.00,Arnold Tarmac Ltd,01685100,,Maintenance of Grounds,Sports Grounds,B13ET000020402,210056984
http://statistics.data.gov.uk/id/local-authority/29UP,Tonbridge & Malling Borough Council,11/30/2022,0021038292/1,21038292, 433.50,Phoenix Medical Services Ltd,01857600,352503132,Events Support,Events Development,B41TJ000044041,210056880
http://statistics.data.gov.uk/id/local-authority/29UP,Tonbridge & Malling Borough Council,11/30/2022,0022027209/1,22027209, 534.88,Town & Country Housing Group,01385400,,Other Expenses,Disabled Facilities Grant Mand,P03AC000009908,
http://statistics.data.gov.uk/id/local-authority/29UP,Tonbridge & Malling Borough Council,11/30/2022,0022027210/1,22027210, 3714.40,Elite Complete Build LTD,01625900,,Other Expenses,Disabled Facilities Grant Mand,P03AC000009908,
http://statistics.data.gov.uk/id/local-authority/29UP,Tonbridge & Malling Borough Council,11/30/2022,0022027211/3,22027211, 2.83,EDF Energy Customers plc,01035000,,Electricity,Homelessness,C01AATNHS21002,
http://statistics.data.gov.uk/id/local-authority/29UP,Tonbridge & Malling Borough Council,11/30/2022,0022027212/1,22027212, 1010.88,Town & Country Housing Group,01385400,,Other Expenses,Disabled Facilities Grant Mand,P03AC000009908,
http://statistics.data.gov.uk/id/local-authority/29UP,Tonbridge & Malling Borough Council,11/30/2022,0022027213/1,22027213, 7020.00,Willow Tree Home Solutions LTD,01579200,,Other Expenses,Disabled Facilities Grant Mand,P03AC000009908,
http://statistics.data.gov.uk/id/local-authority/29UP,Tonbridge & Malling Borough Council,11/30/2022,0022027214/1,22027214, 1131.57,Scottish Water Business Stream Ltd,01641100,,Sewerage Charges,Public Conveniences,H22SCH01024003,
http://statistics.data.gov.uk/id/local-authority/29UP,Tonbridge & Malling Borough Council,11/30/2022,0022027215/1,22027215, 1141.48,Town & Country Housing Group,01385400,,Other Expenses,Disabled Facilities Grant Mand,P03AC000009908,
http://statistics.data.gov.uk/id/local-authority/29UP,Tonbridge & Malling Borough Council,11/30/2022,0022027216/1,22027216, 2500.00,Dolphin Stairlifts,00698900,,Other Expenses,Disabled Facilities Grant Mand,P03AC000009908,
http://statistics.data.gov.uk/id/local-authority/29UP,Tonbridge & Malling Borough Council,11/30/2022,0022027217/1,22027217, 5785.23,Alfa Electrical LTD Inc AVCO Maintenance,01642200,,Other Expenses,Disabled Facilities Grant Mand,P03AC000009908,
http://statistics.data.gov.uk/id/local-authority/29UP,Tonbridge & Malling Borough Council,11/30/2022,0022027218/1,22027218, 175.00,Swale Heating Ltd,00099500,,Other Expenses,Housing Assistance,P03AD000009908,
http://statistics.data.gov.uk/id/local-authority/29UP,Tonbridge & Malling Borough Council,11/30/2022,0022027219/1,22027219, 1158.73,Clarion Housing,01776300,,Rent Deposit / Rent in Advance,Homelessness,C01AAC85744093,
http://statistics.data.gov.uk/id/local-authority/29UP,Tonbridge & Malling Borough Council,11/30/2022,0022027220/1,22027220, 500.00,Traffic Enforcement Centre,00604200,,Adjudication & Enforcement Ser,Parking Off-Street,E10HA000044230,
http://statistics.data.gov.uk/id/local-authority/29UP,Tonbridge & Malling Borough Council,11/30/2022,0022027220/2,22027220, 500.00,Traffic Enforcement Centre,00604200,,Adjudication & Enforcement Ser,Parking On-Street,E10HD000044230,
http://statistics.data.gov.uk/id/local-authority/29UP,Tonbridge & Malling Borough Council,11/30/2022,0022027221/1,22027221, 14.38,REDACTED PERSONAL DATA,01111000,,Health General,Food & Safety - General,H35SW000044049,
http://statistics.data.gov.uk/id/local-authority/29UP,Tonbridge & Malling Borough Council,11/30/2022,0022027222/7,22027222, 1.40,REDACTED PERSONAL DATA,01055600,,Health General,Food & Safety - General,H35SW000044049,
http://statistics.data.gov.uk/id/local-authority/29UP,Tonbridge & Malling Borough Council,11/30/2022,0022027222/8,22027222, 1.25,REDACTED PERSONAL DATA,01055600,,Health General,Food & Safety - General,H35SW000044049,
http://statistics.data.gov.uk/id/local-authority/29UP,Tonbridge & Malling Borough Council,11/30/2022,0022027223/1,22027223, 440.00,Town & Country Housing Group,01385400,,Countywide DFG Project,Private Sector Housing Renewal,C03BD000044031,
http://statistics.data.gov.uk/id/local-authority/29UP,Tonbridge & Malling Borough Council,11/30/2022,0022027224/1,22027224, 354.00,Town & Country Housing Group,01385400,,Other Expenses,Housing Assistance,P03AD000009908,
http://statistics.data.gov.uk/id/local-authority/29UP,Tonbridge & Malling Borough Council,11/30/2022,0022027225/1,22027225, 490.00,Countrystyle Group,00835900,781981681,Collection of Card,Dry Recycling,H34SR000054008,
http://statistics.data.gov.uk/id/local-authority/29UP,Tonbridge & Malling Borough Council,11/30/2022,0022027226/1,22027226, 1415.81,KM Media Group Ltd,00053900,,Energy Efficiency Initiatives,Private Sector Housing Renewal,C03BD000044232,220003279
http://statistics.data.gov.uk/id/local-authority/29UP,Tonbridge & Malling Borough Council,11/30/2022,0022027227/1,22027227, 41705.50,Porchlight,01416700,,Professional Fees,Homelessness,C01AAROUG44001,
http://statistics.data.gov.uk/id/local-authority/29UP,Tonbridge & Malling Borough Council,11/30/2022,0022027228/1,22027228, 4463.00,Closomat Ltd,01875100,,Other Expenses,Disabled Facilities Grant Mand,P03AC000009908,
http://statistics.data.gov.uk/id/local-authority/29UP,Tonbridge & Malling Borough Council,11/30/2022,0022027229/1,22027229, 4800.00,Connells Residential Lettings,01668100,,Temporary Accommodation,Homelessness,C01AASYRI44051,
http://statistics.data.gov.uk/id/local-authority/29UP,Tonbridge & Malling Borough Council,11/30/2022,0022027230/1,22027230, 211.41,British Gas Services LTD,01260000,,Electricity,Homelessness,C01AA000021002,
http://statistics.data.gov.uk/id/local-authority/29UP,Tonbridge & Malling Borough Council,11/30/2022,0022027230/2,22027230, 13.00,British Gas Services LTD,01260000,,Electricity,Homelessness,C01AA000021002,
http://statistics.data.gov.uk/id/local-authority/29UP,Tonbridge & Malling Borough Council,11/30/2022,0022027231/1,22027231, 453.42,Town & Country Housing Group,01385400,,Other Expenses,Disabled Facilities Grant Mand,P03AC000009908,
http://statistics.data.gov.uk/id/local-authority/29UP,Tonbridge & Malling Borough Council,11/30/2022,0022027232/1,22027232, 3148.77,Coldwell & Shawyer Ltd,01740300,,Other Expenses,Disabled Facilities Grant Mand,P03AC000009908,
http://statistics.data.gov.uk/id/local-authority/29UP,Tonbridge & Malling Borough Council,11/30/2022,0031019064/3,31019064, 54.05,Npower Ltd,01675800,,Electricity,Parking Off-Street,E10HA000021002,
http://statistics.data.gov.uk/id/local-authority/29UP,Tonbridge & Malling Borough Council,11/30/2022,0031019065/3,31019065, 92.96,Npower Ltd,01675800,,Electricity,Parking Off-Street,E10HA000021002,
http://statistics.data.gov.uk/id/local-authority/29UP,Tonbridge & Malling Borough Council,11/30/2022,0031019066/3,31019066, 241.18,Npower Ltd,01675800,,Electricity,Parking Off-Street,E10HA000021002,
http://statistics.data.gov.uk/id/local-authority/29UP,Tonbridge & Malling Borough Council,11/30/2022,0031019067/3,31019067, 150.00,Monitor Pest Control Ltd,01476700,,Maintenance of Grounds,Parking Off-Street,E10HA000020402,
http://statistics.data.gov.uk/id/local-authority/29UP,Tonbridge & Malling Borough Council,11/30/2022,0031019068/3,31019068, 200.00,Monitor Pest Control Ltd,01476700,,Maintenance of Grounds,Parking Off-Street,E10HA000020402,
http://statistics.data.gov.uk/id/local-authority/29UP,Tonbridge & Malling Borough Council,11/30/2022,0031019069/3,31019069, 150.00,Monitor Pest Control Ltd,01476700,,CCTV Monitoring Station,Security Services Management,E09GA000051020,
http://statistics.data.gov.uk/id/local-authority/29UP,Tonbridge & Malling Borough Council,11/30/2022,0031019070/1,31019070, 180.00,Duke Contractors Ltd,00082900,,Premises Repairs & Maintenance,Parking Off-Street,E10HA000020601,310042851
http://statistics.data.gov.uk/id/local-authority/29UP,Tonbridge & Malling Borough Council,11/30/2022,0031019071/1,31019071, 3596.78,Alpha Parking Ltd,01167300,,Car Parking Action Plan,Parking On-Street,E10HD000020801,310042933
http://statistics.data.gov.uk/id/local-authority/29UP,Tonbridge & Malling Borough Council,11/30/2022,0031019073/1,31019073, 99.67,"ROBERTS COUNTRY VEHICLES LTD,",01713700,472683128,Transport Repair & Maintenance,Parking Off-Street,E10HA000030103,310042935
http://statistics.data.gov.uk/id/local-authority/29UP,Tonbridge & Malling Borough Council,11/30/2022,0031019073/2,31019073, 149.50,"ROBERTS COUNTRY VEHICLES LTD,",01713700,472683128,Transport Repair & Maintenance,Parking On-Street,E10HD000030103,310042935
http://statistics.data.gov.uk/id/local-authority/29UP,Tonbridge & Malling Borough Council,11/30/2022,0031019074/1,31019074, 13974.71,PSR Lighting & Signs Ltd,01265400,,Tonbridge Christmas Lighting,Eco Dev & Reg Ton Chris Light,D52TF000047015,210057001
http://statistics.data.gov.uk/id/local-authority/29UP,Tonbridge & Malling Borough Council,11/30/2022,0031019079/1,31019079, 33.33,REDACTED PERSONAL DATA,01576900,,Transport Repair & Maintenance,Parking Off-Street,E10HA000030103,
http://statistics.data.gov.uk/id/local-authority/29UP,Tonbridge & Malling Borough Council,11/30/2022,0031019079/2,31019079, 33.34,REDACTED PERSONAL DATA,01576900,,Transport Repair & Maintenance,Parking On-Street,E10HD000030103,
http://statistics.data.gov.uk/id/local-authority/29UP,Tonbridge & Malling Borough Council,11/30/2022,0031019081/1,31019081, 21.65,REDACTED PERSONAL DATA,01576900,,Purchases,Parking Off-Street,E10HA000040101,
http://statistics.data.gov.uk/id/local-authority/29UP,Tonbridge & Malling Borough Council,11/30/2022,0031019081/2,31019081, 1.88,REDACTED PERSONAL DATA,01576900,,Purchases,Parking Off-Street,E10HA000040101,
http://statistics.data.gov.uk/id/local-authority/29UP,Tonbridge & Malling Borough Council,11/30/2022,0031019081/3,31019081, 1.87,REDACTED PERSONAL DATA,01576900,,Purchases,Parking On-Street,E10HD000040101,
http://statistics.data.gov.uk/id/local-authority/29UP,Tonbridge & Malling Borough Council,11/30/2022,0031019081/4,31019081, 21.65,REDACTED PERSONAL DATA,01576900,,Purchases,Parking On-Street,E10HD000040101,
http://statistics.data.gov.uk/id/local-authority/29UP,Tonbridge & Malling Borough Council,11/30/2022,0031019082/1,31019082, 125000.00,Environment Agency,00418100,,Other Expenses,Leigh FSA,P01HV000009908,
http://statistics.data.gov.uk/id/local-authority/29UP,Tonbridge & Malling Borough Council,11/30/2022,0031019083/1,31019083, 25.15,REDACTED PERSONAL DATA,01802500,,Purchases,Parking Off-Street,E10HA000040101,
http://statistics.data.gov.uk/id/local-authority/29UP,Tonbridge & Malling Borough Council,11/30/2022,0031019083/2,31019083, 25.15,REDACTED PERSONAL DATA,01802500,,Purchases,Parking On-Street,E10HD000040101,
http://statistics.data.gov.uk/id/local-authority/29UP,Tonbridge & Malling Borough Council,11/30/2022,0032009931/3,32009931, 1482.00,Vivid Resourcing,01773700,,Temporary Staff,Planning Sals&Overheads,D01AJDJ0111300,
http://statistics.data.gov.uk/id/local-authority/29UP,Tonbridge & Malling Borough Council,11/30/2022,0032009932/3,32009932, 1627.69,The Oyster Partnership,01196400,,Temporary Staff,Planning Sals&Overheads,D01AJDJ0111300,
http://statistics.data.gov.uk/id/local-authority/29UP,Tonbridge & Malling Borough Council,11/30/2022,0032009933/3,32009933, 1797.40,The Oyster Partnership,01196400,,Temporary Staff,Planning Sals&Overheads,D01AJDJ0111300,
http://statistics.data.gov.uk/id/local-authority/29UP,Tonbridge & Malling Borough Council,11/30/2022,0032009934/3,32009934, 1675.32,The Oyster Partnership,01196400,,Temporary Staff,Planning Sals&Overheads,D01AJDJ0111300,
http://statistics.data.gov.uk/id/local-authority/29UP,Tonbridge & Malling Borough Council,11/30/2022,0032009935/3,32009935, 1884.50,The Oyster Partnership,01196400,,Temporary Staff,Planning Sals&Overheads,D01AJDJ0111300,
http://statistics.data.gov.uk/id/local-authority/29UP,Tonbridge & Malling Borough Council,11/30/2022,0032009936/3,32009936, 1147.00,G2 Recruitment Solutions,01786000,,Temporary Staff,Planning Sals&Overheads,D01AJDJ0111300,
http://statistics.data.gov.uk/id/local-authority/29UP,Tonbridge & Malling Borough Council,11/30/2022,0032009937/3,32009937, 1609.50,G2 Recruitment Solutions,01786000,,Temporary Staff,Planning Sals&Overheads,D01AJDJ0111300,
http://statistics.data.gov.uk/id/local-authority/29UP,Tonbridge & Malling Borough Council,11/30/2022,0032009938/3,32009938, 2834.32,G2 Recruitment Solutions,01786000,,Temporary Staff,Planning Sals&Overheads,D01AJDJ0111300,
http://statistics.data.gov.uk/id/local-authority/29UP,Tonbridge & Malling Borough Council,11/30/2022,0032009939/3,32009939, 3745.00,G2 Recruitment Solutions,01786000,,Temporary Staff,Planning Sals&Overheads,D01AJDJ0111300,
http://statistics.data.gov.uk/id/local-authority/29UP,Tonbridge & Malling Borough Council,11/30/2022,0032009941/3,32009941, 1612.50,Carrington West Limited,01844500,,Temporary Staff,Planning Sals&Overheads,D01AJDJ0111300,
http://statistics.data.gov.uk/id/local-authority/29UP,Tonbridge & Malling Borough Council,11/30/2022,0032009942/1,32009942, 1500.00,Wouldham Parish Council,00114700,,Payments,S106 - Commuted Sums,M04AD000001001,
http://statistics.data.gov.uk/id/local-authority/29UP,Tonbridge & Malling Borough Council,11/30/2022,0032009943/1,32009943, 1865.00,Wouldham Parish Council,00114700,,Payments,S106 - Commuted Sums,M04AD000001001,
http://statistics.data.gov.uk/id/local-authority/29UP,Tonbridge & Malling Borough Council,11/30/2022,0032009945/1,32009945, 1800.00,Betteridge & Milsom Ltd.,01441000,,Professional Fees,Development Management,A01AB000044001,
http://statistics.data.gov.uk/id/local-authority/29UP,Tonbridge & Malling Borough Council,11/30/2022,0041034966/3,41034966, 556.60,Morgan Hunt UK Ltd,01086900,,Temporary Staff,Finance Sals&Overheads,D01AFDF1111300,
http://statistics.data.gov.uk/id/local-authority/29UP,Tonbridge & Malling Borough Council,11/30/2022,0041034967/1,41034967, 37.80,Tameside Metropolitan Borough,00770200,,Other Expenses,Finance Sals&Overheads,D01AFDF0648010,
http://statistics.data.gov.uk/id/local-authority/29UP,Tonbridge & Malling Borough Council,11/30/2022,0041034967/2,41034967, 0.75,Tameside Metropolitan Borough,00770200,,Other Expenses,Finance Sals&Overheads,D01AFDF0648010,
http://statistics.data.gov.uk/id/local-authority/29UP,Tonbridge & Malling Borough Council,11/30/2022,0041034968/1,41034968, 904.17,Rundle & Co Ltd,00087200,,Bailiffs Commission,Local Revenue & NNDR Collect,D41QA000044075,
http://statistics.data.gov.uk/id/local-authority/29UP,Tonbridge & Malling Borough Council,11/30/2022,0041034969/1,41034969, 16.61,Rundle & Co Ltd,00087200,,Bailiffs Commission,Local Revenue & NNDR Collect,D41QA000044075,
http://statistics.data.gov.uk/id/local-authority/29UP,Tonbridge & Malling Borough Council,11/30/2022,0051008756/1,51008756, 915.00,The Wright Event,01870100,573732622,Ext Fees/Prof & Tech,Training,D10DCDA0513561,310042923
